Service Area,Service Division,Expense Type,Expense Code,Detailed Expense Type,Payment Date,Transaction Number,Amount Exc Vat,Supplier Name
Adults Wellbeing and Health,AWH Redundant Cost Centres,Supplies and Services,352001,Conference Expenses,01-Aug-2013,2626914-66628,565.00,HILLPRINT MEDIA LTD.
Adults Wellbeing and Health,Central Charges,Supplies and Services,304421,Equipment and Materials,19-Aug-2013,2634466-1602129546,536.20,XEROX (UK) LTD.
Adults Wellbeing and Health,Commissioning inc Supporting People,Supplies and Services,338099,Services,29-Aug-2013,2637342-1691,"2,000.00",HOUSING & SUPPORT ALLIANCE LTD.
Adults Wellbeing and Health,Commissioning inc Supporting People,Third Party Payments,440051,Other Third Party Payments,13-Aug-2013,2631016,"12,500.00",DERIC YOUTH BUS PROJECT.
Adults Wellbeing and Health,Commissioning inc Supporting People,Third Party Payments,473111,Purchase of Care,14-Aug-2013,2631191,"4,194.50",ASSOCIATION OF TEESDALE DAY CLUBS.
Adults Wellbeing and Health,Commissioning inc Supporting People,Third Party Payments,473111,Purchase of Care,14-Aug-2013,2631424-0015,"6,187.95",NEWTON AYCLIFFE MIND.
Adults Wellbeing and Health,Commissioning inc Supporting People,Third Party Payments,472113,Purchase of Care,15-Aug-2013,2632276-1351110H,991.72,DALE CARE LTD.
Adults Wellbeing and Health,Commissioning inc Supporting People,Third Party Payments,472113,Purchase of Care,15-Aug-2013,2632276-1354795H,696.32,DALE CARE LTD.
Adults Wellbeing and Health,Commissioning inc Supporting People,Third Party Payments,472113,Purchase of Care,15-Aug-2013,2632276-1355148H,960.08,DALE CARE LTD.
Adults Wellbeing and Health,Commissioning inc Supporting People,Third Party Payments,472113,Purchase of Care,27-Aug-2013,2636742-AL08,"11,250.00",DALE CARE LTD.
Adults Wellbeing and Health,Commissioning inc Supporting People,Third Party Payments,479101,Purchase of Care,07-Aug-2013,222900-2521,"7,500.00",RETHINK MENTAL ILLNESS.
Adults Wellbeing and Health,Commissioning inc Supporting People,Third Party Payments,479101,Purchase of Care,07-Aug-2013,222900-2522,"17,730.25",RETHINK MENTAL ILLNESS.
Adults Wellbeing and Health,Commissioning inc Supporting People,Third Party Payments,479101,Purchase of Care,07-Aug-2013,222911-DEV,"1,000.00",SOS TEESDALE.
Adults Wellbeing and Health,Commissioning inc Supporting People,Third Party Payments,479101,Purchase of Care,05-Aug-2013,2627445-664,"10,000.00",ADL SMARTCARE LTD.
Adults Wellbeing and Health,Commissioning inc Supporting People,Third Party Payments,479101,Purchase of Care,09-Aug-2013,2629859-430025009,"17,520.00",TEES ESK & WEAR VALLEY NHS FOUNDATION TRUST.
Adults Wellbeing and Health,Commissioning inc Supporting People,Third Party Payments,479101,Purchase of Care,09-Aug-2013,2629859-4810000379,"16,060.00",TEES ESK & WEAR VALLEY NHS FOUNDATION TRUST.
Adults Wellbeing and Health,Commissioning inc Supporting People,Third Party Payments,479101,Purchase of Care,14-Aug-2013,2631522-4810000547,"4,133.59",TEES ESK & WEAR VALLEY NHS FOUNDATION TRUST.
Adults Wellbeing and Health,Commissioning inc Supporting People,Third Party Payments,479111,Purchase of Care,07-Aug-2013,222733,"3,244.95",DERWENTSIDE MIND.
Adults Wellbeing and Health,Commissioning inc Supporting People,Third Party Payments,479111,Purchase of Care,05-Aug-2013,2627464-031,"13,296.00",ASPIRE LEARNING SUPPORT & WELLING CIC.
Adults Wellbeing and Health,Commissioning inc Supporting People,Third Party Payments,479111,Purchase of Care,19-Aug-2013,2634400,"70,458.25",STONHAM HOUSING ASSOCIATION LTD.
Adults Wellbeing and Health,Commissioning inc Supporting People,Third Party Payments,479111,Purchase of Care,29-Aug-2013,2637272-1917,"2,635.68",CARERS FEDERATION LTD.
Adults Wellbeing and Health,Commissioning inc Supporting People,Third Party Payments,479111,Purchase of Care,29-Aug-2013,2637381-555/02635,"14,830.50",MENTAL HEALTH MATTERS.
Adults Wellbeing and Health,Commissioning inc Supporting People,Third Party Payments,470101,Purchase of Care,29-Aug-2013,2637369,"4,047.23",LEONARD CHESHIRE DISABILITY.
Adults Wellbeing and Health,Commissioning inc Supporting People,Third Party Payments,470111,Purchase of Care,27-Aug-2013,2636854,"4,047.23",LEONARD CHESHIRE DISABILITY.
Adults Wellbeing and Health,Commissioning inc Supporting People,Third Party Payments,478111,Purchase of Care,27-Aug-2013,2636694,"1,137.50",REDACTED - PAYMENT TO INDIVIDUAL
Adults Wellbeing and Health,Commissioning inc Supporting People,Third Party Payments,441001,Supporting People,08-Aug-2013,2629322-1951666,"17,866.88",DURHAM ACTION ON SINGLE HOUSING.
Adults Wellbeing and Health,Commissioning inc Supporting People,Third Party Payments,441001,Supporting People,08-Aug-2013,2629332-1951956,"5,402.40",EAST DURHAM COMMUNITY INITIATIVES LTD.
Adults Wellbeing and Health,Commissioning inc Supporting People,Third Party Payments,441001,Supporting People,08-Aug-2013,2629395-1951809,"9,190.44",HARBOUR SUPPORT SERVICES.
Adults Wellbeing and Health,Commissioning inc Supporting People,Third Party Payments,441001,Supporting People,08-Aug-2013,2629540-1952051,"10,361.68",NORCARE LTD.
Adults Wellbeing and Health,Commissioning inc Supporting People,Third Party Payments,441001,Supporting People,08-Aug-2013,2629540-1952053,"8,097.92",NORCARE LTD.
Adults Wellbeing and Health,Commissioning inc Supporting People,Third Party Payments,441001,Supporting People,08-Aug-2013,2629596-1952041,"9,429.16",RICHMOND FELLOWSHIP.
Adults Wellbeing and Health,Commissioning inc Supporting People,Third Party Payments,441001,Supporting People,08-Aug-2013,2629661-1951723,"48,252.08",STONHAM HOUSING ASSOCIATION LTD.
Adults Wellbeing and Health,Commissioning inc Supporting People,Third Party Payments,441001,Supporting People,08-Aug-2013,2629661-1952045,"16,646.56",STONHAM HOUSING ASSOCIATION LTD.
Adults Wellbeing and Health,Commissioning inc Supporting People,Third Party Payments,441001,Supporting People,08-Aug-2013,2629676-1951577,"29,247.64",TEES VALLEY HOUSING LTD.
Adults Wellbeing and Health,Commissioning inc Supporting People,Third Party Payments,441001,Supporting People,08-Aug-2013,2629679-1952043,"19,231.20",THE CYRENIANS LTD.
Adults Wellbeing and Health,Commissioning inc Supporting People,Third Party Payments,441001,Supporting People,08-Aug-2013,2629686-1951562,"11,181.61",THREE RIVERS HOUSING ASSOCIATION LTD.
Adults Wellbeing and Health,Commissioning inc Supporting People,Third Party Payments,441001,Supporting People,08-Aug-2013,2629686-1952042,"7,692.32",THREE RIVERS HOUSING ASSOCIATION LTD.
Adults Wellbeing and Health,Commissioning inc Supporting People,Third Party Payments,441001,Supporting People,08-Aug-2013,2629712-1951957,"1,166.12",WADDINGTON STREET CENTRE LTD.
Adults Wellbeing and Health,Commissioning inc Supporting People,Third Party Payments,441001,Supporting People,08-Aug-2013,2629713-1952044,"7,617.32",WEAR VALLEY WOMENS AID.
Adults Wellbeing and Health,Commissioning inc Supporting People,Third Party Payments,442002,Supporting People,08-Aug-2013,2629218-1951983,"19,676.48",BID SERVICES WITH DEAF PEOPLE.
Adults Wellbeing and Health,Commissioning inc Supporting People,Third Party Payments,442002,Supporting People,08-Aug-2013,2629291-1952087,"18,196.38",CREATIVE SUPPORT LTD.
Adults Wellbeing and Health,Commissioning inc Supporting People,Third Party Payments,442002,Supporting People,08-Aug-2013,2629313-1951696,"2,439.44",DERWENTSIDE DOMESTIC ABUSE SERVICE.
Adults Wellbeing and Health,Commissioning inc Supporting People,Third Party Payments,442002,Supporting People,08-Aug-2013,2629318-1951997,"35,813.60",DISC LTD.
Adults Wellbeing and Health,Commissioning inc Supporting People,Third Party Payments,442002,Supporting People,08-Aug-2013,2629371-1952244,"33,120.17",FOUNDATION HOUSING.
Adults Wellbeing and Health,Commissioning inc Supporting People,Third Party Payments,442002,Supporting People,08-Aug-2013,2629394-1951995,"5,906.84",HANOVER HOUSING ASSOCIATION.
Adults Wellbeing and Health,Commissioning inc Supporting People,Third Party Payments,442002,Supporting People,08-Aug-2013,2629395-1951836,"2,965.76",HARBOUR SUPPORT SERVICES.
Adults Wellbeing and Health,Commissioning inc Supporting People,Third Party Payments,442002,Supporting People,08-Aug-2013,2629492-1951803,"7,460.12",MENTAL HEALTH MATTERS.
Adults Wellbeing and Health,Commissioning inc Supporting People,Third Party Payments,442002,Supporting People,08-Aug-2013,2629501-1951985,"5,561.68",MOVING ON.
Adults Wellbeing and Health,Commissioning inc Supporting People,Third Party Payments,442002,Supporting People,08-Aug-2013,2629540-1952052,"3,078.80",NORCARE LTD.
Adults Wellbeing and Health,Commissioning inc Supporting People,Third Party Payments,442002,Supporting People,08-Aug-2013,2629540-1952054,"1,954.64",NORCARE LTD.
Adults Wellbeing and Health,Commissioning inc Supporting People,Third Party Payments,442002,Supporting People,08-Aug-2013,2629596-1951991,"4,382.44",RICHMOND FELLOWSHIP.
Adults Wellbeing and Health,Commissioning inc Supporting People,Third Party Payments,442002,Supporting People,08-Aug-2013,2629635-1951986,"9,294.32",SHAID.
Adults Wellbeing and Health,Commissioning inc Supporting People,Third Party Payments,442002,Supporting People,08-Aug-2013,2629661-1951575,"28,364.92",STONHAM HOUSING ASSOCIATION LTD.
Adults Wellbeing and Health,Commissioning inc Supporting People,Third Party Payments,442002,Supporting People,08-Aug-2013,2629661-1951810,"178,650.32",STONHAM HOUSING ASSOCIATION LTD.
Adults Wellbeing and Health,Commissioning inc Supporting People,Third Party Payments,442002,Supporting People,08-Aug-2013,2629676-1951993,"9,785.24",TEES VALLEY HOUSING LTD.
Adults Wellbeing and Health,Commissioning inc Supporting People,Third Party Payments,442002,Supporting People,08-Aug-2013,2629686-1951646,"8,976.12",THREE RIVERS HOUSING ASSOCIATION LTD.
Adults Wellbeing and Health,Commissioning inc Supporting People,Third Party Payments,442002,Supporting People,08-Aug-2013,2629686-1951979,"43,230.76",THREE RIVERS HOUSING ASSOCIATION LTD.
Adults Wellbeing and Health,Commissioning inc Supporting People,Third Party Payments,442002,Supporting People,08-Aug-2013,2629686-1951988,"3,835.60",THREE RIVERS HOUSING ASSOCIATION LTD.
Adults Wellbeing and Health,Commissioning inc Supporting People,Third Party Payments,443001,Supporting People,08-Aug-2013,2629273-1952154,"1,200.00",COMMUNITY INTEGRATED CARE LTD.
Adults Wellbeing and Health,Commissioning inc Supporting People,Third Party Payments,443001,Supporting People,08-Aug-2013,2629273-1952156,900.00,COMMUNITY INTEGRATED CARE LTD.
Adults Wellbeing and Health,Commissioning inc Supporting People,Third Party Payments,443001,Supporting People,08-Aug-2013,2629273-1952164,"2,100.00",COMMUNITY INTEGRATED CARE LTD.
Adults Wellbeing and Health,Commissioning inc Supporting People,Third Party Payments,443001,Supporting People,08-Aug-2013,2629273-1952168,"2,400.00",COMMUNITY INTEGRATED CARE LTD.
Adults Wellbeing and Health,Commissioning inc Supporting People,Third Party Payments,443001,Supporting People,08-Aug-2013,2629309-1952173,"3,342.60",DEACONSTAR LTD.
Adults Wellbeing and Health,Commissioning inc Supporting People,Third Party Payments,443001,Supporting People,08-Aug-2013,2629322-1952023,"1,454.08",DURHAM ACTION ON SINGLE HOUSING.
Adults Wellbeing and Health,Commissioning inc Supporting People,Third Party Payments,443001,Supporting People,08-Aug-2013,2629322-1952025,"2,181.12",DURHAM ACTION ON SINGLE HOUSING.
Adults Wellbeing and Health,Commissioning inc Supporting People,Third Party Payments,443001,Supporting People,08-Aug-2013,2629322-1952026,727.04,DURHAM ACTION ON SINGLE HOUSING.
Adults Wellbeing and Health,Commissioning inc Supporting People,Third Party Payments,443001,Supporting People,08-Aug-2013,2629405-1952163,"7,348.32",HIGHLEA CARE LTD.
Adults Wellbeing and Health,Commissioning inc Supporting People,Third Party Payments,443001,Supporting People,08-Aug-2013,2629410-1951939,900.48,HOME HOUSING ASSOCIATION LTD.
Adults Wellbeing and Health,Commissioning inc Supporting People,Third Party Payments,443001,Supporting People,08-Aug-2013,2629423-1952194,844.29,INTEGRATION TRUST.
Adults Wellbeing and Health,Commissioning inc Supporting People,Third Party Payments,443001,Supporting People,08-Aug-2013,2629449-1951702,"2,629.60",KINDSTREAM CARE LTD.
Adults Wellbeing and Health,Commissioning inc Supporting People,Third Party Payments,443001,Supporting People,08-Aug-2013,2629449-1951703,"10,781.36",KINDSTREAM CARE LTD.
Adults Wellbeing and Health,Commissioning inc Supporting People,Third Party Payments,443001,Supporting People,08-Aug-2013,2629491-1952161,"1,863.57",MENCAP.
Adults Wellbeing and Health,Commissioning inc Supporting People,Third Party Payments,443001,Supporting People,08-Aug-2013,2629491-1952201,680.97,MENCAP.
Adults Wellbeing and Health,Commissioning inc Supporting People,Third Party Payments,443001,Supporting People,08-Aug-2013,2629491-1952202,"1,893.33",MENCAP.
Adults Wellbeing and Health,Commissioning inc Supporting People,Third Party Payments,443001,Supporting People,08-Aug-2013,2629651-1952170,"7,194.96",ST ANNES SHELTER & HOUSING ACTION.
Adults Wellbeing and Health,Commissioning inc Supporting People,Third Party Payments,443001,Supporting People,08-Aug-2013,2629661-1951712,"8,131.20",STONHAM HOUSING ASSOCIATION LTD.
Adults Wellbeing and Health,Commissioning inc Supporting People,Third Party Payments,443001,Supporting People,08-Aug-2013,2629661-1951779,"23,085.92",STONHAM HOUSING ASSOCIATION LTD.
Adults Wellbeing and Health,Commissioning inc Supporting People,Third Party Payments,443001,Supporting People,08-Aug-2013,2629712-1951581,"1,374.48",WADDINGTON STREET CENTRE LTD.
Adults Wellbeing and Health,Commissioning inc Supporting People,Third Party Payments,444002,Supporting People,08-Aug-2013,2629548-1952153,"3,240.00",OAKLEA TRUST.
Adults Wellbeing and Health,Commissioning inc Supporting People,Third Party Payments,444002,Supporting People,08-Aug-2013,2629548-1952155,972.00,OAKLEA TRUST.
Adults Wellbeing and Health,Commissioning inc Supporting People,Third Party Payments,444002,Supporting People,08-Aug-2013,2629548-1952211,972.00,OAKLEA TRUST.
Adults Wellbeing and Health,Commissioning inc Supporting People,Third Party Payments,444002,Supporting People,08-Aug-2013,2629548-1952222,"1,296.00",OAKLEA TRUST.
Adults Wellbeing and Health,Commissioning inc Supporting People,Third Party Payments,444002,Supporting People,08-Aug-2013,2629548-1952228,648.00,OAKLEA TRUST.
Adults Wellbeing and Health,Commissioning inc Supporting People,Third Party Payments,444002,Supporting People,08-Aug-2013,2629596-1952029,"4,595.04",RICHMOND FELLOWSHIP.
Adults Wellbeing and Health,Financing-Adult Services,Debtors,930024,Debtor-free nursing care,15-Aug-2013,2632049-2116955,548.95,BARCHESTER HEALTHCARE HOMES LTD.
Adults Wellbeing and Health,Financing-Adult Services,Debtors,930024,Debtor-free nursing care,15-Aug-2013,2632057-2116776,768.53,BEACONSFIELD COURT.
Adults Wellbeing and Health,Financing-Adult Services,Debtors,930024,Debtor-free nursing care,15-Aug-2013,2632069-2115091,604.40,BENFIELD HALL.
Adults Wellbeing and Health,Financing-Adult Services,Debtors,930024,Debtor-free nursing care,15-Aug-2013,2632069-2115094,"1,976.22",BENFIELD HALL.
Adults Wellbeing and Health,Financing-Adult Services,Debtors,930024,Debtor-free nursing care,15-Aug-2013,2632088-2114873,"1,976.22",BISHOPSGATE LODGE.
Adults Wellbeing and Health,Financing-Adult Services,Debtors,930024,Debtor-free nursing care,15-Aug-2013,2632327-2114222,548.95,DEFOE COURT.
Adults Wellbeing and Health,Financing-Adult Services,Debtors,930024,Debtor-free nursing care,15-Aug-2013,2632377-2115042,658.74,DOSON LTD (DENEHURST).
Adults Wellbeing and Health,Financing-Adult Services,Debtors,930024,Debtor-free nursing care,15-Aug-2013,2632455-2114174,"1,082.22",EUROPEAN CARE (ENGLAND) LTD.
Adults Wellbeing and Health,Financing-Adult Services,Debtors,930024,Debtor-free nursing care,15-Aug-2013,2632457-2115513,548.95,EUROPEAN CARE (ENGLAND) LTD.
Adults Wellbeing and Health,Financing-Adult Services,Debtors,930024,Debtor-free nursing care,15-Aug-2013,2632506-2117140,"1,976.22",GAINFORD CARE HOMES LTD.
Adults Wellbeing and Health,Financing-Adult Services,Debtors,930024,Debtor-free nursing care,15-Aug-2013,2632546-2113944,596.00,GUARDIAN CARE HOMES (WEST) LTD.
Adults Wellbeing and Health,Financing-Adult Services,Debtors,930024,Debtor-free nursing care,15-Aug-2013,2632819-2115079,604.40,KIMBLESWORTH NURSING HOME.
Adults Wellbeing and Health,Financing-Adult Services,Debtors,930024,Debtor-free nursing care,15-Aug-2013,2632914-2114072,721.48,LYONS COURT CARE HOME.
Adults Wellbeing and Health,Financing-Adult Services,Debtors,930024,Debtor-free nursing care,15-Aug-2013,2633025-2114102,611.69,MELBURY COURT.
Adults Wellbeing and Health,Financing-Adult Services,Debtors,930024,Debtor-free nursing care,15-Aug-2013,2633277-2114516,768.53,PARKLANDS NURSING HOME.
Adults Wellbeing and Health,Financing-Adult Services,Debtors,930024,Debtor-free nursing care,15-Aug-2013,2633278-2114463,548.95,PARKLANDS RESIDENTIAL HOME.
Adults Wellbeing and Health,Financing-Adult Services,Debtors,930024,Debtor-free nursing care,15-Aug-2013,2633375-2114840,604.40,RAYSON HOMES LTD.
Adults Wellbeing and Health,Financing-Adult Services,Debtors,930024,Debtor-free nursing care,15-Aug-2013,2633612-2114004,604.40,TAMARIS HEALTHCARE LTD.
Adults Wellbeing and Health,Financing-Adult Services,Debtors,930024,Debtor-free nursing care,15-Aug-2013,2633618-2114196,604.40,TAMARIS HEALTHCARE LTD.
Adults Wellbeing and Health,Financing-Adult Services,Debtors,930024,Debtor-free nursing care,15-Aug-2013,2633618-2114244,604.40,TAMARIS HEALTHCARE LTD.
Adults Wellbeing and Health,Financing-Adult Services,Debtors,930024,Debtor-free nursing care,15-Aug-2013,2633620-2117069,768.53,TAMARIS HEALTHCARE LTD.
Adults Wellbeing and Health,Financing-Adult Services,Debtors,930024,Debtor-free nursing care,15-Aug-2013,2633628-2116792,"1,725.27",TENLANDS NURSING HOME.
Adults Wellbeing and Health,Financing-Adult Services,Debtors,930131,Debtor-Hospital Re-Admission Avoidance Project,06-Aug-2013,2628544-0400004087,834.40,ALLIED HEALTHCARE GROUP LTD.
Adults Wellbeing and Health,Financing-Adult Services,Debtors,930131,Debtor-Hospital Re-Admission Avoidance Project,06-Aug-2013,2628811-7047,700.00,SOCIAL RESOURCE CENTRE LTD.
Adults Wellbeing and Health,Head of Adults,Employees,080025,Agency Staff,01-Aug-2013,2627211-4810000382,813.75,TEES ESK & WEAR VALLEY NHS FOUNDATION TRUST.
Adults Wellbeing and Health,Head of Adults,Employees,080025,Agency Staff,01-Aug-2013,2627211-4810000383,"1,627.42",TEES ESK & WEAR VALLEY NHS FOUNDATION TRUST.
Adults Wellbeing and Health,Head of Adults,Employees,080025,Agency Staff,01-Aug-2013,2627211-4810000384,"1,627.42",TEES ESK & WEAR VALLEY NHS FOUNDATION TRUST.
Adults Wellbeing and Health,Head of Adults,Employees,080025,Agency Staff,01-Aug-2013,2627211-4810000387,"3,583.09",TEES ESK & WEAR VALLEY NHS FOUNDATION TRUST.
Adults Wellbeing and Health,Head of Adults,Premises,150005,Apportioned Exps of Operational Blds,08-Aug-2013,2629314-RMIN/00000437,732.80,DERWENTSIDE HOMES LTD.
Adults Wellbeing and Health,Head of Adults,Premises,106099,Centrally Controlled Rep and Maint,19-Aug-2013,2634038-777487,670.88,ARJO MED AB LTD T/A ARJOHUNTLEIGH LTD.
Adults Wellbeing and Health,Head of Adults,Premises,145023,Cleaning and Domestic Supplies,06-Aug-2013,2628657-06/470816,628.83,GREENHAM TRADING LTD.
Adults Wellbeing and Health,Head of Adults,Premises,145023,Cleaning and Domestic Supplies,06-Aug-2013,2628657-06/470820,"1,028.86",GREENHAM TRADING LTD.
Adults Wellbeing and Health,Head of Adults,Premises,145009,Cleaning and Domestic Supplies,16-Aug-2013,2633844-JOB001,695.00,C J T/A RAINBOW I.
Adults Wellbeing and Health,Head of Adults,Premises,120009,Energy Costs,05-Aug-2013,2627592-HED43F953,"1,083.86",EON UK PLC.
Adults Wellbeing and Health,Head of Adults,Premises,155001,Insurance of Premises,05-Aug-2013,2627930-247244,"1,153.81",WHITTLE JONES (GROUP) LTD.
Adults Wellbeing and Health,Head of Adults,Premises,125009,Rents,08-Aug-2013,2629314-REIN/00000140,"1,500.00",DERWENTSIDE HOMES LTD.
Adults Wellbeing and Health,Head of Adults,Premises,125009,Rents,08-Aug-2013,2629314-RMIN/00000452,650.00,DERWENTSIDE HOMES LTD.
Adults Wellbeing and Health,Head of Adults,Premises,125009,Rents,29-Aug-2013,2637362-304558,782.50,KNIGHT FRANK LLP.
Adults Wellbeing and Health,Head of Adults,Premises,108037,Service Repairs and Maintenance,28-Aug-2013,223401-R,760.00,REDACTED - PAYMENT TO INDIVIDUAL
Adults Wellbeing and Health,Head of Adults,Premises,108037,Service Repairs and Maintenance,28-Aug-2013,223404-R,"1,255.00",REDACTED - PAYMENT TO INDIVIDUAL
Adults Wellbeing and Health,Head of Adults,Premises,108037,Service Repairs and Maintenance,28-Aug-2013,223405-R,788.00,REDACTED - PAYMENT TO INDIVIDUAL
Adults Wellbeing and Health,Head of Adults,Premises,108037,Service Repairs and Maintenance,28-Aug-2013,223407-R,988.00,REDACTED - PAYMENT TO INDIVIDUAL
Adults Wellbeing and Health,Head of Adults,Premises,108037,Service Repairs and Maintenance,28-Aug-2013,223408-R,723.20,REDACTED - PAYMENT TO INDIVIDUAL
Adults Wellbeing and Health,Head of Adults,Premises,108037,Service Repairs and Maintenance,28-Aug-2013,223409-R,612.80,REDACTED - PAYMENT TO INDIVIDUAL
Adults Wellbeing and Health,Head of Adults,Premises,108037,Service Repairs and Maintenance,28-Aug-2013,223411-R,765.00,REDACTED - PAYMENT TO INDIVIDUAL
Adults Wellbeing and Health,Head of Adults,Premises,108037,Service Repairs and Maintenance,28-Aug-2013,223457-R,645.50,REDACTED - PAYMENT TO INDIVIDUAL
Adults Wellbeing and Health,Head of Adults,Premises,108037,Service Repairs and Maintenance,28-Aug-2013,223515-R,510.00,REDACTED - PAYMENT TO INDIVIDUAL
Adults Wellbeing and Health,Head of Adults,Premises,108099,Service Repairs and Maintenance,15-Aug-2013,2633515-6798,"1,529.00",SIGMA CATERING EQUIPMENT LTD.
Adults Wellbeing and Health,Head of Adults,Premises,108099,Service Repairs and Maintenance,29-Aug-2013,2637442-6803,"1,805.76",SIGMA CATERING EQUIPMENT LTD.
Adults Wellbeing and Health,Head of Adults,Summary Income Level,720033,Fees and Charges,07-Aug-2013,222868,"1,034.70",REDACTED - PAYMENT TO INDIVIDUAL
Adults Wellbeing and Health,Head of Adults,Summary Income Level,720033,Fees and Charges,20-Aug-2013,2635197,"1,607.63",REDACTED - PAYMENT TO INDIVIDUAL
Adults Wellbeing and Health,Head of Adults,Summary Income Level,720033,Fees and Charges,30-Aug-2013,2637526,972.00,REDACTED - PAYMENT TO INDIVIDUAL
Adults Wellbeing and Health,Head of Adults,Summary Income Level,720047,Fees and Charges,07-Aug-2013,222841,668.29,REDACTED - PAYMENT TO INDIVIDUAL
Adults Wellbeing and Health,Head of Adults,Summary Income Level,720044,Fees and Charges,21-Aug-2013,2635306,"1,028.95",REDACTED - PAYMENT TO INDIVIDUAL
Adults Wellbeing and Health,Head of Adults,Summary Income Level,720045,Fees and Charges,27-Aug-2013,2636746,"7,180.66",REDACTED - PAYMENT TO INDIVIDUAL
Adults Wellbeing and Health,Head of Adults,Supplies and Services,328041,"Clothing, Uniforms and Laundry",05-Aug-2013,2627626-06/470279,648.84,GREENHAM TRADING LTD.
Adults Wellbeing and Health,Head of Adults,Supplies and Services,328041,"Clothing, Uniforms and Laundry",16-Aug-2013,2633882-06/474435,558.00,GREENHAM TRADING LTD.
Adults Wellbeing and Health,Head of Adults,Supplies and Services,342013,Computers and Communications,15-Aug-2013,2633590-6094603,535.38,SUPPLIES TEAM LTD.
Adults Wellbeing and Health,Head of Adults,Supplies and Services,304516,Equipment and Materials,19-Aug-2013,2634066-9437/07,652.75,CABLES TAXI CONTRACTS.
Adults Wellbeing and Health,Head of Adults,Supplies and Services,304516,Equipment and Materials,19-Aug-2013,2634320-00472,574.40,PHILLIPS TAXIS LTD.
Adults Wellbeing and Health,Head of Adults,Supplies and Services,304516,Equipment and Materials,19-Aug-2013,2634320-00519,672.00,PHILLIPS TAXIS LTD.
Adults Wellbeing and Health,Head of Adults,Supplies and Services,304259,Equipment and Materials,12-Aug-2013,2630293-127729,915.83,SWITCH ON.
Adults Wellbeing and Health,Head of Adults,Supplies and Services,304259,Equipment and Materials,20-Aug-2013,2635134-INV63430,"1,359.00",EVAC & CHAIR INTERNATIONAL LTD.
Adults Wellbeing and Health,Head of Adults,Supplies and Services,304259,Equipment and Materials,27-Aug-2013,2636772-INV63587,"2,038.50",EVAC & CHAIR INTERNATIONAL LTD.
Adults Wellbeing and Health,Head of Adults,Supplies and Services,304252,Equipment and Materials,27-Aug-2013,2636656-11PDRIVE,552.00,ADVANCED DECORATING.
Adults Wellbeing and Health,Head of Adults,Supplies and Services,304252,Equipment and Materials,28-Aug-2013,2637107-PB01,660.00,G S.
Adults Wellbeing and Health,Head of Adults,Supplies and Services,308013,Furniture,14-Aug-2013,2631357-104555,"1,243.01",JOHNSON WRIGHT FLOORING LTD.
Adults Wellbeing and Health,Head of Adults,Supplies and Services,308011,Furniture,09-Aug-2013,2629793-74366,919.42,J MAT.
Adults Wellbeing and Health,Head of Adults,Supplies and Services,308011,Furniture,14-Aug-2013,2631286-G,"1,147.00",ELMOLINE LTD.
Adults Wellbeing and Health,Head of Adults,Supplies and Services,308011,Furniture,15-Aug-2013,2633386-CLG1619,998.00,RENDLES HOUSE FURNISHER.
Adults Wellbeing and Health,Head of Adults,Supplies and Services,308011,Furniture,27-Aug-2013,2636766-6QP,999.00,ELMOLINE LTD.
Adults Wellbeing and Health,Head of Adults,Supplies and Services,308011,Furniture,29-Aug-2013,2637292-M1030255,553.20,CRAFTSMAN CONTRACT FURNITURE LTD.
Adults Wellbeing and Health,Head of Adults,Supplies and Services,384616,Miscellaneous Expenses,15-Aug-2013,2632464-9392,768.24,FAIROAK HOUSING ASSOCIATION.
Adults Wellbeing and Health,Head of Adults,Supplies and Services,384616,Miscellaneous Expenses,15-Aug-2013,2632483,"2,128.49",FOUR HOUSING GROUP.
Adults Wellbeing and Health,Head of Adults,Supplies and Services,384616,Miscellaneous Expenses,15-Aug-2013,2633356-CSIV2834,"1,162.80",PROGRESS CARE HOUSING ASSOCIATION LTD.
Adults Wellbeing and Health,Head of Adults,Supplies and Services,384616,Miscellaneous Expenses,15-Aug-2013,2633356-CSIV2867,930.24,PROGRESS CARE HOUSING ASSOCIATION LTD.
Adults Wellbeing and Health,Head of Adults,Supplies and Services,384616,Miscellaneous Expenses,20-Aug-2013,2635223-CSIV2800,930.24,PROGRESS CARE HOUSING ASSOCIATION LTD.
Adults Wellbeing and Health,Head of Adults,Supplies and Services,332047,"Printing, Stationery and Gen Off Exps",27-Aug-2013,2636866-276670,990.00,MAGICTOUCH (GB) LTD.
Adults Wellbeing and Health,Head of Adults,Supplies and Services,332047,"Printing, Stationery and Gen Off Exps",28-Aug-2013,2637238-496459153,740.35,YORKSHIRE PURCHASING ORGANISATION.
Adults Wellbeing and Health,Head of Adults,Supplies and Services,324117,Provisions,06-Aug-2013,2628692-N54695,819.63,JR HOLLAND FOOD SERVICES LTD.
Adults Wellbeing and Health,Head of Adults,Supplies and Services,324117,Provisions,06-Aug-2013,2628692-N54697,631.38,JR HOLLAND FOOD SERVICES LTD.
Adults Wellbeing and Health,Head of Adults,Supplies and Services,324117,Provisions,15-Aug-2013,2632758-N71683,"1,261.04",JR HOLLAND FOOD SERVICES LTD.
Adults Wellbeing and Health,Head of Adults,Supplies and Services,324117,Provisions,16-Aug-2013,2633902-N71686,896.55,JR HOLLAND FOOD SERVICES LTD.
Adults Wellbeing and Health,Head of Adults,Supplies and Services,324117,Provisions,23-Aug-2013,2635924-N71685,"1,118.31",JR HOLLAND FOOD SERVICES LTD.
Adults Wellbeing and Health,Head of Adults,Supplies and Services,324117,Provisions,27-Aug-2013,2636695-33503591,776.55,BRAKE BROS FOODSERVICE LTD.
Adults Wellbeing and Health,Head of Adults,Supplies and Services,338365,Services,01-Aug-2013,2627132-189380,777.70,SARABEC LTD.
Adults Wellbeing and Health,Head of Adults,Supplies and Services,338365,Services,14-Aug-2013,2631266-6956,"1,075.00",DOLPHIN STAIRLIFTS (NORTH EAST) LTD.
Adults Wellbeing and Health,Head of Adults,Supplies and Services,338365,Services,14-Aug-2013,2631475-P03864790101,"4,521.15",ROMPA LTD.
Adults Wellbeing and Health,Head of Adults,Supplies and Services,338365,Services,27-Aug-2013,2636927-5143015723,770.00,PATTERSON MEDICAL LTD.
Adults Wellbeing and Health,Head of Adults,Supplies and Services,338380,Services,06-Aug-2013,2628536,"10,500.00",ACCENT FOUNDATION.
Adults Wellbeing and Health,Head of Adults,Supplies and Services,338066,Services,01-Aug-2013,2627083-279,"7,750.00",PEOPLETOO LTD.
Adults Wellbeing and Health,Head of Adults,Supplies and Services,338094,Services,02-Aug-2013,2627313-13-045,900.00,CHESTER LE STREET CVS BULLION HALL.
Adults Wellbeing and Health,Head of Adults,Third Party Payments,473101,Purchase of Care,06-Aug-2013,2628537-INCS000922,852.75,ACTION ON HEARING LOSS.
Adults Wellbeing and Health,Head of Adults,Third Party Payments,473101,Purchase of Care,06-Aug-2013,2628537-INCS001601,758.00,ACTION ON HEARING LOSS.
Adults Wellbeing and Health,Head of Adults,Third Party Payments,473101,Purchase of Care,15-Aug-2013,2631895-1356443D,534.40,ACORN GRANGE NURSING HOME.
Adults Wellbeing and Health,Head of Adults,Third Party Payments,473101,Purchase of Care,15-Aug-2013,2631895-1356693D,684.00,ACORN GRANGE NURSING HOME.
Adults Wellbeing and Health,Head of Adults,Third Party Payments,473101,Purchase of Care,15-Aug-2013,2631895-1356881D,614.24,ACORN GRANGE NURSING HOME.
Adults Wellbeing and Health,Head of Adults,Third Party Payments,473101,Purchase of Care,15-Aug-2013,2631895-1357074D,518.63,ACORN GRANGE NURSING HOME.
Adults Wellbeing and Health,Head of Adults,Third Party Payments,473101,Purchase of Care,15-Aug-2013,2632317-1350828D,"1,003.40",DAYBREAK.
Adults Wellbeing and Health,Head of Adults,Third Party Payments,473101,Purchase of Care,15-Aug-2013,2632317-1350883D,"1,059.60",DAYBREAK.
Adults Wellbeing and Health,Head of Adults,Third Party Payments,473101,Purchase of Care,15-Aug-2013,2632317-1351024D,595.80,DAYBREAK.
Adults Wellbeing and Health,Head of Adults,Third Party Payments,473101,Purchase of Care,15-Aug-2013,2632317-1351064D,"1,041.80",DAYBREAK.
Adults Wellbeing and Health,Head of Adults,Third Party Payments,473101,Purchase of Care,15-Aug-2013,2632317-1351136D,"1,092.20",DAYBREAK.
Adults Wellbeing and Health,Head of Adults,Third Party Payments,473101,Purchase of Care,15-Aug-2013,2632317-1351169D,646.44,DAYBREAK.
Adults Wellbeing and Health,Head of Adults,Third Party Payments,473101,Purchase of Care,15-Aug-2013,2632317-1351226D,627.72,DAYBREAK.
Adults Wellbeing and Health,Head of Adults,Third Party Payments,473101,Purchase of Care,15-Aug-2013,2632317-1351236D,"1,006.80",DAYBREAK.
Adults Wellbeing and Health,Head of Adults,Third Party Payments,473101,Purchase of Care,15-Aug-2013,2632317-1352115D,648.12,DAYBREAK.
Adults Wellbeing and Health,Head of Adults,Third Party Payments,473101,Purchase of Care,15-Aug-2013,2632317-1352174D,601.80,DAYBREAK.
Adults Wellbeing and Health,Head of Adults,Third Party Payments,473101,Purchase of Care,15-Aug-2013,2632317-1352186D,733.28,DAYBREAK.
Adults Wellbeing and Health,Head of Adults,Third Party Payments,473101,Purchase of Care,15-Aug-2013,2632317-1352218D,649.92,DAYBREAK.
Adults Wellbeing and Health,Head of Adults,Third Party Payments,473101,Purchase of Care,15-Aug-2013,2632317-1352227D,815.40,DAYBREAK.
Adults Wellbeing and Health,Head of Adults,Third Party Payments,473101,Purchase of Care,15-Aug-2013,2632317-1352360D,603.72,DAYBREAK.
Adults Wellbeing and Health,Head of Adults,Third Party Payments,473101,Purchase of Care,15-Aug-2013,2632317-1352840D,"1,009.20",DAYBREAK.
Adults Wellbeing and Health,Head of Adults,Third Party Payments,473101,Purchase of Care,15-Aug-2013,2632317-1352881D,731.52,DAYBREAK.
Adults Wellbeing and Health,Head of Adults,Third Party Payments,473101,Purchase of Care,15-Aug-2013,2632317-1353302D,858.60,DAYBREAK.
Adults Wellbeing and Health,Head of Adults,Third Party Payments,473101,Purchase of Care,15-Aug-2013,2632317-1354500D,509.30,DAYBREAK.
Adults Wellbeing and Health,Head of Adults,Third Party Payments,473101,Purchase of Care,15-Aug-2013,2632317-1356311D,918.60,DAYBREAK.
Adults Wellbeing and Health,Head of Adults,Third Party Payments,473101,Purchase of Care,15-Aug-2013,2632320-1350792D,700.00,DEACONSTAR LTD.
Adults Wellbeing and Health,Head of Adults,Third Party Payments,473101,Purchase of Care,15-Aug-2013,2632320-1351160D,765.20,DEACONSTAR LTD.
Adults Wellbeing and Health,Head of Adults,Third Party Payments,473101,Purchase of Care,15-Aug-2013,2632320-1357631D,704.00,DEACONSTAR LTD.
Adults Wellbeing and Health,Head of Adults,Third Party Payments,473101,Purchase of Care,15-Aug-2013,2632320-1357634D,704.00,DEACONSTAR LTD.
Adults Wellbeing and Health,Head of Adults,Third Party Payments,473101,Purchase of Care,15-Aug-2013,2632394-1351068D,764.56,EBONEY DAY CARE.
Adults Wellbeing and Health,Head of Adults,Third Party Payments,473101,Purchase of Care,15-Aug-2013,2632394-1351877D,872.00,EBONEY DAY CARE.
Adults Wellbeing and Health,Head of Adults,Third Party Payments,473101,Purchase of Care,15-Aug-2013,2632394-1352405D,802.04,EBONEY DAY CARE.
Adults Wellbeing and Health,Head of Adults,Third Party Payments,473101,Purchase of Care,15-Aug-2013,2632394-1352478D,658.80,EBONEY DAY CARE.
Adults Wellbeing and Health,Head of Adults,Third Party Payments,473101,Purchase of Care,15-Aug-2013,2632394-1353706D,900.36,EBONEY DAY CARE.
Adults Wellbeing and Health,Head of Adults,Third Party Payments,473101,Purchase of Care,15-Aug-2013,2632394-1354223D,"1,847.40",EBONEY DAY CARE.
Adults Wellbeing and Health,Head of Adults,Third Party Payments,473101,Purchase of Care,15-Aug-2013,2632394-1354359D,713.80,EBONEY DAY CARE.
Adults Wellbeing and Health,Head of Adults,Third Party Payments,473101,Purchase of Care,15-Aug-2013,2632443-1350773D,620.00,ENDEAVOUR WOODCRAFTS.
Adults Wellbeing and Health,Head of Adults,Third Party Payments,473101,Purchase of Care,15-Aug-2013,2632443-1350834D,620.00,ENDEAVOUR WOODCRAFTS.
Adults Wellbeing and Health,Head of Adults,Third Party Payments,473101,Purchase of Care,15-Aug-2013,2632443-1350949D,620.00,ENDEAVOUR WOODCRAFTS.
Adults Wellbeing and Health,Head of Adults,Third Party Payments,473101,Purchase of Care,15-Aug-2013,2632449-1352311D,"1,964.00",ESPA.
Adults Wellbeing and Health,Head of Adults,Third Party Payments,473101,Purchase of Care,15-Aug-2013,2632449-1353028D,"4,669.60",ESPA.
Adults Wellbeing and Health,Head of Adults,Third Party Payments,473101,Purchase of Care,15-Aug-2013,2632449-1353305D,"2,802.40",ESPA.
Adults Wellbeing and Health,Head of Adults,Third Party Payments,473101,Purchase of Care,15-Aug-2013,2632507-1350816D,614.16,GAPPS DAY SERVICES LTD.
Adults Wellbeing and Health,Head of Adults,Third Party Payments,473101,Purchase of Care,15-Aug-2013,2632507-1350873D,"1,637.60",GAPPS DAY SERVICES LTD.
Adults Wellbeing and Health,Head of Adults,Third Party Payments,473101,Purchase of Care,15-Aug-2013,2632507-1351115D,"1,228.20",GAPPS DAY SERVICES LTD.
Adults Wellbeing and Health,Head of Adults,Third Party Payments,473101,Purchase of Care,15-Aug-2013,2632507-1351374D,818.80,GAPPS DAY SERVICES LTD.
Adults Wellbeing and Health,Head of Adults,Third Party Payments,473101,Purchase of Care,15-Aug-2013,2632507-1351574D,877.32,GAPPS DAY SERVICES LTD.
Adults Wellbeing and Health,Head of Adults,Third Party Payments,473101,Purchase of Care,15-Aug-2013,2632507-1351599D,"1,286.72",GAPPS DAY SERVICES LTD.
Adults Wellbeing and Health,Head of Adults,Third Party Payments,473101,Purchase of Care,15-Aug-2013,2632507-1351661D,818.80,GAPPS DAY SERVICES LTD.
Adults Wellbeing and Health,Head of Adults,Third Party Payments,473101,Purchase of Care,15-Aug-2013,2632507-1351731D,"2,865.80",GAPPS DAY SERVICES LTD.
Adults Wellbeing and Health,Head of Adults,Third Party Payments,473101,Purchase of Care,15-Aug-2013,2632507-1351932D,818.80,GAPPS DAY SERVICES LTD.
Adults Wellbeing and Health,Head of Adults,Third Party Payments,473101,Purchase of Care,15-Aug-2013,2632507-1352054D,877.32,GAPPS DAY SERVICES LTD.
Adults Wellbeing and Health,Head of Adults,Third Party Payments,473101,Purchase of Care,15-Aug-2013,2632507-1352138D,935.84,GAPPS DAY SERVICES LTD.
Adults Wellbeing and Health,Head of Adults,Third Party Payments,473101,Purchase of Care,15-Aug-2013,2632507-1352179D,"1,228.20",GAPPS DAY SERVICES LTD.
Adults Wellbeing and Health,Head of Adults,Third Party Payments,473101,Purchase of Care,15-Aug-2013,2632507-1352193D,"1,169.80",GAPPS DAY SERVICES LTD.
Adults Wellbeing and Health,Head of Adults,Third Party Payments,473101,Purchase of Care,15-Aug-2013,2632507-1352220D,"1,228.20",GAPPS DAY SERVICES LTD.
Adults Wellbeing and Health,Head of Adults,Third Party Payments,473101,Purchase of Care,15-Aug-2013,2632507-1352323D,"1,169.80",GAPPS DAY SERVICES LTD.
Adults Wellbeing and Health,Head of Adults,Third Party Payments,473101,Purchase of Care,15-Aug-2013,2632507-1352380D,701.88,GAPPS DAY SERVICES LTD.
Adults Wellbeing and Health,Head of Adults,Third Party Payments,473101,Purchase of Care,15-Aug-2013,2632507-1352526D,"1,696.12",GAPPS DAY SERVICES LTD.
Adults Wellbeing and Health,Head of Adults,Third Party Payments,473101,Purchase of Care,15-Aug-2013,2632507-1352836D,935.84,GAPPS DAY SERVICES LTD.
Adults Wellbeing and Health,Head of Adults,Third Party Payments,473101,Purchase of Care,15-Aug-2013,2632507-1352936D,935.84,GAPPS DAY SERVICES LTD.
Adults Wellbeing and Health,Head of Adults,Third Party Payments,473101,Purchase of Care,15-Aug-2013,2632507-1353067D,"1,345.24",GAPPS DAY SERVICES LTD.
Adults Wellbeing and Health,Head of Adults,Third Party Payments,473101,Purchase of Care,15-Aug-2013,2632507-1353345D,935.84,GAPPS DAY SERVICES LTD.
Adults Wellbeing and Health,Head of Adults,Third Party Payments,473101,Purchase of Care,15-Aug-2013,2632507-1354021D,935.84,GAPPS DAY SERVICES LTD.
Adults Wellbeing and Health,Head of Adults,Third Party Payments,473101,Purchase of Care,15-Aug-2013,2632507-1354432D,"1,403.76",GAPPS DAY SERVICES LTD.
Adults Wellbeing and Health,Head of Adults,Third Party Payments,473101,Purchase of Care,15-Aug-2013,2632507-1354922D,"1,228.20",GAPPS DAY SERVICES LTD.
Adults Wellbeing and Health,Head of Adults,Third Party Payments,473101,Purchase of Care,15-Aug-2013,2632507-1355078D,818.80,GAPPS DAY SERVICES LTD.
Adults Wellbeing and Health,Head of Adults,Third Party Payments,473101,Purchase of Care,15-Aug-2013,2632507-1355111D,"1,403.76",GAPPS DAY SERVICES LTD.
Adults Wellbeing and Health,Head of Adults,Third Party Payments,473101,Purchase of Care,15-Aug-2013,2632567-1355868D,595.20,HASWELL & DISTRICT MENCAP SOCIETY.
Adults Wellbeing and Health,Head of Adults,Third Party Payments,473101,Purchase of Care,15-Aug-2013,2632584-1356982H,703.20,HIGHLEA CARE LTD.
Adults Wellbeing and Health,Head of Adults,Third Party Payments,473101,Purchase of Care,15-Aug-2013,2632793-1350770D,620.00,KAYDAR.
Adults Wellbeing and Health,Head of Adults,Third Party Payments,473101,Purchase of Care,15-Aug-2013,2632793-1351287D,523.52,KAYDAR.
Adults Wellbeing and Health,Head of Adults,Third Party Payments,473101,Purchase of Care,15-Aug-2013,2632793-1351490D,"2,748.80",KAYDAR.
Adults Wellbeing and Health,Head of Adults,Third Party Payments,473101,Purchase of Care,15-Aug-2013,2632793-1351735D,"1,034.76",KAYDAR.
Adults Wellbeing and Health,Head of Adults,Third Party Payments,473101,Purchase of Care,15-Aug-2013,2632793-1352361D,504.28,KAYDAR.
Adults Wellbeing and Health,Head of Adults,Third Party Payments,473101,Purchase of Care,15-Aug-2013,2632793-1352454D,615.32,KAYDAR.
Adults Wellbeing and Health,Head of Adults,Third Party Payments,473101,Purchase of Care,15-Aug-2013,2632793-1352467D,558.00,KAYDAR.
Adults Wellbeing and Health,Head of Adults,Third Party Payments,473101,Purchase of Care,15-Aug-2013,2632793-1352492D,631.64,KAYDAR.
Adults Wellbeing and Health,Head of Adults,Third Party Payments,473101,Purchase of Care,15-Aug-2013,2632793-1352501D,731.34,KAYDAR.
Adults Wellbeing and Health,Head of Adults,Third Party Payments,473101,Purchase of Care,15-Aug-2013,2632793-1352569D,"1,343.06",KAYDAR.
Adults Wellbeing and Health,Head of Adults,Third Party Payments,473101,Purchase of Care,15-Aug-2013,2632793-1352624D,659.12,KAYDAR.
Adults Wellbeing and Health,Head of Adults,Third Party Payments,473101,Purchase of Care,15-Aug-2013,2632793-1352680D,709.60,KAYDAR.
Adults Wellbeing and Health,Head of Adults,Third Party Payments,473101,Purchase of Care,15-Aug-2013,2632793-1353332D,"1,099.27",KAYDAR.
Adults Wellbeing and Health,Head of Adults,Third Party Payments,473101,Purchase of Care,15-Aug-2013,2632793-1353376D,864.00,KAYDAR.
Adults Wellbeing and Health,Head of Adults,Third Party Payments,473101,Purchase of Care,15-Aug-2013,2632793-1353427D,524.42,KAYDAR.
Adults Wellbeing and Health,Head of Adults,Third Party Payments,473101,Purchase of Care,15-Aug-2013,2632793-1353461D,864.00,KAYDAR.
Adults Wellbeing and Health,Head of Adults,Third Party Payments,473101,Purchase of Care,15-Aug-2013,2632793-1354978D,919.02,KAYDAR.
Adults Wellbeing and Health,Head of Adults,Third Party Payments,473101,Purchase of Care,15-Aug-2013,2632820-1353126D,828.78,KINDSTREAM CARE LTD.
Adults Wellbeing and Health,Head of Adults,Third Party Payments,473101,Purchase of Care,15-Aug-2013,2632820-1353566D,620.00,KINDSTREAM CARE LTD.
Adults Wellbeing and Health,Head of Adults,Third Party Payments,473101,Purchase of Care,15-Aug-2013,2633065-1351036D,540.00,MOVEABLE FEASTS ARTS.
Adults Wellbeing and Health,Head of Adults,Third Party Payments,473101,Purchase of Care,15-Aug-2013,2633231-1351538D,"1,924.40",NORTH EAST AUTISM SOCIETY.
Adults Wellbeing and Health,Head of Adults,Third Party Payments,473101,Purchase of Care,15-Aug-2013,2633231-1351606D,"3,162.40",NORTH EAST AUTISM SOCIETY.
Adults Wellbeing and Health,Head of Adults,Third Party Payments,473101,Purchase of Care,15-Aug-2013,2633231-1351739D,"2,320.00",NORTH EAST AUTISM SOCIETY.
Adults Wellbeing and Health,Head of Adults,Third Party Payments,473101,Purchase of Care,15-Aug-2013,2633231-1352006D,"4,410.00",NORTH EAST AUTISM SOCIETY.
Adults Wellbeing and Health,Head of Adults,Third Party Payments,473101,Purchase of Care,15-Aug-2013,2633231-1352068D,"2,720.20",NORTH EAST AUTISM SOCIETY.
Adults Wellbeing and Health,Head of Adults,Third Party Payments,473101,Purchase of Care,15-Aug-2013,2633231-1352072D,"2,992.40",NORTH EAST AUTISM SOCIETY.
Adults Wellbeing and Health,Head of Adults,Third Party Payments,473101,Purchase of Care,15-Aug-2013,2633231-1352075D,"1,947.40",NORTH EAST AUTISM SOCIETY.
Adults Wellbeing and Health,Head of Adults,Third Party Payments,473101,Purchase of Care,15-Aug-2013,2633231-1352078D,"2,320.00",NORTH EAST AUTISM SOCIETY.
Adults Wellbeing and Health,Head of Adults,Third Party Payments,473101,Purchase of Care,15-Aug-2013,2633231-1352235D,"1,870.20",NORTH EAST AUTISM SOCIETY.
Adults Wellbeing and Health,Head of Adults,Third Party Payments,473101,Purchase of Care,15-Aug-2013,2633231-1352253D,"5,404.00",NORTH EAST AUTISM SOCIETY.
Adults Wellbeing and Health,Head of Adults,Third Party Payments,473101,Purchase of Care,15-Aug-2013,2633231-1352301D,"2,328.20",NORTH EAST AUTISM SOCIETY.
Adults Wellbeing and Health,Head of Adults,Third Party Payments,473101,Purchase of Care,15-Aug-2013,2633231-1352410D,"3,740.40",NORTH EAST AUTISM SOCIETY.
Adults Wellbeing and Health,Head of Adults,Third Party Payments,473101,Purchase of Care,15-Aug-2013,2633231-1352514D,"2,320.00",NORTH EAST AUTISM SOCIETY.
Adults Wellbeing and Health,Head of Adults,Third Party Payments,473101,Purchase of Care,15-Aug-2013,2633231-1352764D,"3,740.60",NORTH EAST AUTISM SOCIETY.
Adults Wellbeing and Health,Head of Adults,Third Party Payments,473101,Purchase of Care,15-Aug-2013,2633231-1352795D,"2,320.00",NORTH EAST AUTISM SOCIETY.
Adults Wellbeing and Health,Head of Adults,Third Party Payments,473101,Purchase of Care,15-Aug-2013,2633231-1353007D,"2,320.00",NORTH EAST AUTISM SOCIETY.
Adults Wellbeing and Health,Head of Adults,Third Party Payments,473101,Purchase of Care,15-Aug-2013,2633231-1353022D,"2,320.00",NORTH EAST AUTISM SOCIETY.
Adults Wellbeing and Health,Head of Adults,Third Party Payments,473101,Purchase of Care,15-Aug-2013,2633231-1353331D,"4,180.80",NORTH EAST AUTISM SOCIETY.
Adults Wellbeing and Health,Head of Adults,Third Party Payments,473101,Purchase of Care,15-Aug-2013,2633231-1353611D,"2,666.60",NORTH EAST AUTISM SOCIETY.
Adults Wellbeing and Health,Head of Adults,Third Party Payments,473101,Purchase of Care,15-Aug-2013,2633231-1355119D,"2,091.00",NORTH EAST AUTISM SOCIETY.
Adults Wellbeing and Health,Head of Adults,Third Party Payments,473101,Purchase of Care,15-Aug-2013,2633239-1355725D,546.40,NORTH WEST DURHAM RURAL COMMUNITY CARE LTD.
Adults Wellbeing and Health,Head of Adults,Third Party Payments,473101,Purchase of Care,15-Aug-2013,2633239-1357052D,705.80,NORTH WEST DURHAM RURAL COMMUNITY CARE LTD.
Adults Wellbeing and Health,Head of Adults,Third Party Payments,473101,Purchase of Care,15-Aug-2013,2633314-1351995D,"1,028.96",PERCY HEDLEY CENTRE.
Adults Wellbeing and Health,Head of Adults,Third Party Payments,473101,Purchase of Care,15-Aug-2013,2633314-1353342D,"1,488.36",PERCY HEDLEY CENTRE.
Adults Wellbeing and Health,Head of Adults,Third Party Payments,473101,Purchase of Care,15-Aug-2013,2633340-1350864D,"2,153.80",PORTLAND DAY CARE.
Adults Wellbeing and Health,Head of Adults,Third Party Payments,473101,Purchase of Care,15-Aug-2013,2633340-1350888D,"1,294.08",PORTLAND DAY CARE.
Adults Wellbeing and Health,Head of Adults,Third Party Payments,473101,Purchase of Care,15-Aug-2013,2633340-1350966D,690.48,PORTLAND DAY CARE.
Adults Wellbeing and Health,Head of Adults,Third Party Payments,473101,Purchase of Care,15-Aug-2013,2633340-1351180D,600.00,PORTLAND DAY CARE.
Adults Wellbeing and Health,Head of Adults,Third Party Payments,473101,Purchase of Care,15-Aug-2013,2633340-1351258D,"1,801.58",PORTLAND DAY CARE.
Adults Wellbeing and Health,Head of Adults,Third Party Payments,473101,Purchase of Care,15-Aug-2013,2633340-1351711D,"2,124.80",PORTLAND DAY CARE.
Adults Wellbeing and Health,Head of Adults,Third Party Payments,473101,Purchase of Care,15-Aug-2013,2633340-1351783D,"1,469.60",PORTLAND DAY CARE.
Adults Wellbeing and Health,Head of Adults,Third Party Payments,473101,Purchase of Care,15-Aug-2013,2633340-1351788D,"1,821.80",PORTLAND DAY CARE.
Adults Wellbeing and Health,Head of Adults,Third Party Payments,473101,Purchase of Care,15-Aug-2013,2633340-1352095D,"2,153.80",PORTLAND DAY CARE.
Adults Wellbeing and Health,Head of Adults,Third Party Payments,473101,Purchase of Care,15-Aug-2013,2633340-1352177D,989.50,PORTLAND DAY CARE.
Adults Wellbeing and Health,Head of Adults,Third Party Payments,473101,Purchase of Care,15-Aug-2013,2633340-1352201D,"1,212.00",PORTLAND DAY CARE.
Adults Wellbeing and Health,Head of Adults,Third Party Payments,473101,Purchase of Care,15-Aug-2013,2633340-1352552D,"2,173.60",PORTLAND DAY CARE.
Adults Wellbeing and Health,Head of Adults,Third Party Payments,473101,Purchase of Care,15-Aug-2013,2633340-1353192D,597.92,PORTLAND DAY CARE.
Adults Wellbeing and Health,Head of Adults,Third Party Payments,473101,Purchase of Care,15-Aug-2013,2633340-1353429D,"1,433.18",PORTLAND DAY CARE.
Adults Wellbeing and Health,Head of Adults,Third Party Payments,473101,Purchase of Care,15-Aug-2013,2633340-1354087D,521.76,PORTLAND DAY CARE.
Adults Wellbeing and Health,Head of Adults,Third Party Payments,473101,Purchase of Care,15-Aug-2013,2633340-1354095D,773.32,PORTLAND DAY CARE.
Adults Wellbeing and Health,Head of Adults,Third Party Payments,473101,Purchase of Care,15-Aug-2013,2633340-1357827D,"1,695.72",PORTLAND DAY CARE.
Adults Wellbeing and Health,Head of Adults,Third Party Payments,473101,Purchase of Care,15-Aug-2013,2633342-1351850D,583.92,POSITIVE APPROACH SERVICES LTD.
Adults Wellbeing and Health,Head of Adults,Third Party Payments,473101,Purchase of Care,15-Aug-2013,2633343-1354708D,822.72,POTENSIAL LTD.
Adults Wellbeing and Health,Head of Adults,Third Party Payments,473101,Purchase of Care,15-Aug-2013,2633345-1336511D,515.20,POTENSIAL LTD.
Adults Wellbeing and Health,Head of Adults,Third Party Payments,473101,Purchase of Care,15-Aug-2013,2633345-1350860D,515.20,POTENSIAL LTD.
Adults Wellbeing and Health,Head of Adults,Third Party Payments,473101,Purchase of Care,15-Aug-2013,2633506-1351833D,781.60,REDACTED - PAYMENT TO INDIVIDUAL
Adults Wellbeing and Health,Head of Adults,Third Party Payments,473101,Purchase of Care,15-Aug-2013,2633506-1351845D,756.40,REDACTED - PAYMENT TO INDIVIDUAL
Adults Wellbeing and Health,Head of Adults,Third Party Payments,473101,Purchase of Care,15-Aug-2013,2633506-1351880D,719.20,REDACTED - PAYMENT TO INDIVIDUAL
Adults Wellbeing and Health,Head of Adults,Third Party Payments,473101,Purchase of Care,15-Aug-2013,2633506-1351881D,745.00,REDACTED - PAYMENT TO INDIVIDUAL
Adults Wellbeing and Health,Head of Adults,Third Party Payments,473101,Purchase of Care,15-Aug-2013,2633506-1351895D,794.00,REDACTED - PAYMENT TO INDIVIDUAL
Adults Wellbeing and Health,Head of Adults,Third Party Payments,473101,Purchase of Care,15-Aug-2013,2633506-1351924D,717.60,REDACTED - PAYMENT TO INDIVIDUAL
Adults Wellbeing and Health,Head of Adults,Third Party Payments,473101,Purchase of Care,15-Aug-2013,2633506-1351943D,615.04,REDACTED - PAYMENT TO INDIVIDUAL
Adults Wellbeing and Health,Head of Adults,Third Party Payments,473101,Purchase of Care,15-Aug-2013,2633506-1352935D,748.00,REDACTED - PAYMENT TO INDIVIDUAL
Adults Wellbeing and Health,Head of Adults,Third Party Payments,473101,Purchase of Care,15-Aug-2013,2633506-1352998D,620.00,REDACTED - PAYMENT TO INDIVIDUAL
Adults Wellbeing and Health,Head of Adults,Third Party Payments,473101,Purchase of Care,15-Aug-2013,2633506-1353035D,783.20,REDACTED - PAYMENT TO INDIVIDUAL
Adults Wellbeing and Health,Head of Adults,Third Party Payments,473101,Purchase of Care,15-Aug-2013,2633506-1353163D,826.40,REDACTED - PAYMENT TO INDIVIDUAL
Adults Wellbeing and Health,Head of Adults,Third Party Payments,473101,Purchase of Care,15-Aug-2013,2633506-1353248D,589.44,REDACTED - PAYMENT TO INDIVIDUAL
Adults Wellbeing and Health,Head of Adults,Third Party Payments,473101,Purchase of Care,15-Aug-2013,2633506-1353552D,791.20,REDACTED - PAYMENT TO INDIVIDUAL
Adults Wellbeing and Health,Head of Adults,Third Party Payments,473101,Purchase of Care,15-Aug-2013,2633637-1352594D,800.00,THE AVENUE.
Adults Wellbeing and Health,Head of Adults,Third Party Payments,473101,Purchase of Care,15-Aug-2013,2633645-1352912D,664.60,THE HOSPITAL OF GOD AT GREATHAM.
Adults Wellbeing and Health,Head of Adults,Third Party Payments,473101,Purchase of Care,15-Aug-2013,2633645-1353053D,504.80,THE HOSPITAL OF GOD AT GREATHAM.
Adults Wellbeing and Health,Head of Adults,Third Party Payments,473101,Purchase of Care,15-Aug-2013,2633645-1353105D,630.00,THE HOSPITAL OF GOD AT GREATHAM.
Adults Wellbeing and Health,Head of Adults,Third Party Payments,473101,Purchase of Care,15-Aug-2013,2633645-1353240D,631.20,THE HOSPITAL OF GOD AT GREATHAM.
Adults Wellbeing and Health,Head of Adults,Third Party Payments,473101,Purchase of Care,15-Aug-2013,2633645-1355748D,518.72,THE HOSPITAL OF GOD AT GREATHAM.
Adults Wellbeing and Health,Head of Adults,Third Party Payments,473101,Purchase of Care,15-Aug-2013,2633645-1356677D,534.88,THE HOSPITAL OF GOD AT GREATHAM.
Adults Wellbeing and Health,Head of Adults,Third Party Payments,473101,Purchase of Care,15-Aug-2013,2633665-1350781D,954.36,THOMPSON & HOWE LTD.
Adults Wellbeing and Health,Head of Adults,Third Party Payments,473101,Purchase of Care,15-Aug-2013,2633665-1350829D,"1,288.08",THOMPSON & HOWE LTD.
Adults Wellbeing and Health,Head of Adults,Third Party Payments,473101,Purchase of Care,15-Aug-2013,2633665-1350887D,602.00,THOMPSON & HOWE LTD.
Adults Wellbeing and Health,Head of Adults,Third Party Payments,473101,Purchase of Care,15-Aug-2013,2633665-1350913D,970.00,THOMPSON & HOWE LTD.
Adults Wellbeing and Health,Head of Adults,Third Party Payments,473101,Purchase of Care,15-Aug-2013,2633665-1351091D,"1,465.20",THOMPSON & HOWE LTD.
Adults Wellbeing and Health,Head of Adults,Third Party Payments,473101,Purchase of Care,15-Aug-2013,2633665-1351102D,"1,525.00",THOMPSON & HOWE LTD.
Adults Wellbeing and Health,Head of Adults,Third Party Payments,473101,Purchase of Care,15-Aug-2013,2633665-1351134D,860.64,THOMPSON & HOWE LTD.
Adults Wellbeing and Health,Head of Adults,Third Party Payments,473101,Purchase of Care,15-Aug-2013,2633665-1351147D,588.00,THOMPSON & HOWE LTD.
Adults Wellbeing and Health,Head of Adults,Third Party Payments,473101,Purchase of Care,15-Aug-2013,2633665-1351201D,"1,237.44",THOMPSON & HOWE LTD.
Adults Wellbeing and Health,Head of Adults,Third Party Payments,473101,Purchase of Care,15-Aug-2013,2633665-1351212D,522.72,THOMPSON & HOWE LTD.
Adults Wellbeing and Health,Head of Adults,Third Party Payments,473101,Purchase of Care,15-Aug-2013,2633665-1351217D,"1,480.00",THOMPSON & HOWE LTD.
Adults Wellbeing and Health,Head of Adults,Third Party Payments,473101,Purchase of Care,15-Aug-2013,2633665-1351247D,869.20,THOMPSON & HOWE LTD.
Adults Wellbeing and Health,Head of Adults,Third Party Payments,473101,Purchase of Care,15-Aug-2013,2633665-1351265D,590.16,THOMPSON & HOWE LTD.
Adults Wellbeing and Health,Head of Adults,Third Party Payments,473101,Purchase of Care,15-Aug-2013,2633665-1351281D,544.00,THOMPSON & HOWE LTD.
Adults Wellbeing and Health,Head of Adults,Third Party Payments,473101,Purchase of Care,15-Aug-2013,2633665-1351294D,"1,047.40",THOMPSON & HOWE LTD.
Adults Wellbeing and Health,Head of Adults,Third Party Payments,473101,Purchase of Care,15-Aug-2013,2633665-1351335D,"1,006.00",THOMPSON & HOWE LTD.
Adults Wellbeing and Health,Head of Adults,Third Party Payments,473101,Purchase of Care,15-Aug-2013,2633665-1351429D,527.04,THOMPSON & HOWE LTD.
Adults Wellbeing and Health,Head of Adults,Third Party Payments,473101,Purchase of Care,15-Aug-2013,2633665-1351575D,926.76,THOMPSON & HOWE LTD.
Adults Wellbeing and Health,Head of Adults,Third Party Payments,473101,Purchase of Care,15-Aug-2013,2633665-1351640D,"1,266.28",THOMPSON & HOWE LTD.
Adults Wellbeing and Health,Head of Adults,Third Party Payments,473101,Purchase of Care,15-Aug-2013,2633665-1351669D,566.24,THOMPSON & HOWE LTD.
Adults Wellbeing and Health,Head of Adults,Third Party Payments,473101,Purchase of Care,15-Aug-2013,2633665-1351817D,751.43,THOMPSON & HOWE LTD.
Adults Wellbeing and Health,Head of Adults,Third Party Payments,473101,Purchase of Care,15-Aug-2013,2633665-1351829D,628.80,THOMPSON & HOWE LTD.
Adults Wellbeing and Health,Head of Adults,Third Party Payments,473101,Purchase of Care,15-Aug-2013,2633665-1351852D,"1,056.84",THOMPSON & HOWE LTD.
Adults Wellbeing and Health,Head of Adults,Third Party Payments,473101,Purchase of Care,15-Aug-2013,2633665-1351856D,620.40,THOMPSON & HOWE LTD.
Adults Wellbeing and Health,Head of Adults,Third Party Payments,473101,Purchase of Care,15-Aug-2013,2633665-1351858D,"1,508.60",THOMPSON & HOWE LTD.
Adults Wellbeing and Health,Head of Adults,Third Party Payments,473101,Purchase of Care,15-Aug-2013,2633665-1351903D,797.44,THOMPSON & HOWE LTD.
Adults Wellbeing and Health,Head of Adults,Third Party Payments,473101,Purchase of Care,15-Aug-2013,2633665-1351931D,871.08,THOMPSON & HOWE LTD.
Adults Wellbeing and Health,Head of Adults,Third Party Payments,473101,Purchase of Care,15-Aug-2013,2633665-1352117D,"1,628.40",THOMPSON & HOWE LTD.
Adults Wellbeing and Health,Head of Adults,Third Party Payments,473101,Purchase of Care,15-Aug-2013,2633665-1352182D,"1,548.00",THOMPSON & HOWE LTD.
Adults Wellbeing and Health,Head of Adults,Third Party Payments,473101,Purchase of Care,15-Aug-2013,2633665-1352233D,"1,556.96",THOMPSON & HOWE LTD.
Adults Wellbeing and Health,Head of Adults,Third Party Payments,473101,Purchase of Care,15-Aug-2013,2633665-1352343D,"2,047.40",THOMPSON & HOWE LTD.
Adults Wellbeing and Health,Head of Adults,Third Party Payments,473101,Purchase of Care,15-Aug-2013,2633665-1352461D,"1,238.20",THOMPSON & HOWE LTD.
Adults Wellbeing and Health,Head of Adults,Third Party Payments,473101,Purchase of Care,15-Aug-2013,2633665-1352534D,"2,229.80",THOMPSON & HOWE LTD.
Adults Wellbeing and Health,Head of Adults,Third Party Payments,473101,Purchase of Care,15-Aug-2013,2633665-1352563D,887.20,THOMPSON & HOWE LTD.
Adults Wellbeing and Health,Head of Adults,Third Party Payments,473101,Purchase of Care,15-Aug-2013,2633665-1352612D,629.56,THOMPSON & HOWE LTD.
Adults Wellbeing and Health,Head of Adults,Third Party Payments,473101,Purchase of Care,15-Aug-2013,2633665-1352618D,683.00,THOMPSON & HOWE LTD.
Adults Wellbeing and Health,Head of Adults,Third Party Payments,473101,Purchase of Care,15-Aug-2013,2633665-1352639D,"2,161.60",THOMPSON & HOWE LTD.
Adults Wellbeing and Health,Head of Adults,Third Party Payments,473101,Purchase of Care,15-Aug-2013,2633665-1352691D,"1,741.92",THOMPSON & HOWE LTD.
Adults Wellbeing and Health,Head of Adults,Third Party Payments,473101,Purchase of Care,15-Aug-2013,2633665-1352781D,533.12,THOMPSON & HOWE LTD.
Adults Wellbeing and Health,Head of Adults,Third Party Payments,473101,Purchase of Care,15-Aug-2013,2633665-1352850D,606.40,THOMPSON & HOWE LTD.
Adults Wellbeing and Health,Head of Adults,Third Party Payments,473101,Purchase of Care,15-Aug-2013,2633665-1352956D,554.72,THOMPSON & HOWE LTD.
Adults Wellbeing and Health,Head of Adults,Third Party Payments,473101,Purchase of Care,15-Aug-2013,2633665-1352969D,"2,044.80",THOMPSON & HOWE LTD.
Adults Wellbeing and Health,Head of Adults,Third Party Payments,473101,Purchase of Care,15-Aug-2013,2633665-1353016D,628.60,THOMPSON & HOWE LTD.
Adults Wellbeing and Health,Head of Adults,Third Party Payments,473101,Purchase of Care,15-Aug-2013,2633665-1353034D,"1,534.60",THOMPSON & HOWE LTD.
Adults Wellbeing and Health,Head of Adults,Third Party Payments,473101,Purchase of Care,15-Aug-2013,2633665-1353041D,891.12,THOMPSON & HOWE LTD.
Adults Wellbeing and Health,Head of Adults,Third Party Payments,473101,Purchase of Care,15-Aug-2013,2633665-1353056D,844.32,THOMPSON & HOWE LTD.
Adults Wellbeing and Health,Head of Adults,Third Party Payments,473101,Purchase of Care,15-Aug-2013,2633665-1353080D,"1,536.20",THOMPSON & HOWE LTD.
Adults Wellbeing and Health,Head of Adults,Third Party Payments,473101,Purchase of Care,15-Aug-2013,2633665-1353118D,533.76,THOMPSON & HOWE LTD.
Adults Wellbeing and Health,Head of Adults,Third Party Payments,473101,Purchase of Care,15-Aug-2013,2633665-1353141D,545.92,THOMPSON & HOWE LTD.
Adults Wellbeing and Health,Head of Adults,Third Party Payments,473101,Purchase of Care,15-Aug-2013,2633665-1353420D,705.00,THOMPSON & HOWE LTD.
Adults Wellbeing and Health,Head of Adults,Third Party Payments,473101,Purchase of Care,15-Aug-2013,2633665-1353440D,"1,263.20",THOMPSON & HOWE LTD.
Adults Wellbeing and Health,Head of Adults,Third Party Payments,473101,Purchase of Care,15-Aug-2013,2633665-1353449D,"1,025.64",THOMPSON & HOWE LTD.
Adults Wellbeing and Health,Head of Adults,Third Party Payments,473101,Purchase of Care,15-Aug-2013,2633665-1353455D,580.00,THOMPSON & HOWE LTD.
Adults Wellbeing and Health,Head of Adults,Third Party Payments,473101,Purchase of Care,15-Aug-2013,2633665-1353539D,"1,296.12",THOMPSON & HOWE LTD.
Adults Wellbeing and Health,Head of Adults,Third Party Payments,473101,Purchase of Care,15-Aug-2013,2633665-1353736D,"1,508.40",THOMPSON & HOWE LTD.
Adults Wellbeing and Health,Head of Adults,Third Party Payments,473101,Purchase of Care,15-Aug-2013,2633665-1353915D,"1,111.80",THOMPSON & HOWE LTD.
Adults Wellbeing and Health,Head of Adults,Third Party Payments,473101,Purchase of Care,15-Aug-2013,2633665-1354275D,888.96,THOMPSON & HOWE LTD.
Adults Wellbeing and Health,Head of Adults,Third Party Payments,473101,Purchase of Care,15-Aug-2013,2633665-1354529D,526.24,THOMPSON & HOWE LTD.
Adults Wellbeing and Health,Head of Adults,Third Party Payments,473101,Purchase of Care,15-Aug-2013,2633665-1354750D,"2,013.00",THOMPSON & HOWE LTD.
Adults Wellbeing and Health,Head of Adults,Third Party Payments,473101,Purchase of Care,15-Aug-2013,2633665-1354775D,675.52,THOMPSON & HOWE LTD.
Adults Wellbeing and Health,Head of Adults,Third Party Payments,473101,Purchase of Care,15-Aug-2013,2633665-1355375D,"1,239.52",THOMPSON & HOWE LTD.
Adults Wellbeing and Health,Head of Adults,Third Party Payments,473101,Purchase of Care,15-Aug-2013,2633665-1355575D,542.08,THOMPSON & HOWE LTD.
Adults Wellbeing and Health,Head of Adults,Third Party Payments,473101,Purchase of Care,15-Aug-2013,2633665-1355899D,523.20,THOMPSON & HOWE LTD.
Adults Wellbeing and Health,Head of Adults,Third Party Payments,473101,Purchase of Care,15-Aug-2013,2633665-1356424D,"1,262.08",THOMPSON & HOWE LTD.
Adults Wellbeing and Health,Head of Adults,Third Party Payments,473101,Purchase of Care,15-Aug-2013,2633665-1356658D,"1,944.72",THOMPSON & HOWE LTD.
Adults Wellbeing and Health,Head of Adults,Third Party Payments,473101,Purchase of Care,15-Aug-2013,2633665-1357725D,911.00,THOMPSON & HOWE LTD.
Adults Wellbeing and Health,Head of Adults,Third Party Payments,473101,Purchase of Care,15-Aug-2013,2633665-1357768D,"1,914.00",THOMPSON & HOWE LTD.
Adults Wellbeing and Health,Head of Adults,Third Party Payments,473101,Purchase of Care,15-Aug-2013,2633665-1357770D,"1,958.80",THOMPSON & HOWE LTD.
Adults Wellbeing and Health,Head of Adults,Third Party Payments,473101,Purchase of Care,15-Aug-2013,2633665-1357778D,586.08,THOMPSON & HOWE LTD.
Adults Wellbeing and Health,Head of Adults,Third Party Payments,473101,Purchase of Care,15-Aug-2013,2633665-1357781D,"1,046.00",THOMPSON & HOWE LTD.
Adults Wellbeing and Health,Head of Adults,Third Party Payments,473101,Purchase of Care,15-Aug-2013,2633665-1357785D,"1,079.20",THOMPSON & HOWE LTD.
Adults Wellbeing and Health,Head of Adults,Third Party Payments,473101,Purchase of Care,15-Aug-2013,2633665-1357786D,586.40,THOMPSON & HOWE LTD.
Adults Wellbeing and Health,Head of Adults,Third Party Payments,473101,Purchase of Care,15-Aug-2013,2633665-1357789D,836.16,THOMPSON & HOWE LTD.
Adults Wellbeing and Health,Head of Adults,Third Party Payments,473101,Purchase of Care,15-Aug-2013,2633665-1357792D,906.12,THOMPSON & HOWE LTD.
Adults Wellbeing and Health,Head of Adults,Third Party Payments,473101,Purchase of Care,15-Aug-2013,2633665-1357794D,598.00,THOMPSON & HOWE LTD.
Adults Wellbeing and Health,Head of Adults,Third Party Payments,473101,Purchase of Care,15-Aug-2013,2633665-1357796D,997.20,THOMPSON & HOWE LTD.
Adults Wellbeing and Health,Head of Adults,Third Party Payments,473101,Purchase of Care,15-Aug-2013,2633665-1357797D,"1,657.00",THOMPSON & HOWE LTD.
Adults Wellbeing and Health,Head of Adults,Third Party Payments,473101,Purchase of Care,15-Aug-2013,2633665-1357799D,644.80,THOMPSON & HOWE LTD.
Adults Wellbeing and Health,Head of Adults,Third Party Payments,473101,Purchase of Care,15-Aug-2013,2633665-1357800D,785.20,THOMPSON & HOWE LTD.
Adults Wellbeing and Health,Head of Adults,Third Party Payments,473101,Purchase of Care,15-Aug-2013,2633665-1357804D,628.80,THOMPSON & HOWE LTD.
Adults Wellbeing and Health,Head of Adults,Third Party Payments,473101,Purchase of Care,15-Aug-2013,2633665-1357810D,"1,520.80",THOMPSON & HOWE LTD.
Adults Wellbeing and Health,Head of Adults,Third Party Payments,473101,Purchase of Care,15-Aug-2013,2633665-1357811D,792.20,THOMPSON & HOWE LTD.
Adults Wellbeing and Health,Head of Adults,Third Party Payments,473101,Purchase of Care,15-Aug-2013,2633666-1351851D,"4,742.00",THORNBECK COLLEGE.
Adults Wellbeing and Health,Head of Adults,Third Party Payments,473101,Purchase of Care,15-Aug-2013,2633666-1353097D,"2,630.40",THORNBECK COLLEGE.
Adults Wellbeing and Health,Head of Adults,Third Party Payments,473101,Purchase of Care,15-Aug-2013,2633666-1353129D,"4,504.20",THORNBECK COLLEGE.
Adults Wellbeing and Health,Head of Adults,Third Party Payments,473101,Purchase of Care,15-Aug-2013,2633666-1353171D,"3,527.80",THORNBECK COLLEGE.
Adults Wellbeing and Health,Head of Adults,Third Party Payments,473101,Purchase of Care,15-Aug-2013,2633666-1353316D,"2,812.60",THORNBECK COLLEGE.
Adults Wellbeing and Health,Head of Adults,Third Party Payments,473101,Purchase of Care,15-Aug-2013,2633736-1357596D,"1,514.40",VOID SERVICES LTD.
Adults Wellbeing and Health,Head of Adults,Third Party Payments,473101,Purchase of Care,15-Aug-2013,2633736-1357598D,815.20,VOID SERVICES LTD.
Adults Wellbeing and Health,Head of Adults,Third Party Payments,473101,Purchase of Care,15-Aug-2013,2633736-1357600D,"1,836.88",VOID SERVICES LTD.
Adults Wellbeing and Health,Head of Adults,Third Party Payments,473101,Purchase of Care,15-Aug-2013,2633736-1357601D,553.52,VOID SERVICES LTD.
Adults Wellbeing and Health,Head of Adults,Third Party Payments,473101,Purchase of Care,15-Aug-2013,2633736-1357602D,"1,222.80",VOID SERVICES LTD.
Adults Wellbeing and Health,Head of Adults,Third Party Payments,473101,Purchase of Care,15-Aug-2013,2633749-1354788D,555.04,WEAR VALLEY ANGLING.
Adults Wellbeing and Health,Head of Adults,Third Party Payments,473101,Purchase of Care,15-Aug-2013,2633776-1351803D,620.00,WOODCRAFT FOR LANDSCAPES.
Adults Wellbeing and Health,Head of Adults,Third Party Payments,473101,Purchase of Care,15-Aug-2013,2633776-1351969D,620.00,WOODCRAFT FOR LANDSCAPES.
Adults Wellbeing and Health,Head of Adults,Third Party Payments,473101,Purchase of Care,15-Aug-2013,2633776-1352622D,790.00,WOODCRAFT FOR LANDSCAPES.
Adults Wellbeing and Health,Head of Adults,Third Party Payments,473101,Purchase of Care,15-Aug-2013,2633787-1353046D,673.40,YODEN LODGE CARE HOME.
Adults Wellbeing and Health,Head of Adults,Third Party Payments,472101,Purchase of Care,15-Aug-2013,2631569-1351348H,539.72,360 HEALTHCARE LTD.
Adults Wellbeing and Health,Head of Adults,Third Party Payments,472101,Purchase of Care,15-Aug-2013,2631569-1351539H,887.20,360 HEALTHCARE LTD.
Adults Wellbeing and Health,Head of Adults,Third Party Payments,472101,Purchase of Care,15-Aug-2013,2631569-1351592H,"1,035.08",360 HEALTHCARE LTD.
Adults Wellbeing and Health,Head of Adults,Third Party Payments,472101,Purchase of Care,15-Aug-2013,2631569-1352034H,"1,205.12",360 HEALTHCARE LTD.
Adults Wellbeing and Health,Head of Adults,Third Party Payments,472101,Purchase of Care,15-Aug-2013,2631569-1352041H,920.47,360 HEALTHCARE LTD.
Adults Wellbeing and Health,Head of Adults,Third Party Payments,472101,Purchase of Care,15-Aug-2013,2631569-1353860H,687.60,360 HEALTHCARE LTD.
Adults Wellbeing and Health,Head of Adults,Third Party Payments,472101,Purchase of Care,15-Aug-2013,2631569-1353960H,809.57,360 HEALTHCARE LTD.
Adults Wellbeing and Health,Head of Adults,Third Party Payments,472101,Purchase of Care,15-Aug-2013,2631569-1354116H,510.16,360 HEALTHCARE LTD.
Adults Wellbeing and Health,Head of Adults,Third Party Payments,472101,Purchase of Care,15-Aug-2013,2631569-1354364H,632.12,360 HEALTHCARE LTD.
Adults Wellbeing and Health,Head of Adults,Third Party Payments,472101,Purchase of Care,15-Aug-2013,2631569-1354466H,"1,127.48",360 HEALTHCARE LTD.
Adults Wellbeing and Health,Head of Adults,Third Party Payments,472101,Purchase of Care,15-Aug-2013,2631569-1354721H,"1,449.08",360 HEALTHCARE LTD.
Adults Wellbeing and Health,Head of Adults,Third Party Payments,472101,Purchase of Care,15-Aug-2013,2631569-1354854H,953.76,360 HEALTHCARE LTD.
Adults Wellbeing and Health,Head of Adults,Third Party Payments,472101,Purchase of Care,15-Aug-2013,2631569-1354880H,508.30,360 HEALTHCARE LTD.
Adults Wellbeing and Health,Head of Adults,Third Party Payments,472101,Purchase of Care,15-Aug-2013,2631569-1354963H,765.22,360 HEALTHCARE LTD.
Adults Wellbeing and Health,Head of Adults,Third Party Payments,472101,Purchase of Care,15-Aug-2013,2631569-1355034H,635.84,360 HEALTHCARE LTD.
Adults Wellbeing and Health,Head of Adults,Third Party Payments,472101,Purchase of Care,15-Aug-2013,2631569-1355215H,754.12,360 HEALTHCARE LTD.
Adults Wellbeing and Health,Head of Adults,Third Party Payments,472101,Purchase of Care,15-Aug-2013,2631569-1355842H,"1,228.23",360 HEALTHCARE LTD.
Adults Wellbeing and Health,Head of Adults,Third Party Payments,472101,Purchase of Care,15-Aug-2013,2631569-1355878H,672.80,360 HEALTHCARE LTD.
Adults Wellbeing and Health,Head of Adults,Third Party Payments,472101,Purchase of Care,15-Aug-2013,2631569-1356320H,621.04,360 HEALTHCARE LTD.
Adults Wellbeing and Health,Head of Adults,Third Party Payments,472101,Purchase of Care,15-Aug-2013,2631569-1356919H,573.00,360 HEALTHCARE LTD.
Adults Wellbeing and Health,Head of Adults,Third Party Payments,472101,Purchase of Care,15-Aug-2013,2631569-1357007H,931.56,360 HEALTHCARE LTD.
Adults Wellbeing and Health,Head of Adults,Third Party Payments,472101,Purchase of Care,15-Aug-2013,2631569-1357013H,543.40,360 HEALTHCARE LTD.
Adults Wellbeing and Health,Head of Adults,Third Party Payments,472101,Purchase of Care,15-Aug-2013,2631569-1357196H,931.56,360 HEALTHCARE LTD.
Adults Wellbeing and Health,Head of Adults,Third Party Payments,472101,Purchase of Care,15-Aug-2013,2631569-1357270H,621.04,360 HEALTHCARE LTD.
Adults Wellbeing and Health,Head of Adults,Third Party Payments,472101,Purchase of Care,15-Aug-2013,2631569-1357300H,"1,231.00",360 HEALTHCARE LTD.
Adults Wellbeing and Health,Head of Adults,Third Party Payments,472101,Purchase of Care,15-Aug-2013,2631569-1357378H,618.28,360 HEALTHCARE LTD.
Adults Wellbeing and Health,Head of Adults,Third Party Payments,472101,Purchase of Care,15-Aug-2013,2631584-1352318H,"3,964.00",ACCEPT CARE LTD.
Adults Wellbeing and Health,Head of Adults,Third Party Payments,472101,Purchase of Care,15-Aug-2013,2631584-1353314H,672.00,ACCEPT CARE LTD.
Adults Wellbeing and Health,Head of Adults,Third Party Payments,472101,Purchase of Care,15-Aug-2013,2632000-1351408H,"1,386.24",APPLEJACK HOME CARE LTD.
Adults Wellbeing and Health,Head of Adults,Third Party Payments,472101,Purchase of Care,15-Aug-2013,2632000-1353395H,812.34,APPLEJACK HOME CARE LTD.
Adults Wellbeing and Health,Head of Adults,Third Party Payments,472101,Purchase of Care,15-Aug-2013,2632000-1353472H,532.32,APPLEJACK HOME CARE LTD.
Adults Wellbeing and Health,Head of Adults,Third Party Payments,472101,Purchase of Care,15-Aug-2013,2632000-1353619H,602.25,APPLEJACK HOME CARE LTD.
Adults Wellbeing and Health,Head of Adults,Third Party Payments,472101,Purchase of Care,15-Aug-2013,2632000-1353632H,787.74,APPLEJACK HOME CARE LTD.
Adults Wellbeing and Health,Head of Adults,Third Party Payments,472101,Purchase of Care,15-Aug-2013,2632000-1354077H,669.08,APPLEJACK HOME CARE LTD.
Adults Wellbeing and Health,Head of Adults,Third Party Payments,472101,Purchase of Care,15-Aug-2013,2632000-1354469H,606.24,APPLEJACK HOME CARE LTD.
Adults Wellbeing and Health,Head of Adults,Third Party Payments,472101,Purchase of Care,15-Aug-2013,2632000-1354777H,654.32,APPLEJACK HOME CARE LTD.
Adults Wellbeing and Health,Head of Adults,Third Party Payments,472101,Purchase of Care,15-Aug-2013,2632000-1354798H,"1,563.68",APPLEJACK HOME CARE LTD.
Adults Wellbeing and Health,Head of Adults,Third Party Payments,472101,Purchase of Care,15-Aug-2013,2632000-1354858H,728.28,APPLEJACK HOME CARE LTD.
Adults Wellbeing and Health,Head of Adults,Third Party Payments,472101,Purchase of Care,15-Aug-2013,2632000-1355209H,584.08,APPLEJACK HOME CARE LTD.
Adults Wellbeing and Health,Head of Adults,Third Party Payments,472101,Purchase of Care,15-Aug-2013,2632000-1355319H,769.83,APPLEJACK HOME CARE LTD.
Adults Wellbeing and Health,Head of Adults,Third Party Payments,472101,Purchase of Care,15-Aug-2013,2632000-1355331H,726.41,APPLEJACK HOME CARE LTD.
Adults Wellbeing and Health,Head of Adults,Third Party Payments,472101,Purchase of Care,15-Aug-2013,2632000-1355679H,"1,079.44",APPLEJACK HOME CARE LTD.
Adults Wellbeing and Health,Head of Adults,Third Party Payments,472101,Purchase of Care,15-Aug-2013,2632000-1355695H,713.44,APPLEJACK HOME CARE LTD.
Adults Wellbeing and Health,Head of Adults,Third Party Payments,472101,Purchase of Care,15-Aug-2013,2632000-1355837H,517.52,APPLEJACK HOME CARE LTD.
Adults Wellbeing and Health,Head of Adults,Third Party Payments,472101,Purchase of Care,15-Aug-2013,2632000-1355953H,772.20,APPLEJACK HOME CARE LTD.
Adults Wellbeing and Health,Head of Adults,Third Party Payments,472101,Purchase of Care,15-Aug-2013,2632000-1356129H,577.80,APPLEJACK HOME CARE LTD.
Adults Wellbeing and Health,Head of Adults,Third Party Payments,472101,Purchase of Care,15-Aug-2013,2632000-1356135H,576.68,APPLEJACK HOME CARE LTD.
Adults Wellbeing and Health,Head of Adults,Third Party Payments,472101,Purchase of Care,15-Aug-2013,2632000-1356188H,733.04,APPLEJACK HOME CARE LTD.
Adults Wellbeing and Health,Head of Adults,Third Party Payments,472101,Purchase of Care,15-Aug-2013,2632000-1356190H,669.08,APPLEJACK HOME CARE LTD.
Adults Wellbeing and Health,Head of Adults,Third Party Payments,472101,Purchase of Care,15-Aug-2013,2632000-1356249H,628.44,APPLEJACK HOME CARE LTD.
Adults Wellbeing and Health,Head of Adults,Third Party Payments,472101,Purchase of Care,15-Aug-2013,2632000-1356252H,539.72,APPLEJACK HOME CARE LTD.
Adults Wellbeing and Health,Head of Adults,Third Party Payments,472101,Purchase of Care,15-Aug-2013,2632000-1356408H,709.76,APPLEJACK HOME CARE LTD.
Adults Wellbeing and Health,Head of Adults,Third Party Payments,472101,Purchase of Care,15-Aug-2013,2632000-1356439H,681.12,APPLEJACK HOME CARE LTD.
Adults Wellbeing and Health,Head of Adults,Third Party Payments,472101,Purchase of Care,15-Aug-2013,2632000-1356697H,505.68,APPLEJACK HOME CARE LTD.
Adults Wellbeing and Health,Head of Adults,Third Party Payments,472101,Purchase of Care,15-Aug-2013,2632000-1356958H,529.56,APPLEJACK HOME CARE LTD.
Adults Wellbeing and Health,Head of Adults,Third Party Payments,472101,Purchase of Care,15-Aug-2013,2632000-1356971H,"1,724.24",APPLEJACK HOME CARE LTD.
Adults Wellbeing and Health,Head of Adults,Third Party Payments,472101,Purchase of Care,15-Aug-2013,2632000-1357088H,505.45,APPLEJACK HOME CARE LTD.
Adults Wellbeing and Health,Head of Adults,Third Party Payments,472101,Purchase of Care,15-Aug-2013,2632000-1357138H,945.70,APPLEJACK HOME CARE LTD.
Adults Wellbeing and Health,Head of Adults,Third Party Payments,472101,Purchase of Care,15-Aug-2013,2632000-1357217H,"1,543.56",APPLEJACK HOME CARE LTD.
Adults Wellbeing and Health,Head of Adults,Third Party Payments,472101,Purchase of Care,15-Aug-2013,2632000-1357359H,539.72,APPLEJACK HOME CARE LTD.
Adults Wellbeing and Health,Head of Adults,Third Party Payments,472101,Purchase of Care,15-Aug-2013,2632000-1357373H,724.56,APPLEJACK HOME CARE LTD.
Adults Wellbeing and Health,Head of Adults,Third Party Payments,472101,Purchase of Care,15-Aug-2013,2632000-1357381H,788.98,APPLEJACK HOME CARE LTD.
Adults Wellbeing and Health,Head of Adults,Third Party Payments,472101,Purchase of Care,15-Aug-2013,2632000-1357382H,907.65,APPLEJACK HOME CARE LTD.
Adults Wellbeing and Health,Head of Adults,Third Party Payments,472101,Purchase of Care,15-Aug-2013,2632000-1357492H,"1,028.61",APPLEJACK HOME CARE LTD.
Adults Wellbeing and Health,Head of Adults,Third Party Payments,472101,Purchase of Care,15-Aug-2013,2632000-1357522H,595.50,APPLEJACK HOME CARE LTD.
Adults Wellbeing and Health,Head of Adults,Third Party Payments,472101,Purchase of Care,15-Aug-2013,2632095-1351935H,640.00,BOLTONSHAW HOMECARE.
Adults Wellbeing and Health,Head of Adults,Third Party Payments,472101,Purchase of Care,15-Aug-2013,2632095-1352373H,"1,951.80",BOLTONSHAW HOMECARE.
Adults Wellbeing and Health,Head of Adults,Third Party Payments,472101,Purchase of Care,15-Aug-2013,2632095-1353261H,840.00,BOLTONSHAW HOMECARE.
Adults Wellbeing and Health,Head of Adults,Third Party Payments,472101,Purchase of Care,15-Aug-2013,2632143-1353731H,783.35,CARE CONCERN (DURHAM) LTD.
Adults Wellbeing and Health,Head of Adults,Third Party Payments,472101,Purchase of Care,15-Aug-2013,2632143-1354344H,538.04,CARE CONCERN (DURHAM) LTD.
Adults Wellbeing and Health,Head of Adults,Third Party Payments,472101,Purchase of Care,15-Aug-2013,2632143-1356045H,"1,397.87",CARE CONCERN (DURHAM) LTD.
Adults Wellbeing and Health,Head of Adults,Third Party Payments,472101,Purchase of Care,15-Aug-2013,2632143-1356538H,"1,189.53",CARE CONCERN (DURHAM) LTD.
Adults Wellbeing and Health,Head of Adults,Third Party Payments,472101,Purchase of Care,15-Aug-2013,2632143-1357712H,717.40,CARE CONCERN (DURHAM) LTD.
Adults Wellbeing and Health,Head of Adults,Third Party Payments,472101,Purchase of Care,15-Aug-2013,2632146-1350747H,598.86,CAREWATCH (DURHAM & EASINGTON) FASTFLOW ACC.
Adults Wellbeing and Health,Head of Adults,Third Party Payments,472101,Purchase of Care,15-Aug-2013,2632146-1351473H,602.56,CAREWATCH (DURHAM & EASINGTON) FASTFLOW ACC.
Adults Wellbeing and Health,Head of Adults,Third Party Payments,472101,Purchase of Care,15-Aug-2013,2632146-1351478H,"1,508.24",CAREWATCH (DURHAM & EASINGTON) FASTFLOW ACC.
Adults Wellbeing and Health,Head of Adults,Third Party Payments,472101,Purchase of Care,15-Aug-2013,2632146-1351485H,"1,596.96",CAREWATCH (DURHAM & EASINGTON) FASTFLOW ACC.
Adults Wellbeing and Health,Head of Adults,Third Party Payments,472101,Purchase of Care,15-Aug-2013,2632146-1351509H,"1,474.96",CAREWATCH (DURHAM & EASINGTON) FASTFLOW ACC.
Adults Wellbeing and Health,Head of Adults,Third Party Payments,472101,Purchase of Care,15-Aug-2013,2632146-1351520H,654.32,CAREWATCH (DURHAM & EASINGTON) FASTFLOW ACC.
Adults Wellbeing and Health,Head of Adults,Third Party Payments,472101,Purchase of Care,15-Aug-2013,2632146-1351561H,887.20,CAREWATCH (DURHAM & EASINGTON) FASTFLOW ACC.
Adults Wellbeing and Health,Head of Adults,Third Party Payments,472101,Purchase of Care,15-Aug-2013,2632146-1351684H,"1,752.24",CAREWATCH (DURHAM & EASINGTON) FASTFLOW ACC.
Adults Wellbeing and Health,Head of Adults,Third Party Payments,472101,Purchase of Care,15-Aug-2013,2632146-1352019H,761.50,CAREWATCH (DURHAM & EASINGTON) FASTFLOW ACC.
Adults Wellbeing and Health,Head of Adults,Third Party Payments,472101,Purchase of Care,15-Aug-2013,2632146-1352038H,561.88,CAREWATCH (DURHAM & EASINGTON) FASTFLOW ACC.
Adults Wellbeing and Health,Head of Adults,Third Party Payments,472101,Purchase of Care,15-Aug-2013,2632146-1352043H,501.83,CAREWATCH (DURHAM & EASINGTON) FASTFLOW ACC.
Adults Wellbeing and Health,Head of Adults,Third Party Payments,472101,Purchase of Care,15-Aug-2013,2632146-1352120H,591.48,CAREWATCH (DURHAM & EASINGTON) FASTFLOW ACC.
Adults Wellbeing and Health,Head of Adults,Third Party Payments,472101,Purchase of Care,15-Aug-2013,2632146-1352165H,"1,338.20",CAREWATCH (DURHAM & EASINGTON) FASTFLOW ACC.
Adults Wellbeing and Health,Head of Adults,Third Party Payments,472101,Purchase of Care,15-Aug-2013,2632146-1352576H,"1,574.80",CAREWATCH (DURHAM & EASINGTON) FASTFLOW ACC.
Adults Wellbeing and Health,Head of Adults,Third Party Payments,472101,Purchase of Care,15-Aug-2013,2632146-1352608H,"2,972.12",CAREWATCH (DURHAM & EASINGTON) FASTFLOW ACC.
Adults Wellbeing and Health,Head of Adults,Third Party Payments,472101,Purchase of Care,15-Aug-2013,2632146-1352652H,532.32,CAREWATCH (DURHAM & EASINGTON) FASTFLOW ACC.
Adults Wellbeing and Health,Head of Adults,Third Party Payments,472101,Purchase of Care,15-Aug-2013,2632146-1352906H,"1,120.08",CAREWATCH (DURHAM & EASINGTON) FASTFLOW ACC.
Adults Wellbeing and Health,Head of Adults,Third Party Payments,472101,Purchase of Care,15-Aug-2013,2632146-1352929H,"1,419.53",CAREWATCH (DURHAM & EASINGTON) FASTFLOW ACC.
Adults Wellbeing and Health,Head of Adults,Third Party Payments,472101,Purchase of Care,15-Aug-2013,2632146-1352944H,"1,585.87",CAREWATCH (DURHAM & EASINGTON) FASTFLOW ACC.
Adults Wellbeing and Health,Head of Adults,Third Party Payments,472101,Purchase of Care,15-Aug-2013,2632146-1352945H,633.98,CAREWATCH (DURHAM & EASINGTON) FASTFLOW ACC.
Adults Wellbeing and Health,Head of Adults,Third Party Payments,472101,Purchase of Care,15-Aug-2013,2632146-1352975H,776.32,CAREWATCH (DURHAM & EASINGTON) FASTFLOW ACC.
Adults Wellbeing and Health,Head of Adults,Third Party Payments,472101,Purchase of Care,15-Aug-2013,2632146-1353003H,665.40,CAREWATCH (DURHAM & EASINGTON) FASTFLOW ACC.
Adults Wellbeing and Health,Head of Adults,Third Party Payments,472101,Purchase of Care,15-Aug-2013,2632146-1353005H,665.40,CAREWATCH (DURHAM & EASINGTON) FASTFLOW ACC.
Adults Wellbeing and Health,Head of Adults,Third Party Payments,472101,Purchase of Care,15-Aug-2013,2632146-1353014H,543.42,CAREWATCH (DURHAM & EASINGTON) FASTFLOW ACC.
Adults Wellbeing and Health,Head of Adults,Third Party Payments,472101,Purchase of Care,15-Aug-2013,2632146-1353123H,656.16,CAREWATCH (DURHAM & EASINGTON) FASTFLOW ACC.
Adults Wellbeing and Health,Head of Adults,Third Party Payments,472101,Purchase of Care,15-Aug-2013,2632146-1353127H,646.92,CAREWATCH (DURHAM & EASINGTON) FASTFLOW ACC.
Adults Wellbeing and Health,Head of Adults,Third Party Payments,472101,Purchase of Care,15-Aug-2013,2632146-1353134H,569.28,CAREWATCH (DURHAM & EASINGTON) FASTFLOW ACC.
Adults Wellbeing and Health,Head of Adults,Third Party Payments,472101,Purchase of Care,15-Aug-2013,2632146-1353223H,820.68,CAREWATCH (DURHAM & EASINGTON) FASTFLOW ACC.
Adults Wellbeing and Health,Head of Adults,Third Party Payments,472101,Purchase of Care,15-Aug-2013,2632146-1353260H,842.83,CAREWATCH (DURHAM & EASINGTON) FASTFLOW ACC.
Adults Wellbeing and Health,Head of Adults,Third Party Payments,472101,Purchase of Care,15-Aug-2013,2632146-1353266H,510.16,CAREWATCH (DURHAM & EASINGTON) FASTFLOW ACC.
Adults Wellbeing and Health,Head of Adults,Third Party Payments,472101,Purchase of Care,15-Aug-2013,2632146-1353268H,532.33,CAREWATCH (DURHAM & EASINGTON) FASTFLOW ACC.
Adults Wellbeing and Health,Head of Adults,Third Party Payments,472101,Purchase of Care,15-Aug-2013,2632146-1353295H,887.20,CAREWATCH (DURHAM & EASINGTON) FASTFLOW ACC.
Adults Wellbeing and Health,Head of Adults,Third Party Payments,472101,Purchase of Care,15-Aug-2013,2632146-1353343H,"1,060.96",CAREWATCH (DURHAM & EASINGTON) FASTFLOW ACC.
Adults Wellbeing and Health,Head of Adults,Third Party Payments,472101,Purchase of Care,15-Aug-2013,2632146-1353443H,"2,257.73",CAREWATCH (DURHAM & EASINGTON) FASTFLOW ACC.
Adults Wellbeing and Health,Head of Adults,Third Party Payments,472101,Purchase of Care,15-Aug-2013,2632146-1353580H,"1,086.84",CAREWATCH (DURHAM & EASINGTON) FASTFLOW ACC.
Adults Wellbeing and Health,Head of Adults,Third Party Payments,472101,Purchase of Care,15-Aug-2013,2632146-1353610H,"1,206.03",CAREWATCH (DURHAM & EASINGTON) FASTFLOW ACC.
Adults Wellbeing and Health,Head of Adults,Third Party Payments,472101,Purchase of Care,15-Aug-2013,2632146-1353648H,"1,242.08",CAREWATCH (DURHAM & EASINGTON) FASTFLOW ACC.
Adults Wellbeing and Health,Head of Adults,Third Party Payments,472101,Purchase of Care,15-Aug-2013,2632146-1353653H,"1,397.36",CAREWATCH (DURHAM & EASINGTON) FASTFLOW ACC.
Adults Wellbeing and Health,Head of Adults,Third Party Payments,472101,Purchase of Care,15-Aug-2013,2632146-1353673H,602.56,CAREWATCH (DURHAM & EASINGTON) FASTFLOW ACC.
Adults Wellbeing and Health,Head of Adults,Third Party Payments,472101,Purchase of Care,15-Aug-2013,2632146-1353750H,"1,242.08",CAREWATCH (DURHAM & EASINGTON) FASTFLOW ACC.
Adults Wellbeing and Health,Head of Adults,Third Party Payments,472101,Purchase of Care,15-Aug-2013,2632146-1353871H,"1,186.63",CAREWATCH (DURHAM & EASINGTON) FASTFLOW ACC.
Adults Wellbeing and Health,Head of Adults,Third Party Payments,472101,Purchase of Care,15-Aug-2013,2632146-1353882H,"1,020.00",CAREWATCH (DURHAM & EASINGTON) FASTFLOW ACC.
Adults Wellbeing and Health,Head of Adults,Third Party Payments,472101,Purchase of Care,15-Aug-2013,2632146-1353907H,"1,181.09",CAREWATCH (DURHAM & EASINGTON) FASTFLOW ACC.
Adults Wellbeing and Health,Head of Adults,Third Party Payments,472101,Purchase of Care,15-Aug-2013,2632146-1353983H,"1,168.16",CAREWATCH (DURHAM & EASINGTON) FASTFLOW ACC.
Adults Wellbeing and Health,Head of Adults,Third Party Payments,472101,Purchase of Care,15-Aug-2013,2632146-1354242H,524.92,CAREWATCH (DURHAM & EASINGTON) FASTFLOW ACC.
Adults Wellbeing and Health,Head of Adults,Third Party Payments,472101,Purchase of Care,15-Aug-2013,2632146-1354263H,"1,542.92",CAREWATCH (DURHAM & EASINGTON) FASTFLOW ACC.
Adults Wellbeing and Health,Head of Adults,Third Party Payments,472101,Purchase of Care,15-Aug-2013,2632146-1354318H,665.40,CAREWATCH (DURHAM & EASINGTON) FASTFLOW ACC.
Adults Wellbeing and Health,Head of Adults,Third Party Payments,472101,Purchase of Care,15-Aug-2013,2632146-1354347H,"1,630.24",CAREWATCH (DURHAM & EASINGTON) FASTFLOW ACC.
Adults Wellbeing and Health,Head of Adults,Third Party Payments,472101,Purchase of Care,15-Aug-2013,2632146-1354465H,853.92,CAREWATCH (DURHAM & EASINGTON) FASTFLOW ACC.
Adults Wellbeing and Health,Head of Adults,Third Party Payments,472101,Purchase of Care,15-Aug-2013,2632146-1354497H,532.32,CAREWATCH (DURHAM & EASINGTON) FASTFLOW ACC.
Adults Wellbeing and Health,Head of Adults,Third Party Payments,472101,Purchase of Care,15-Aug-2013,2632146-1354607H,517.52,CAREWATCH (DURHAM & EASINGTON) FASTFLOW ACC.
Adults Wellbeing and Health,Head of Adults,Third Party Payments,472101,Purchase of Care,15-Aug-2013,2632146-1354908H,646.92,CAREWATCH (DURHAM & EASINGTON) FASTFLOW ACC.
Adults Wellbeing and Health,Head of Adults,Third Party Payments,472101,Purchase of Care,15-Aug-2013,2632146-1354954H,507.38,CAREWATCH (DURHAM & EASINGTON) FASTFLOW ACC.
Adults Wellbeing and Health,Head of Adults,Third Party Payments,472101,Purchase of Care,15-Aug-2013,2632146-1355008H,"1,397.34",CAREWATCH (DURHAM & EASINGTON) FASTFLOW ACC.
Adults Wellbeing and Health,Head of Adults,Third Party Payments,472101,Purchase of Care,15-Aug-2013,2632146-1355076H,528.62,CAREWATCH (DURHAM & EASINGTON) FASTFLOW ACC.
Adults Wellbeing and Health,Head of Adults,Third Party Payments,472101,Purchase of Care,15-Aug-2013,2632146-1355105H,"1,086.84",CAREWATCH (DURHAM & EASINGTON) FASTFLOW ACC.
Adults Wellbeing and Health,Head of Adults,Third Party Payments,472101,Purchase of Care,15-Aug-2013,2632146-1355141H,"1,397.36",CAREWATCH (DURHAM & EASINGTON) FASTFLOW ACC.
Adults Wellbeing and Health,Head of Adults,Third Party Payments,472101,Purchase of Care,15-Aug-2013,2632146-1355262H,591.48,CAREWATCH (DURHAM & EASINGTON) FASTFLOW ACC.
Adults Wellbeing and Health,Head of Adults,Third Party Payments,472101,Purchase of Care,15-Aug-2013,2632146-1355347H,665.40,CAREWATCH (DURHAM & EASINGTON) FASTFLOW ACC.
Adults Wellbeing and Health,Head of Adults,Third Party Payments,472101,Purchase of Care,15-Aug-2013,2632146-1355371H,604.41,CAREWATCH (DURHAM & EASINGTON) FASTFLOW ACC.
Adults Wellbeing and Health,Head of Adults,Third Party Payments,472101,Purchase of Care,15-Aug-2013,2632146-1355494H,643.24,CAREWATCH (DURHAM & EASINGTON) FASTFLOW ACC.
Adults Wellbeing and Health,Head of Adults,Third Party Payments,472101,Purchase of Care,15-Aug-2013,2632146-1355510H,628.44,CAREWATCH (DURHAM & EASINGTON) FASTFLOW ACC.
Adults Wellbeing and Health,Head of Adults,Third Party Payments,472101,Purchase of Care,15-Aug-2013,2632146-1355802H,621.04,CAREWATCH (DURHAM & EASINGTON) FASTFLOW ACC.
Adults Wellbeing and Health,Head of Adults,Third Party Payments,472101,Purchase of Care,15-Aug-2013,2632146-1355994H,569.28,CAREWATCH (DURHAM & EASINGTON) FASTFLOW ACC.
Adults Wellbeing and Health,Head of Adults,Third Party Payments,472101,Purchase of Care,15-Aug-2013,2632146-1356086H,"1,430.63",CAREWATCH (DURHAM & EASINGTON) FASTFLOW ACC.
Adults Wellbeing and Health,Head of Adults,Third Party Payments,472101,Purchase of Care,15-Aug-2013,2632146-1356100H,516.60,CAREWATCH (DURHAM & EASINGTON) FASTFLOW ACC.
Adults Wellbeing and Health,Head of Adults,Third Party Payments,472101,Purchase of Care,15-Aug-2013,2632146-1356155H,754.12,CAREWATCH (DURHAM & EASINGTON) FASTFLOW ACC.
Adults Wellbeing and Health,Head of Adults,Third Party Payments,472101,Purchase of Care,15-Aug-2013,2632146-1356293H,687.60,CAREWATCH (DURHAM & EASINGTON) FASTFLOW ACC.
Adults Wellbeing and Health,Head of Adults,Third Party Payments,472101,Purchase of Care,15-Aug-2013,2632146-1356332H,665.41,CAREWATCH (DURHAM & EASINGTON) FASTFLOW ACC.
Adults Wellbeing and Health,Head of Adults,Third Party Payments,472101,Purchase of Care,15-Aug-2013,2632146-1356412H,691.28,CAREWATCH (DURHAM & EASINGTON) FASTFLOW ACC.
Adults Wellbeing and Health,Head of Adults,Third Party Payments,472101,Purchase of Care,15-Aug-2013,2632146-1356475H,713.46,CAREWATCH (DURHAM & EASINGTON) FASTFLOW ACC.
Adults Wellbeing and Health,Head of Adults,Third Party Payments,472101,Purchase of Care,15-Aug-2013,2632146-1356488H,621.04,CAREWATCH (DURHAM & EASINGTON) FASTFLOW ACC.
Adults Wellbeing and Health,Head of Adults,Third Party Payments,472101,Purchase of Care,15-Aug-2013,2632146-1356655H,966.68,CAREWATCH (DURHAM & EASINGTON) FASTFLOW ACC.
Adults Wellbeing and Health,Head of Adults,Third Party Payments,472101,Purchase of Care,15-Aug-2013,2632146-1356858H,572.98,CAREWATCH (DURHAM & EASINGTON) FASTFLOW ACC.
Adults Wellbeing and Health,Head of Adults,Third Party Payments,472101,Purchase of Care,15-Aug-2013,2632146-1356861H,595.16,CAREWATCH (DURHAM & EASINGTON) FASTFLOW ACC.
Adults Wellbeing and Health,Head of Adults,Third Party Payments,472101,Purchase of Care,15-Aug-2013,2632146-1357026H,576.70,CAREWATCH (DURHAM & EASINGTON) FASTFLOW ACC.
Adults Wellbeing and Health,Head of Adults,Third Party Payments,472101,Purchase of Care,15-Aug-2013,2632146-1357032H,513.84,CAREWATCH (DURHAM & EASINGTON) FASTFLOW ACC.
Adults Wellbeing and Health,Head of Adults,Third Party Payments,472101,Purchase of Care,15-Aug-2013,2632146-1357067H,"1,314.17",CAREWATCH (DURHAM & EASINGTON) FASTFLOW ACC.
Adults Wellbeing and Health,Head of Adults,Third Party Payments,472101,Purchase of Care,15-Aug-2013,2632146-1357159H,587.78,CAREWATCH (DURHAM & EASINGTON) FASTFLOW ACC.
Adults Wellbeing and Health,Head of Adults,Third Party Payments,472101,Purchase of Care,15-Aug-2013,2632146-1357296H,532.32,CAREWATCH (DURHAM & EASINGTON) FASTFLOW ACC.
Adults Wellbeing and Health,Head of Adults,Third Party Payments,472101,Purchase of Care,15-Aug-2013,2632146-1357400H,628.44,CAREWATCH (DURHAM & EASINGTON) FASTFLOW ACC.
Adults Wellbeing and Health,Head of Adults,Third Party Payments,472101,Purchase of Care,15-Aug-2013,2632146-1357409H,609.95,CAREWATCH (DURHAM & EASINGTON) FASTFLOW ACC.
Adults Wellbeing and Health,Head of Adults,Third Party Payments,472101,Purchase of Care,15-Aug-2013,2632146-1357415H,517.52,CAREWATCH (DURHAM & EASINGTON) FASTFLOW ACC.
Adults Wellbeing and Health,Head of Adults,Third Party Payments,472101,Purchase of Care,15-Aug-2013,2632146-1357446H,665.40,CAREWATCH (DURHAM & EASINGTON) FASTFLOW ACC.
Adults Wellbeing and Health,Head of Adults,Third Party Payments,472101,Purchase of Care,15-Aug-2013,2632163-1352798H,949.52,CASTLE CARE TEESDALE LTD.
Adults Wellbeing and Health,Head of Adults,Third Party Payments,472101,Purchase of Care,15-Aug-2013,2632163-1355352H,896.76,CASTLE CARE TEESDALE LTD.
Adults Wellbeing and Health,Head of Adults,Third Party Payments,472101,Purchase of Care,15-Aug-2013,2632163-1355391H,"1,455.92",CASTLE CARE TEESDALE LTD.
Adults Wellbeing and Health,Head of Adults,Third Party Payments,472101,Purchase of Care,15-Aug-2013,2632163-1356962H,780.72,CASTLE CARE TEESDALE LTD.
Adults Wellbeing and Health,Head of Adults,Third Party Payments,472101,Purchase of Care,15-Aug-2013,2632233-1350865H,591.48,COMFORT CALL LTD.
Adults Wellbeing and Health,Head of Adults,Third Party Payments,472101,Purchase of Care,15-Aug-2013,2632233-1350983H,820.68,COMFORT CALL LTD.
Adults Wellbeing and Health,Head of Adults,Third Party Payments,472101,Purchase of Care,15-Aug-2013,2632233-1351462H,"1,031.36",COMFORT CALL LTD.
Adults Wellbeing and Health,Head of Adults,Third Party Payments,472101,Purchase of Care,15-Aug-2013,2632233-1351502H,914.93,COMFORT CALL LTD.
Adults Wellbeing and Health,Head of Adults,Third Party Payments,472101,Purchase of Care,15-Aug-2013,2632233-1351522H,506.44,COMFORT CALL LTD.
Adults Wellbeing and Health,Head of Adults,Third Party Payments,472101,Purchase of Care,15-Aug-2013,2632233-1351531H,781.85,COMFORT CALL LTD.
Adults Wellbeing and Health,Head of Adults,Third Party Payments,472101,Purchase of Care,15-Aug-2013,2632233-1351625H,842.84,COMFORT CALL LTD.
Adults Wellbeing and Health,Head of Adults,Third Party Payments,472101,Purchase of Care,15-Aug-2013,2632233-1351947H,"1,097.00",COMFORT CALL LTD.
Adults Wellbeing and Health,Head of Adults,Third Party Payments,472101,Purchase of Care,15-Aug-2013,2632233-1352091H,"1,286.46",COMFORT CALL LTD.
Adults Wellbeing and Health,Head of Adults,Third Party Payments,472101,Purchase of Care,15-Aug-2013,2632233-1352896H,"3,105.20",COMFORT CALL LTD.
Adults Wellbeing and Health,Head of Adults,Third Party Payments,472101,Purchase of Care,15-Aug-2013,2632233-1352905H,554.52,COMFORT CALL LTD.
Adults Wellbeing and Health,Head of Adults,Third Party Payments,472101,Purchase of Care,15-Aug-2013,2632233-1352907H,928.79,COMFORT CALL LTD.
Adults Wellbeing and Health,Head of Adults,Third Party Payments,472101,Purchase of Care,15-Aug-2013,2632233-1352963H,"1,330.82",COMFORT CALL LTD.
Adults Wellbeing and Health,Head of Adults,Third Party Payments,472101,Purchase of Care,15-Aug-2013,2632233-1352967H,615.50,COMFORT CALL LTD.
Adults Wellbeing and Health,Head of Adults,Third Party Payments,472101,Purchase of Care,15-Aug-2013,2632233-1352976H,510.14,COMFORT CALL LTD.
Adults Wellbeing and Health,Head of Adults,Third Party Payments,472101,Purchase of Care,15-Aug-2013,2632233-1352990H,510.16,COMFORT CALL LTD.
Adults Wellbeing and Health,Head of Adults,Third Party Payments,472101,Purchase of Care,15-Aug-2013,2632233-1353020H,"1,060.95",COMFORT CALL LTD.
Adults Wellbeing and Health,Head of Adults,Third Party Payments,472101,Purchase of Care,15-Aug-2013,2632233-1353023H,"1,075.75",COMFORT CALL LTD.
Adults Wellbeing and Health,Head of Adults,Third Party Payments,472101,Purchase of Care,15-Aug-2013,2632233-1353033H,548.96,COMFORT CALL LTD.
Adults Wellbeing and Health,Head of Adults,Third Party Payments,472101,Purchase of Care,15-Aug-2013,2632233-1353101H,734.71,COMFORT CALL LTD.
Adults Wellbeing and Health,Head of Adults,Third Party Payments,472101,Purchase of Care,15-Aug-2013,2632233-1353124H,532.32,COMFORT CALL LTD.
Adults Wellbeing and Health,Head of Adults,Third Party Payments,472101,Purchase of Care,15-Aug-2013,2632233-1353136H,670.94,COMFORT CALL LTD.
Adults Wellbeing and Health,Head of Adults,Third Party Payments,472101,Purchase of Care,15-Aug-2013,2632233-1353137H,"1,397.36",COMFORT CALL LTD.
Adults Wellbeing and Health,Head of Adults,Third Party Payments,472101,Purchase of Care,15-Aug-2013,2632233-1353143H,"1,449.08",COMFORT CALL LTD.
Adults Wellbeing and Health,Head of Adults,Third Party Payments,472101,Purchase of Care,15-Aug-2013,2632233-1353246H,783.68,COMFORT CALL LTD.
Adults Wellbeing and Health,Head of Adults,Third Party Payments,472101,Purchase of Care,15-Aug-2013,2632233-1353379H,508.30,COMFORT CALL LTD.
Adults Wellbeing and Health,Head of Adults,Third Party Payments,472101,Purchase of Care,15-Aug-2013,2632233-1353390H,510.16,COMFORT CALL LTD.
Adults Wellbeing and Health,Head of Adults,Third Party Payments,472101,Purchase of Care,15-Aug-2013,2632233-1353405H,643.24,COMFORT CALL LTD.
Adults Wellbeing and Health,Head of Adults,Third Party Payments,472101,Purchase of Care,15-Aug-2013,2632233-1353475H,"1,242.08",COMFORT CALL LTD.
Adults Wellbeing and Health,Head of Adults,Third Party Payments,472101,Purchase of Care,15-Aug-2013,2632233-1353551H,787.40,COMFORT CALL LTD.
Adults Wellbeing and Health,Head of Adults,Third Party Payments,472101,Purchase of Care,15-Aug-2013,2632233-1353589H,561.90,COMFORT CALL LTD.
Adults Wellbeing and Health,Head of Adults,Third Party Payments,472101,Purchase of Care,15-Aug-2013,2632233-1353637H,876.12,COMFORT CALL LTD.
Adults Wellbeing and Health,Head of Adults,Third Party Payments,472101,Purchase of Care,15-Aug-2013,2632233-1353704H,"1,197.72",COMFORT CALL LTD.
Adults Wellbeing and Health,Head of Adults,Third Party Payments,472101,Purchase of Care,15-Aug-2013,2632233-1353751H,937.11,COMFORT CALL LTD.
Adults Wellbeing and Health,Head of Adults,Third Party Payments,472101,Purchase of Care,15-Aug-2013,2632233-1353868H,842.85,COMFORT CALL LTD.
Adults Wellbeing and Health,Head of Adults,Third Party Payments,472101,Purchase of Care,15-Aug-2013,2632233-1353878H,613.63,COMFORT CALL LTD.
Adults Wellbeing and Health,Head of Adults,Third Party Payments,472101,Purchase of Care,15-Aug-2013,2632233-1354100H,510.16,COMFORT CALL LTD.
Adults Wellbeing and Health,Head of Adults,Third Party Payments,472101,Purchase of Care,15-Aug-2013,2632233-1354104H,754.12,COMFORT CALL LTD.
Adults Wellbeing and Health,Head of Adults,Third Party Payments,472101,Purchase of Care,15-Aug-2013,2632233-1354119H,809.56,COMFORT CALL LTD.
Adults Wellbeing and Health,Head of Adults,Third Party Payments,472101,Purchase of Care,15-Aug-2013,2632233-1354290H,621.04,COMFORT CALL LTD.
Adults Wellbeing and Health,Head of Adults,Third Party Payments,472101,Purchase of Care,15-Aug-2013,2632233-1354390H,794.80,COMFORT CALL LTD.
Adults Wellbeing and Health,Head of Adults,Third Party Payments,472101,Purchase of Care,15-Aug-2013,2632233-1354393H,643.24,COMFORT CALL LTD.
Adults Wellbeing and Health,Head of Adults,Third Party Payments,472101,Purchase of Care,15-Aug-2013,2632233-1354492H,"1,433.39",COMFORT CALL LTD.
Adults Wellbeing and Health,Head of Adults,Third Party Payments,472101,Purchase of Care,15-Aug-2013,2632233-1354542H,682.05,COMFORT CALL LTD.
Adults Wellbeing and Health,Head of Adults,Third Party Payments,472101,Purchase of Care,15-Aug-2013,2632233-1354613H,701.45,COMFORT CALL LTD.
Adults Wellbeing and Health,Head of Adults,Third Party Payments,472101,Purchase of Care,15-Aug-2013,2632233-1354713H,"1,035.08",COMFORT CALL LTD.
Adults Wellbeing and Health,Head of Adults,Third Party Payments,472101,Purchase of Care,15-Aug-2013,2632233-1354730H,"1,308.64",COMFORT CALL LTD.
Adults Wellbeing and Health,Head of Adults,Third Party Payments,472101,Purchase of Care,15-Aug-2013,2632233-1354822H,887.20,COMFORT CALL LTD.
Adults Wellbeing and Health,Head of Adults,Third Party Payments,472101,Purchase of Care,15-Aug-2013,2632233-1355061H,669.08,COMFORT CALL LTD.
Adults Wellbeing and Health,Head of Adults,Third Party Payments,472101,Purchase of Care,15-Aug-2013,2632233-1355085H,"1,821.54",COMFORT CALL LTD.
Adults Wellbeing and Health,Head of Adults,Third Party Payments,472101,Purchase of Care,15-Aug-2013,2632233-1355333H,698.68,COMFORT CALL LTD.
Adults Wellbeing and Health,Head of Adults,Third Party Payments,472101,Purchase of Care,15-Aug-2013,2632233-1355359H,580.36,COMFORT CALL LTD.
Adults Wellbeing and Health,Head of Adults,Third Party Payments,472101,Purchase of Care,15-Aug-2013,2632233-1355366H,632.12,COMFORT CALL LTD.
Adults Wellbeing and Health,Head of Adults,Third Party Payments,472101,Purchase of Care,15-Aug-2013,2632233-1355415H,"1,234.68",COMFORT CALL LTD.
Adults Wellbeing and Health,Head of Adults,Third Party Payments,472101,Purchase of Care,15-Aug-2013,2632233-1355529H,548.97,COMFORT CALL LTD.
Adults Wellbeing and Health,Head of Adults,Third Party Payments,472101,Purchase of Care,15-Aug-2013,2632233-1355558H,892.74,COMFORT CALL LTD.
Adults Wellbeing and Health,Head of Adults,Third Party Payments,472101,Purchase of Care,15-Aug-2013,2632233-1355795H,621.04,COMFORT CALL LTD.
Adults Wellbeing and Health,Head of Adults,Third Party Payments,472101,Purchase of Care,15-Aug-2013,2632233-1355799H,532.33,COMFORT CALL LTD.
Adults Wellbeing and Health,Head of Adults,Third Party Payments,472101,Purchase of Care,15-Aug-2013,2632233-1355805H,643.22,COMFORT CALL LTD.
Adults Wellbeing and Health,Head of Adults,Third Party Payments,472101,Purchase of Care,15-Aug-2013,2632233-1355848H,571.14,COMFORT CALL LTD.
Adults Wellbeing and Health,Head of Adults,Third Party Payments,472101,Purchase of Care,15-Aug-2013,2632233-1356092H,"1,242.08",COMFORT CALL LTD.
Adults Wellbeing and Health,Head of Adults,Third Party Payments,472101,Purchase of Care,15-Aug-2013,2632233-1356208H,517.52,COMFORT CALL LTD.
Adults Wellbeing and Health,Head of Adults,Third Party Payments,472101,Purchase of Care,15-Aug-2013,2632233-1356321H,510.16,COMFORT CALL LTD.
Adults Wellbeing and Health,Head of Adults,Third Party Payments,472101,Purchase of Care,15-Aug-2013,2632233-1356565H,731.96,COMFORT CALL LTD.
Adults Wellbeing and Health,Head of Adults,Third Party Payments,472101,Purchase of Care,15-Aug-2013,2632233-1356618H,687.60,COMFORT CALL LTD.
Adults Wellbeing and Health,Head of Adults,Third Party Payments,472101,Purchase of Care,15-Aug-2013,2632233-1356789H,"1,253.19",COMFORT CALL LTD.
Adults Wellbeing and Health,Head of Adults,Third Party Payments,472101,Purchase of Care,15-Aug-2013,2632233-1356922H,"1,020.28",COMFORT CALL LTD.
Adults Wellbeing and Health,Head of Adults,Third Party Payments,472101,Purchase of Care,15-Aug-2013,2632233-1356968H,609.96,COMFORT CALL LTD.
Adults Wellbeing and Health,Head of Adults,Third Party Payments,472101,Purchase of Care,15-Aug-2013,2632233-1357039H,950.04,COMFORT CALL LTD.
Adults Wellbeing and Health,Head of Adults,Third Party Payments,472101,Purchase of Care,15-Aug-2013,2632233-1357072H,"1,286.44",COMFORT CALL LTD.
Adults Wellbeing and Health,Head of Adults,Third Party Payments,472101,Purchase of Care,15-Aug-2013,2632233-1357121H,609.96,COMFORT CALL LTD.
Adults Wellbeing and Health,Head of Adults,Third Party Payments,472101,Purchase of Care,15-Aug-2013,2632233-1357202H,"1,116.40",COMFORT CALL LTD.
Adults Wellbeing and Health,Head of Adults,Third Party Payments,472101,Purchase of Care,15-Aug-2013,2632233-1357247H,"1,064.65",COMFORT CALL LTD.
Adults Wellbeing and Health,Head of Adults,Third Party Payments,472101,Purchase of Care,15-Aug-2013,2632233-1357263H,589.62,COMFORT CALL LTD.
Adults Wellbeing and Health,Head of Adults,Third Party Payments,472101,Purchase of Care,15-Aug-2013,2632233-1357274H,539.72,COMFORT CALL LTD.
Adults Wellbeing and Health,Head of Adults,Third Party Payments,472101,Purchase of Care,15-Aug-2013,2632233-1357288H,530.47,COMFORT CALL LTD.
Adults Wellbeing and Health,Head of Adults,Third Party Payments,472101,Purchase of Care,15-Aug-2013,2632233-1357324H,615.51,COMFORT CALL LTD.
Adults Wellbeing and Health,Head of Adults,Third Party Payments,472101,Purchase of Care,15-Aug-2013,2632233-1357433H,"1,249.48",COMFORT CALL LTD.
Adults Wellbeing and Health,Head of Adults,Third Party Payments,472101,Purchase of Care,15-Aug-2013,2632263-1352195H,"1,488.00",CREATIVE SUPPORT LTD.
Adults Wellbeing and Health,Head of Adults,Third Party Payments,472101,Purchase of Care,15-Aug-2013,2632263-1354510H,672.00,CREATIVE SUPPORT LTD.
Adults Wellbeing and Health,Head of Adults,Third Party Payments,472101,Purchase of Care,15-Aug-2013,2632263-1354743H,"1,200.00",CREATIVE SUPPORT LTD.
Adults Wellbeing and Health,Head of Adults,Third Party Payments,472101,Purchase of Care,15-Aug-2013,2632264-1351499H,"1,861.40",CRESCENT HOMECARE LTD.
Adults Wellbeing and Health,Head of Adults,Third Party Payments,472101,Purchase of Care,15-Aug-2013,2632264-1355568H,525.88,CRESCENT HOMECARE LTD.
Adults Wellbeing and Health,Head of Adults,Third Party Payments,472101,Purchase of Care,15-Aug-2013,2632264-1356213H,"1,755.48",CRESCENT HOMECARE LTD.
Adults Wellbeing and Health,Head of Adults,Third Party Payments,472101,Purchase of Care,15-Aug-2013,2632264-1356355H,"1,857.60",CRESCENT HOMECARE LTD.
Adults Wellbeing and Health,Head of Adults,Third Party Payments,472101,Purchase of Care,15-Aug-2013,2632264-1356898H,635.60,CRESCENT HOMECARE LTD.
Adults Wellbeing and Health,Head of Adults,Third Party Payments,472101,Purchase of Care,15-Aug-2013,2632276-1350762H,"1,057.26",DALE CARE LTD.
Adults Wellbeing and Health,Head of Adults,Third Party Payments,472101,Purchase of Care,15-Aug-2013,2632276-1350802H,"1,408.44",DALE CARE LTD.
Adults Wellbeing and Health,Head of Adults,Third Party Payments,472101,Purchase of Care,15-Aug-2013,2632276-1350837H,"1,286.44",DALE CARE LTD.
Adults Wellbeing and Health,Head of Adults,Third Party Payments,472101,Purchase of Care,15-Aug-2013,2632276-1350857H,"1,075.75",DALE CARE LTD.
Adults Wellbeing and Health,Head of Adults,Third Party Payments,472101,Purchase of Care,15-Aug-2013,2632276-1350859H,"1,386.24",DALE CARE LTD.
Adults Wellbeing and Health,Head of Adults,Third Party Payments,472101,Purchase of Care,15-Aug-2013,2632276-1350896H,564.67,DALE CARE LTD.
Adults Wellbeing and Health,Head of Adults,Third Party Payments,472101,Purchase of Care,15-Aug-2013,2632276-1350909H,554.50,DALE CARE LTD.
Adults Wellbeing and Health,Head of Adults,Third Party Payments,472101,Purchase of Care,15-Aug-2013,2632276-1350932H,"1,047.09",DALE CARE LTD.
Adults Wellbeing and Health,Head of Adults,Third Party Payments,472101,Purchase of Care,15-Aug-2013,2632276-1350951H,698.68,DALE CARE LTD.
Adults Wellbeing and Health,Head of Adults,Third Party Payments,472101,Purchase of Care,15-Aug-2013,2632276-1350970H,517.52,DALE CARE LTD.
Adults Wellbeing and Health,Head of Adults,Third Party Payments,472101,Purchase of Care,15-Aug-2013,2632276-1351006H,687.60,DALE CARE LTD.
Adults Wellbeing and Health,Head of Adults,Third Party Payments,472101,Purchase of Care,15-Aug-2013,2632276-1351037H,505.52,DALE CARE LTD.
Adults Wellbeing and Health,Head of Adults,Third Party Payments,472101,Purchase of Care,15-Aug-2013,2632276-1351046H,757.80,DALE CARE LTD.
Adults Wellbeing and Health,Head of Adults,Third Party Payments,472101,Purchase of Care,15-Aug-2013,2632276-1351056H,938.95,DALE CARE LTD.
Adults Wellbeing and Health,Head of Adults,Third Party Payments,472101,Purchase of Care,15-Aug-2013,2632276-1351080H,521.24,DALE CARE LTD.
Adults Wellbeing and Health,Head of Adults,Third Party Payments,472101,Purchase of Care,15-Aug-2013,2632276-1351142H,"1,253.17",DALE CARE LTD.
Adults Wellbeing and Health,Head of Adults,Third Party Payments,472101,Purchase of Care,15-Aug-2013,2632276-1351151H,693.13,DALE CARE LTD.
Adults Wellbeing and Health,Head of Adults,Third Party Payments,472101,Purchase of Care,15-Aug-2013,2632276-1351167H,690.36,DALE CARE LTD.
Adults Wellbeing and Health,Head of Adults,Third Party Payments,472101,Purchase of Care,15-Aug-2013,2632276-1351188H,543.40,DALE CARE LTD.
Adults Wellbeing and Health,Head of Adults,Third Party Payments,472101,Purchase of Care,15-Aug-2013,2632276-1351191H,524.00,DALE CARE LTD.
Adults Wellbeing and Health,Head of Adults,Third Party Payments,472101,Purchase of Care,15-Aug-2013,2632276-1351207H,586.85,DALE CARE LTD.
Adults Wellbeing and Health,Head of Adults,Third Party Payments,472101,Purchase of Care,15-Aug-2013,2632276-1351213H,632.12,DALE CARE LTD.
Adults Wellbeing and Health,Head of Adults,Third Party Payments,472101,Purchase of Care,15-Aug-2013,2632276-1351240H,569.28,DALE CARE LTD.
Adults Wellbeing and Health,Head of Adults,Third Party Payments,472101,Purchase of Care,15-Aug-2013,2632276-1351243H,565.60,DALE CARE LTD.
Adults Wellbeing and Health,Head of Adults,Third Party Payments,472101,Purchase of Care,15-Aug-2013,2632276-1351244H,654.32,DALE CARE LTD.
Adults Wellbeing and Health,Head of Adults,Third Party Payments,472101,Purchase of Care,15-Aug-2013,2632276-1351248H,"1,242.08",DALE CARE LTD.
Adults Wellbeing and Health,Head of Adults,Third Party Payments,472101,Purchase of Care,15-Aug-2013,2632276-1351255H,643.22,DALE CARE LTD.
Adults Wellbeing and Health,Head of Adults,Third Party Payments,472101,Purchase of Care,15-Aug-2013,2632276-1351286H,660.78,DALE CARE LTD.
Adults Wellbeing and Health,Head of Adults,Third Party Payments,472101,Purchase of Care,15-Aug-2013,2632276-1351295H,"1,408.43",DALE CARE LTD.
Adults Wellbeing and Health,Head of Adults,Third Party Payments,472101,Purchase of Care,15-Aug-2013,2632276-1351312H,743.04,DALE CARE LTD.
Adults Wellbeing and Health,Head of Adults,Third Party Payments,472101,Purchase of Care,15-Aug-2013,2632276-1351313H,720.84,DALE CARE LTD.
Adults Wellbeing and Health,Head of Adults,Third Party Payments,472101,Purchase of Care,15-Aug-2013,2632276-1351322H,"1,818.76",DALE CARE LTD.
Adults Wellbeing and Health,Head of Adults,Third Party Payments,472101,Purchase of Care,15-Aug-2013,2632276-1351341H,621.05,DALE CARE LTD.
Adults Wellbeing and Health,Head of Adults,Third Party Payments,472101,Purchase of Care,15-Aug-2013,2632276-1351344H,787.40,DALE CARE LTD.
Adults Wellbeing and Health,Head of Adults,Third Party Payments,472101,Purchase of Care,15-Aug-2013,2632276-1351380H,517.52,DALE CARE LTD.
Adults Wellbeing and Health,Head of Adults,Third Party Payments,472101,Purchase of Care,15-Aug-2013,2632276-1351382H,587.79,DALE CARE LTD.
Adults Wellbeing and Health,Head of Adults,Third Party Payments,472101,Purchase of Care,15-Aug-2013,2632276-1351391H,505.04,DALE CARE LTD.
Adults Wellbeing and Health,Head of Adults,Third Party Payments,472101,Purchase of Care,15-Aug-2013,2632276-1351392H,505.04,DALE CARE LTD.
Adults Wellbeing and Health,Head of Adults,Third Party Payments,472101,Purchase of Care,15-Aug-2013,2632276-1351394H,709.76,DALE CARE LTD.
Adults Wellbeing and Health,Head of Adults,Third Party Payments,472101,Purchase of Care,15-Aug-2013,2632276-1351396H,517.52,DALE CARE LTD.
Adults Wellbeing and Health,Head of Adults,Third Party Payments,472101,Purchase of Care,15-Aug-2013,2632276-1351406H,541.58,DALE CARE LTD.
Adults Wellbeing and Health,Head of Adults,Third Party Payments,472101,Purchase of Care,15-Aug-2013,2632276-1351415H,630.28,DALE CARE LTD.
Adults Wellbeing and Health,Head of Adults,Third Party Payments,472101,Purchase of Care,15-Aug-2013,2632276-1351418H,"1,042.48",DALE CARE LTD.
Adults Wellbeing and Health,Head of Adults,Third Party Payments,472101,Purchase of Care,15-Aug-2013,2632276-1351453H,"1,242.08",DALE CARE LTD.
Adults Wellbeing and Health,Head of Adults,Third Party Payments,472101,Purchase of Care,15-Aug-2013,2632276-1352137H,975.92,DALE CARE LTD.
Adults Wellbeing and Health,Head of Adults,Third Party Payments,472101,Purchase of Care,15-Aug-2013,2632276-1352154H,847.45,DALE CARE LTD.
Adults Wellbeing and Health,Head of Adults,Third Party Payments,472101,Purchase of Care,15-Aug-2013,2632276-1352176H,737.50,DALE CARE LTD.
Adults Wellbeing and Health,Head of Adults,Third Party Payments,472101,Purchase of Care,15-Aug-2013,2632276-1352192H,539.72,DALE CARE LTD.
Adults Wellbeing and Health,Head of Adults,Third Party Payments,472101,Purchase of Care,15-Aug-2013,2632276-1352276H,"1,596.96",DALE CARE LTD.
Adults Wellbeing and Health,Head of Adults,Third Party Payments,472101,Purchase of Care,15-Aug-2013,2632276-1352289H,565.61,DALE CARE LTD.
Adults Wellbeing and Health,Head of Adults,Third Party Payments,472101,Purchase of Care,15-Aug-2013,2632276-1352308H,743.04,DALE CARE LTD.
Adults Wellbeing and Health,Head of Adults,Third Party Payments,472101,Purchase of Care,15-Aug-2013,2632276-1352317H,676.48,DALE CARE LTD.
Adults Wellbeing and Health,Head of Adults,Third Party Payments,472101,Purchase of Care,15-Aug-2013,2632276-1352342H,878.89,DALE CARE LTD.
Adults Wellbeing and Health,Head of Adults,Third Party Payments,472101,Purchase of Care,15-Aug-2013,2632276-1352388H,709.76,DALE CARE LTD.
Adults Wellbeing and Health,Head of Adults,Third Party Payments,472101,Purchase of Care,15-Aug-2013,2632276-1352393H,521.24,DALE CARE LTD.
Adults Wellbeing and Health,Head of Adults,Third Party Payments,472101,Purchase of Care,15-Aug-2013,2632276-1352413H,584.08,DALE CARE LTD.
Adults Wellbeing and Health,Head of Adults,Third Party Payments,472101,Purchase of Care,15-Aug-2013,2632276-1352415H,611.80,DALE CARE LTD.
Adults Wellbeing and Health,Head of Adults,Third Party Payments,472101,Purchase of Care,15-Aug-2013,2632276-1352469H,565.60,DALE CARE LTD.
Adults Wellbeing and Health,Head of Adults,Third Party Payments,472101,Purchase of Care,15-Aug-2013,2632276-1352502H,670.95,DALE CARE LTD.
Adults Wellbeing and Health,Head of Adults,Third Party Payments,472101,Purchase of Care,15-Aug-2013,2632276-1352555H,589.62,DALE CARE LTD.
Adults Wellbeing and Health,Head of Adults,Third Party Payments,472101,Purchase of Care,15-Aug-2013,2632276-1352645H,606.24,DALE CARE LTD.
Adults Wellbeing and Health,Head of Adults,Third Party Payments,472101,Purchase of Care,15-Aug-2013,2632276-1352678H,"1,048.02",DALE CARE LTD.
Adults Wellbeing and Health,Head of Adults,Third Party Payments,472101,Purchase of Care,15-Aug-2013,2632276-1352682H,746.73,DALE CARE LTD.
Adults Wellbeing and Health,Head of Adults,Third Party Payments,472101,Purchase of Care,15-Aug-2013,2632276-1352697H,"1,305.80",DALE CARE LTD.
Adults Wellbeing and Health,Head of Adults,Third Party Payments,472101,Purchase of Care,15-Aug-2013,2632276-1352733H,537.88,DALE CARE LTD.
Adults Wellbeing and Health,Head of Adults,Third Party Payments,472101,Purchase of Care,15-Aug-2013,2632276-1352745H,720.84,DALE CARE LTD.
Adults Wellbeing and Health,Head of Adults,Third Party Payments,472101,Purchase of Care,15-Aug-2013,2632276-1352756H,"1,225.45",DALE CARE LTD.
Adults Wellbeing and Health,Head of Adults,Third Party Payments,472101,Purchase of Care,15-Aug-2013,2632276-1352775H,632.14,DALE CARE LTD.
Adults Wellbeing and Health,Head of Adults,Third Party Payments,472101,Purchase of Care,15-Aug-2013,2632276-1352782H,"1,330.80",DALE CARE LTD.
Adults Wellbeing and Health,Head of Adults,Third Party Payments,472101,Purchase of Care,15-Aug-2013,2632276-1352784H,554.50,DALE CARE LTD.
Adults Wellbeing and Health,Head of Adults,Third Party Payments,472101,Purchase of Care,15-Aug-2013,2632276-1352841H,617.36,DALE CARE LTD.
Adults Wellbeing and Health,Head of Adults,Third Party Payments,472101,Purchase of Care,15-Aug-2013,2632276-1352847H,659.86,DALE CARE LTD.
Adults Wellbeing and Health,Head of Adults,Third Party Payments,472101,Purchase of Care,15-Aug-2013,2632276-1353182H,"1,242.08",DALE CARE LTD.
Adults Wellbeing and Health,Head of Adults,Third Party Payments,472101,Purchase of Care,15-Aug-2013,2632276-1353187H,966.00,DALE CARE LTD.
Adults Wellbeing and Health,Head of Adults,Third Party Payments,472101,Purchase of Care,15-Aug-2013,2632276-1353198H,632.12,DALE CARE LTD.
Adults Wellbeing and Health,Head of Adults,Third Party Payments,472101,Purchase of Care,15-Aug-2013,2632276-1353220H,886.24,DALE CARE LTD.
Adults Wellbeing and Health,Head of Adults,Third Party Payments,472101,Purchase of Care,15-Aug-2013,2632276-1353256H,569.28,DALE CARE LTD.
Adults Wellbeing and Health,Head of Adults,Third Party Payments,472101,Purchase of Care,15-Aug-2013,2632276-1353303H,"1,409.37",DALE CARE LTD.
Adults Wellbeing and Health,Head of Adults,Third Party Payments,472101,Purchase of Care,15-Aug-2013,2632276-1353344H,508.29,DALE CARE LTD.
Adults Wellbeing and Health,Head of Adults,Third Party Payments,472101,Purchase of Care,15-Aug-2013,2632276-1353400H,597.01,DALE CARE LTD.
Adults Wellbeing and Health,Head of Adults,Third Party Payments,472101,Purchase of Care,15-Aug-2013,2632276-1353423H,639.52,DALE CARE LTD.
Adults Wellbeing and Health,Head of Adults,Third Party Payments,472101,Purchase of Care,15-Aug-2013,2632276-1353434H,780.72,DALE CARE LTD.
Adults Wellbeing and Health,Head of Adults,Third Party Payments,472101,Purchase of Care,15-Aug-2013,2632276-1353465H,"1,619.16",DALE CARE LTD.
Adults Wellbeing and Health,Head of Adults,Third Party Payments,472101,Purchase of Care,15-Aug-2013,2632276-1353478H,754.12,DALE CARE LTD.
Adults Wellbeing and Health,Head of Adults,Third Party Payments,472101,Purchase of Care,15-Aug-2013,2632276-1353519H,547.12,DALE CARE LTD.
Adults Wellbeing and Health,Head of Adults,Third Party Payments,472101,Purchase of Care,15-Aug-2013,2632276-1353525H,661.70,DALE CARE LTD.
Adults Wellbeing and Health,Head of Adults,Third Party Payments,472101,Purchase of Care,15-Aug-2013,2632276-1353537H,917.97,DALE CARE LTD.
Adults Wellbeing and Health,Head of Adults,Third Party Payments,472101,Purchase of Care,15-Aug-2013,2632276-1353550H,621.04,DALE CARE LTD.
Adults Wellbeing and Health,Head of Adults,Third Party Payments,472101,Purchase of Care,15-Aug-2013,2632276-1353569H,552.65,DALE CARE LTD.
Adults Wellbeing and Health,Head of Adults,Third Party Payments,472101,Purchase of Care,15-Aug-2013,2632276-1353577H,"1,604.36",DALE CARE LTD.
Adults Wellbeing and Health,Head of Adults,Third Party Payments,472101,Purchase of Care,15-Aug-2013,2632276-1353596H,654.12,DALE CARE LTD.
Adults Wellbeing and Health,Head of Adults,Third Party Payments,472101,Purchase of Care,15-Aug-2013,2632276-1353600H,"1,025.83",DALE CARE LTD.
Adults Wellbeing and Health,Head of Adults,Third Party Payments,472101,Purchase of Care,15-Aug-2013,2632276-1353615H,763.36,DALE CARE LTD.
Adults Wellbeing and Health,Head of Adults,Third Party Payments,472101,Purchase of Care,15-Aug-2013,2632276-1353623H,706.08,DALE CARE LTD.
Adults Wellbeing and Health,Head of Adults,Third Party Payments,472101,Purchase of Care,15-Aug-2013,2632276-1353664H,532.32,DALE CARE LTD.
Adults Wellbeing and Health,Head of Adults,Third Party Payments,472101,Purchase of Care,15-Aug-2013,2632276-1353688H,"1,397.36",DALE CARE LTD.
Adults Wellbeing and Health,Head of Adults,Third Party Payments,472101,Purchase of Care,15-Aug-2013,2632276-1353694H,605.33,DALE CARE LTD.
Adults Wellbeing and Health,Head of Adults,Third Party Payments,472101,Purchase of Care,15-Aug-2013,2632276-1353771H,513.84,DALE CARE LTD.
Adults Wellbeing and Health,Head of Adults,Third Party Payments,472101,Purchase of Care,15-Aug-2013,2632276-1353795H,"1,397.36",DALE CARE LTD.
Adults Wellbeing and Health,Head of Adults,Third Party Payments,472101,Purchase of Care,15-Aug-2013,2632276-1353833H,654.32,DALE CARE LTD.
Adults Wellbeing and Health,Head of Adults,Third Party Payments,472101,Purchase of Care,15-Aug-2013,2632276-1353870H,"1,086.82",DALE CARE LTD.
Adults Wellbeing and Health,Head of Adults,Third Party Payments,472101,Purchase of Care,15-Aug-2013,2632276-1353881H,654.32,DALE CARE LTD.
Adults Wellbeing and Health,Head of Adults,Third Party Payments,472101,Purchase of Care,15-Aug-2013,2632276-1353913H,554.52,DALE CARE LTD.
Adults Wellbeing and Health,Head of Adults,Third Party Payments,472101,Purchase of Care,15-Aug-2013,2632276-1353974H,658.00,DALE CARE LTD.
Adults Wellbeing and Health,Head of Adults,Third Party Payments,472101,Purchase of Care,15-Aug-2013,2632276-1353996H,"1,162.61",DALE CARE LTD.
Adults Wellbeing and Health,Head of Adults,Third Party Payments,472101,Purchase of Care,15-Aug-2013,2632276-1354005H,604.41,DALE CARE LTD.
Adults Wellbeing and Health,Head of Adults,Third Party Payments,472101,Purchase of Care,15-Aug-2013,2632276-1354013H,"1,685.69",DALE CARE LTD.
Adults Wellbeing and Health,Head of Adults,Third Party Payments,472101,Purchase of Care,15-Aug-2013,2632276-1354073H,776.32,DALE CARE LTD.
Adults Wellbeing and Health,Head of Adults,Third Party Payments,472101,Purchase of Care,15-Aug-2013,2632276-1354170H,665.40,DALE CARE LTD.
Adults Wellbeing and Health,Head of Adults,Third Party Payments,472101,Purchase of Care,15-Aug-2013,2632276-1354182H,670.95,DALE CARE LTD.
Adults Wellbeing and Health,Head of Adults,Third Party Payments,472101,Purchase of Care,15-Aug-2013,2632276-1354207H,"1,413.13",DALE CARE LTD.
Adults Wellbeing and Health,Head of Adults,Third Party Payments,472101,Purchase of Care,15-Aug-2013,2632276-1354214H,702.36,DALE CARE LTD.
Adults Wellbeing and Health,Head of Adults,Third Party Payments,472101,Purchase of Care,15-Aug-2013,2632276-1354251H,720.84,DALE CARE LTD.
Adults Wellbeing and Health,Head of Adults,Third Party Payments,472101,Purchase of Care,15-Aug-2013,2632276-1354300H,776.32,DALE CARE LTD.
Adults Wellbeing and Health,Head of Adults,Third Party Payments,472101,Purchase of Care,15-Aug-2013,2632276-1354323H,709.76,DALE CARE LTD.
Adults Wellbeing and Health,Head of Adults,Third Party Payments,472101,Purchase of Care,15-Aug-2013,2632276-1354339H,680.20,DALE CARE LTD.
Adults Wellbeing and Health,Head of Adults,Third Party Payments,472101,Purchase of Care,15-Aug-2013,2632276-1354357H,"1,364.07",DALE CARE LTD.
Adults Wellbeing and Health,Head of Adults,Third Party Payments,472101,Purchase of Care,15-Aug-2013,2632276-1354429H,529.54,DALE CARE LTD.
Adults Wellbeing and Health,Head of Adults,Third Party Payments,472101,Purchase of Care,15-Aug-2013,2632276-1354450H,587.76,DALE CARE LTD.
Adults Wellbeing and Health,Head of Adults,Third Party Payments,472101,Purchase of Care,15-Aug-2013,2632276-1354455H,709.76,DALE CARE LTD.
Adults Wellbeing and Health,Head of Adults,Third Party Payments,472101,Purchase of Care,15-Aug-2013,2632276-1354459H,776.32,DALE CARE LTD.
Adults Wellbeing and Health,Head of Adults,Third Party Payments,472101,Purchase of Care,15-Aug-2013,2632276-1354474H,502.76,DALE CARE LTD.
Adults Wellbeing and Health,Head of Adults,Third Party Payments,472101,Purchase of Care,15-Aug-2013,2632276-1354485H,698.68,DALE CARE LTD.
Adults Wellbeing and Health,Head of Adults,Third Party Payments,472101,Purchase of Care,15-Aug-2013,2632276-1354512H,754.12,DALE CARE LTD.
Adults Wellbeing and Health,Head of Adults,Third Party Payments,472101,Purchase of Care,15-Aug-2013,2632276-1354547H,820.68,DALE CARE LTD.
Adults Wellbeing and Health,Head of Adults,Third Party Payments,472101,Purchase of Care,15-Aug-2013,2632276-1354560H,558.20,DALE CARE LTD.
Adults Wellbeing and Health,Head of Adults,Third Party Payments,472101,Purchase of Care,15-Aug-2013,2632276-1354616H,621.04,DALE CARE LTD.
Adults Wellbeing and Health,Head of Adults,Third Party Payments,472101,Purchase of Care,15-Aug-2013,2632276-1354702H,886.27,DALE CARE LTD.
Adults Wellbeing and Health,Head of Adults,Third Party Payments,472101,Purchase of Care,15-Aug-2013,2632276-1354704H,"1,097.24",DALE CARE LTD.
Adults Wellbeing and Health,Head of Adults,Third Party Payments,472101,Purchase of Care,15-Aug-2013,2632276-1354744H,654.32,DALE CARE LTD.
Adults Wellbeing and Health,Head of Adults,Third Party Payments,472101,Purchase of Care,15-Aug-2013,2632276-1354758H,626.60,DALE CARE LTD.
Adults Wellbeing and Health,Head of Adults,Third Party Payments,472101,Purchase of Care,15-Aug-2013,2632276-1354787H,"1,041.54",DALE CARE LTD.
Adults Wellbeing and Health,Head of Adults,Third Party Payments,472101,Purchase of Care,15-Aug-2013,2632276-1354814H,"1,552.60",DALE CARE LTD.
Adults Wellbeing and Health,Head of Adults,Third Party Payments,472101,Purchase of Care,15-Aug-2013,2632276-1354840H,964.84,DALE CARE LTD.
Adults Wellbeing and Health,Head of Adults,Third Party Payments,472101,Purchase of Care,15-Aug-2013,2632276-1354842H,798.48,DALE CARE LTD.
Adults Wellbeing and Health,Head of Adults,Third Party Payments,472101,Purchase of Care,15-Aug-2013,2632276-1354853H,709.76,DALE CARE LTD.
Adults Wellbeing and Health,Head of Adults,Third Party Payments,472101,Purchase of Care,15-Aug-2013,2632276-1354892H,"1,230.99",DALE CARE LTD.
Adults Wellbeing and Health,Head of Adults,Third Party Payments,472101,Purchase of Care,15-Aug-2013,2632276-1354919H,787.40,DALE CARE LTD.
Adults Wellbeing and Health,Head of Adults,Third Party Payments,472101,Purchase of Care,15-Aug-2013,2632276-1354923H,"1,535.97",DALE CARE LTD.
Adults Wellbeing and Health,Head of Adults,Third Party Payments,472101,Purchase of Care,15-Aug-2013,2632276-1354966H,558.20,DALE CARE LTD.
Adults Wellbeing and Health,Head of Adults,Third Party Payments,472101,Purchase of Care,15-Aug-2013,2632276-1354994H,987.00,DALE CARE LTD.
Adults Wellbeing and Health,Head of Adults,Third Party Payments,472101,Purchase of Care,15-Aug-2013,2632276-1355009H,953.76,DALE CARE LTD.
Adults Wellbeing and Health,Head of Adults,Third Party Payments,472101,Purchase of Care,15-Aug-2013,2632276-1355156H,543.40,DALE CARE LTD.
Adults Wellbeing and Health,Head of Adults,Third Party Payments,472101,Purchase of Care,15-Aug-2013,2632276-1355178H,"1,436.17",DALE CARE LTD.
Adults Wellbeing and Health,Head of Adults,Third Party Payments,472101,Purchase of Care,15-Aug-2013,2632276-1355207H,521.24,DALE CARE LTD.
Adults Wellbeing and Health,Head of Adults,Third Party Payments,472101,Purchase of Care,15-Aug-2013,2632276-1355246H,"1,190.32",DALE CARE LTD.
Adults Wellbeing and Health,Head of Adults,Third Party Payments,472101,Purchase of Care,15-Aug-2013,2632276-1355247H,569.28,DALE CARE LTD.
Adults Wellbeing and Health,Head of Adults,Third Party Payments,472101,Purchase of Care,15-Aug-2013,2632276-1355248H,770.16,DALE CARE LTD.
Adults Wellbeing and Health,Head of Adults,Third Party Payments,472101,Purchase of Care,15-Aug-2013,2632276-1355249H,584.08,DALE CARE LTD.
Adults Wellbeing and Health,Head of Adults,Third Party Payments,472101,Purchase of Care,15-Aug-2013,2632276-1355275H,502.76,DALE CARE LTD.
Adults Wellbeing and Health,Head of Adults,Third Party Payments,472101,Purchase of Care,15-Aug-2013,2632276-1355283H,606.24,DALE CARE LTD.
Adults Wellbeing and Health,Head of Adults,Third Party Payments,472101,Purchase of Care,15-Aug-2013,2632276-1355292H,953.75,DALE CARE LTD.
Adults Wellbeing and Health,Head of Adults,Third Party Payments,472101,Purchase of Care,15-Aug-2013,2632276-1355294H,524.92,DALE CARE LTD.
Adults Wellbeing and Health,Head of Adults,Third Party Payments,472101,Purchase of Care,15-Aug-2013,2632276-1355299H,632.12,DALE CARE LTD.
Adults Wellbeing and Health,Head of Adults,Third Party Payments,472101,Purchase of Care,15-Aug-2013,2632276-1355309H,"1,463.90",DALE CARE LTD.
Adults Wellbeing and Health,Head of Adults,Third Party Payments,472101,Purchase of Care,15-Aug-2013,2632276-1355310H,"1,131.19",DALE CARE LTD.
Adults Wellbeing and Health,Head of Adults,Third Party Payments,472101,Purchase of Care,15-Aug-2013,2632276-1355348H,516.61,DALE CARE LTD.
Adults Wellbeing and Health,Head of Adults,Third Party Payments,472101,Purchase of Care,15-Aug-2013,2632276-1355350H,657.08,DALE CARE LTD.
Adults Wellbeing and Health,Head of Adults,Third Party Payments,472101,Purchase of Care,15-Aug-2013,2632276-1355388H,680.18,DALE CARE LTD.
Adults Wellbeing and Health,Head of Adults,Third Party Payments,472101,Purchase of Care,15-Aug-2013,2632276-1355422H,"1,242.08",DALE CARE LTD.
Adults Wellbeing and Health,Head of Adults,Third Party Payments,472101,Purchase of Care,15-Aug-2013,2632276-1355441H,675.24,DALE CARE LTD.
Adults Wellbeing and Health,Head of Adults,Third Party Payments,472101,Purchase of Care,15-Aug-2013,2632276-1355453H,565.59,DALE CARE LTD.
Adults Wellbeing and Health,Head of Adults,Third Party Payments,472101,Purchase of Care,15-Aug-2013,2632276-1355454H,"1,158.91",DALE CARE LTD.
Adults Wellbeing and Health,Head of Adults,Third Party Payments,472101,Purchase of Care,15-Aug-2013,2632276-1355522H,"1,286.44",DALE CARE LTD.
Adults Wellbeing and Health,Head of Adults,Third Party Payments,472101,Purchase of Care,15-Aug-2013,2632276-1355543H,696.32,DALE CARE LTD.
Adults Wellbeing and Health,Head of Adults,Third Party Payments,472101,Purchase of Care,15-Aug-2013,2632276-1355566H,713.44,DALE CARE LTD.
Adults Wellbeing and Health,Head of Adults,Third Party Payments,472101,Purchase of Care,15-Aug-2013,2632276-1355572H,500.90,DALE CARE LTD.
Adults Wellbeing and Health,Head of Adults,Third Party Payments,472101,Purchase of Care,15-Aug-2013,2632276-1355599H,"1,070.19",DALE CARE LTD.
Adults Wellbeing and Health,Head of Adults,Third Party Payments,472101,Purchase of Care,15-Aug-2013,2632276-1355607H,613.64,DALE CARE LTD.
Adults Wellbeing and Health,Head of Adults,Third Party Payments,472101,Purchase of Care,15-Aug-2013,2632276-1355632H,582.23,DALE CARE LTD.
Adults Wellbeing and Health,Head of Adults,Third Party Payments,472101,Purchase of Care,15-Aug-2013,2632276-1355648H,676.48,DALE CARE LTD.
Adults Wellbeing and Health,Head of Adults,Third Party Payments,472101,Purchase of Care,15-Aug-2013,2632276-1355678H,598.88,DALE CARE LTD.
Adults Wellbeing and Health,Head of Adults,Third Party Payments,472101,Purchase of Care,15-Aug-2013,2632276-1355710H,654.32,DALE CARE LTD.
Adults Wellbeing and Health,Head of Adults,Third Party Payments,472101,Purchase of Care,15-Aug-2013,2632276-1355741H,907.32,DALE CARE LTD.
Adults Wellbeing and Health,Head of Adults,Third Party Payments,472101,Purchase of Care,15-Aug-2013,2632276-1355768H,857.64,DALE CARE LTD.
Adults Wellbeing and Health,Head of Adults,Third Party Payments,472101,Purchase of Care,15-Aug-2013,2632276-1355789H,565.60,DALE CARE LTD.
Adults Wellbeing and Health,Head of Adults,Third Party Payments,472101,Purchase of Care,15-Aug-2013,2632276-1355790H,600.71,DALE CARE LTD.
Adults Wellbeing and Health,Head of Adults,Third Party Payments,472101,Purchase of Care,15-Aug-2013,2632276-1355808H,543.40,DALE CARE LTD.
Adults Wellbeing and Health,Head of Adults,Third Party Payments,472101,Purchase of Care,15-Aug-2013,2632276-1355829H,626.59,DALE CARE LTD.
Adults Wellbeing and Health,Head of Adults,Third Party Payments,472101,Purchase of Care,15-Aug-2013,2632276-1355844H,565.60,DALE CARE LTD.
Adults Wellbeing and Health,Head of Adults,Third Party Payments,472101,Purchase of Care,15-Aug-2013,2632276-1355880H,665.40,DALE CARE LTD.
Adults Wellbeing and Health,Head of Adults,Third Party Payments,472101,Purchase of Care,15-Aug-2013,2632276-1355928H,613.64,DALE CARE LTD.
Adults Wellbeing and Health,Head of Adults,Third Party Payments,472101,Purchase of Care,15-Aug-2013,2632276-1355942H,510.14,DALE CARE LTD.
Adults Wellbeing and Health,Head of Adults,Third Party Payments,472101,Purchase of Care,15-Aug-2013,2632276-1355947H,876.12,DALE CARE LTD.
Adults Wellbeing and Health,Head of Adults,Third Party Payments,472101,Purchase of Care,15-Aug-2013,2632276-1355995H,528.64,DALE CARE LTD.
Adults Wellbeing and Health,Head of Adults,Third Party Payments,472101,Purchase of Care,15-Aug-2013,2632276-1356017H,865.04,DALE CARE LTD.
Adults Wellbeing and Health,Head of Adults,Third Party Payments,472101,Purchase of Care,15-Aug-2013,2632276-1356018H,998.12,DALE CARE LTD.
Adults Wellbeing and Health,Head of Adults,Third Party Payments,472101,Purchase of Care,15-Aug-2013,2632276-1356030H,665.40,DALE CARE LTD.
Adults Wellbeing and Health,Head of Adults,Third Party Payments,472101,Purchase of Care,15-Aug-2013,2632276-1356074H,754.12,DALE CARE LTD.
Adults Wellbeing and Health,Head of Adults,Third Party Payments,472101,Purchase of Care,15-Aug-2013,2632276-1356094H,576.68,DALE CARE LTD.
Adults Wellbeing and Health,Head of Adults,Third Party Payments,472101,Purchase of Care,15-Aug-2013,2632276-1356109H,576.68,DALE CARE LTD.
Adults Wellbeing and Health,Head of Adults,Third Party Payments,472101,Purchase of Care,15-Aug-2013,2632276-1356119H,"1,286.44",DALE CARE LTD.
Adults Wellbeing and Health,Head of Adults,Third Party Payments,472101,Purchase of Care,15-Aug-2013,2632276-1356124H,543.40,DALE CARE LTD.
Adults Wellbeing and Health,Head of Adults,Third Party Payments,472101,Purchase of Care,15-Aug-2013,2632276-1356138H,515.69,DALE CARE LTD.
Adults Wellbeing and Health,Head of Adults,Third Party Payments,472101,Purchase of Care,15-Aug-2013,2632276-1356140H,"1,178.31",DALE CARE LTD.
Adults Wellbeing and Health,Head of Adults,Third Party Payments,472101,Purchase of Care,15-Aug-2013,2632276-1356228H,"1,105.32",DALE CARE LTD.
Adults Wellbeing and Health,Head of Adults,Third Party Payments,472101,Purchase of Care,15-Aug-2013,2632276-1356240H,643.56,DALE CARE LTD.
Adults Wellbeing and Health,Head of Adults,Third Party Payments,472101,Purchase of Care,15-Aug-2013,2632276-1356265H,"1,400.00",DALE CARE LTD.
Adults Wellbeing and Health,Head of Adults,Third Party Payments,472101,Purchase of Care,15-Aug-2013,2632276-1356297H,661.72,DALE CARE LTD.
Adults Wellbeing and Health,Head of Adults,Third Party Payments,472101,Purchase of Care,15-Aug-2013,2632276-1356346H,554.52,DALE CARE LTD.
Adults Wellbeing and Health,Head of Adults,Third Party Payments,472101,Purchase of Care,15-Aug-2013,2632276-1356371H,521.23,DALE CARE LTD.
Adults Wellbeing and Health,Head of Adults,Third Party Payments,472101,Purchase of Care,15-Aug-2013,2632276-1356410H,"1,081.29",DALE CARE LTD.
Adults Wellbeing and Health,Head of Adults,Third Party Payments,472101,Purchase of Care,15-Aug-2013,2632276-1356419H,"2,373.28",DALE CARE LTD.
Adults Wellbeing and Health,Head of Adults,Third Party Payments,472101,Purchase of Care,15-Aug-2013,2632276-1356433H,521.24,DALE CARE LTD.
Adults Wellbeing and Health,Head of Adults,Third Party Payments,472101,Purchase of Care,15-Aug-2013,2632276-1356444H,"5,376.53",DALE CARE LTD.
Adults Wellbeing and Health,Head of Adults,Third Party Payments,472101,Purchase of Care,15-Aug-2013,2632276-1356455H,539.72,DALE CARE LTD.
Adults Wellbeing and Health,Head of Adults,Third Party Payments,472101,Purchase of Care,15-Aug-2013,2632276-1356481H,731.96,DALE CARE LTD.
Adults Wellbeing and Health,Head of Adults,Third Party Payments,472101,Purchase of Care,15-Aug-2013,2632276-1356511H,987.00,DALE CARE LTD.
Adults Wellbeing and Health,Head of Adults,Third Party Payments,472101,Purchase of Care,15-Aug-2013,2632276-1356519H,621.04,DALE CARE LTD.
Adults Wellbeing and Health,Head of Adults,Third Party Payments,472101,Purchase of Care,15-Aug-2013,2632276-1356570H,698.68,DALE CARE LTD.
Adults Wellbeing and Health,Head of Adults,Third Party Payments,472101,Purchase of Care,15-Aug-2013,2632276-1356574H,523.08,DALE CARE LTD.
Adults Wellbeing and Health,Head of Adults,Third Party Payments,472101,Purchase of Care,15-Aug-2013,2632276-1356578H,731.96,DALE CARE LTD.
Adults Wellbeing and Health,Head of Adults,Third Party Payments,472101,Purchase of Care,15-Aug-2013,2632276-1356612H,629.35,DALE CARE LTD.
Adults Wellbeing and Health,Head of Adults,Third Party Payments,472101,Purchase of Care,15-Aug-2013,2632276-1356766H,524.02,DALE CARE LTD.
Adults Wellbeing and Health,Head of Adults,Third Party Payments,472101,Purchase of Care,15-Aug-2013,2632276-1356775H,"1,131.20",DALE CARE LTD.
Adults Wellbeing and Health,Head of Adults,Third Party Payments,472101,Purchase of Care,15-Aug-2013,2632276-1356816H,543.40,DALE CARE LTD.
Adults Wellbeing and Health,Head of Adults,Third Party Payments,472101,Purchase of Care,15-Aug-2013,2632276-1356853H,"1,205.11",DALE CARE LTD.
Adults Wellbeing and Health,Head of Adults,Third Party Payments,472101,Purchase of Care,15-Aug-2013,2632276-1356869H,676.48,DALE CARE LTD.
Adults Wellbeing and Health,Head of Adults,Third Party Payments,472101,Purchase of Care,15-Aug-2013,2632276-1356890H,"1,434.32",DALE CARE LTD.
Adults Wellbeing and Health,Head of Adults,Third Party Payments,472101,Purchase of Care,15-Aug-2013,2632276-1356957H,651.54,DALE CARE LTD.
Adults Wellbeing and Health,Head of Adults,Third Party Payments,472101,Purchase of Care,15-Aug-2013,2632276-1356994H,"1,101.60",DALE CARE LTD.
Adults Wellbeing and Health,Head of Adults,Third Party Payments,472101,Purchase of Care,15-Aug-2013,2632276-1357011H,"1,242.08",DALE CARE LTD.
Adults Wellbeing and Health,Head of Adults,Third Party Payments,472101,Purchase of Care,15-Aug-2013,2632276-1357024H,621.04,DALE CARE LTD.
Adults Wellbeing and Health,Head of Adults,Third Party Payments,472101,Purchase of Care,15-Aug-2013,2632276-1357050H,734.71,DALE CARE LTD.
Adults Wellbeing and Health,Head of Adults,Third Party Payments,472101,Purchase of Care,15-Aug-2013,2632276-1357084H,665.40,DALE CARE LTD.
Adults Wellbeing and Health,Head of Adults,Third Party Payments,472101,Purchase of Care,15-Aug-2013,2632276-1357085H,"1,563.70",DALE CARE LTD.
Adults Wellbeing and Health,Head of Adults,Third Party Payments,472101,Purchase of Care,15-Aug-2013,2632276-1357105H,609.96,DALE CARE LTD.
Adults Wellbeing and Health,Head of Adults,Third Party Payments,472101,Purchase of Care,15-Aug-2013,2632276-1357139H,572.98,DALE CARE LTD.
Adults Wellbeing and Health,Head of Adults,Third Party Payments,472101,Purchase of Care,15-Aug-2013,2632276-1357142H,709.76,DALE CARE LTD.
Adults Wellbeing and Health,Head of Adults,Third Party Payments,472101,Purchase of Care,15-Aug-2013,2632276-1357147H,609.96,DALE CARE LTD.
Adults Wellbeing and Health,Head of Adults,Third Party Payments,472101,Purchase of Care,15-Aug-2013,2632276-1357150H,621.04,DALE CARE LTD.
Adults Wellbeing and Health,Head of Adults,Third Party Payments,472101,Purchase of Care,15-Aug-2013,2632276-1357171H,506.44,DALE CARE LTD.
Adults Wellbeing and Health,Head of Adults,Third Party Payments,472101,Purchase of Care,15-Aug-2013,2632276-1357193H,"1,324.33",DALE CARE LTD.
Adults Wellbeing and Health,Head of Adults,Third Party Payments,472101,Purchase of Care,15-Aug-2013,2632276-1357212H,598.86,DALE CARE LTD.
Adults Wellbeing and Health,Head of Adults,Third Party Payments,472101,Purchase of Care,15-Aug-2013,2632276-1357218H,506.44,DALE CARE LTD.
Adults Wellbeing and Health,Head of Adults,Third Party Payments,472101,Purchase of Care,15-Aug-2013,2632276-1357222H,571.14,DALE CARE LTD.
Adults Wellbeing and Health,Head of Adults,Third Party Payments,472101,Purchase of Care,15-Aug-2013,2632276-1357226H,696.32,DALE CARE LTD.
Adults Wellbeing and Health,Head of Adults,Third Party Payments,472101,Purchase of Care,15-Aug-2013,2632276-1357271H,"1,242.08",DALE CARE LTD.
Adults Wellbeing and Health,Head of Adults,Third Party Payments,472101,Purchase of Care,15-Aug-2013,2632276-1357307H,539.72,DALE CARE LTD.
Adults Wellbeing and Health,Head of Adults,Third Party Payments,472101,Purchase of Care,15-Aug-2013,2632276-1357334H,"1,308.64",DALE CARE LTD.
Adults Wellbeing and Health,Head of Adults,Third Party Payments,472101,Purchase of Care,15-Aug-2013,2632276-1357366H,637.68,DALE CARE LTD.
Adults Wellbeing and Health,Head of Adults,Third Party Payments,472101,Purchase of Care,15-Aug-2013,2632276-1357374H,609.96,DALE CARE LTD.
Adults Wellbeing and Health,Head of Adults,Third Party Payments,472101,Purchase of Care,15-Aug-2013,2632276-1357498H,532.32,DALE CARE LTD.
Adults Wellbeing and Health,Head of Adults,Third Party Payments,472101,Purchase of Care,15-Aug-2013,2632276-1357499H,539.72,DALE CARE LTD.
Adults Wellbeing and Health,Head of Adults,Third Party Payments,472101,Purchase of Care,15-Aug-2013,2632276-1357511H,598.86,DALE CARE LTD.
Adults Wellbeing and Health,Head of Adults,Third Party Payments,472101,Purchase of Care,15-Aug-2013,2632390-1353276H,"3,330.05",EASINGTON DISTRICT CROSSROADS.
Adults Wellbeing and Health,Head of Adults,Third Party Payments,472101,Purchase of Care,15-Aug-2013,2632390-1355106H,544.80,EASINGTON DISTRICT CROSSROADS.
Adults Wellbeing and Health,Head of Adults,Third Party Payments,472101,Purchase of Care,15-Aug-2013,2632395-1354776H,"1,101.44",EBONEY HOME CARE LTD.
Adults Wellbeing and Health,Head of Adults,Third Party Payments,472101,Purchase of Care,15-Aug-2013,2632395-1356328H,"1,413.72",EBONEY HOME CARE LTD.
Adults Wellbeing and Health,Head of Adults,Third Party Payments,472101,Purchase of Care,15-Aug-2013,2632586-1351105H,"1,885.04",HIGHLEA CARE LTD.
Adults Wellbeing and Health,Head of Adults,Third Party Payments,472101,Purchase of Care,15-Aug-2013,2632586-1351407H,"1,570.60",HIGHLEA CARE LTD.
Adults Wellbeing and Health,Head of Adults,Third Party Payments,472101,Purchase of Care,15-Aug-2013,2632586-1352144H,"1,885.04",HIGHLEA CARE LTD.
Adults Wellbeing and Health,Head of Adults,Third Party Payments,472101,Purchase of Care,15-Aug-2013,2632586-1354453H,"1,885.04",HIGHLEA CARE LTD.
Adults Wellbeing and Health,Head of Adults,Third Party Payments,472101,Purchase of Care,15-Aug-2013,2632802-1351614H,510.16,KELLY PARK CARING AGENCY LTD.
Adults Wellbeing and Health,Head of Adults,Third Party Payments,472101,Purchase of Care,15-Aug-2013,2632802-1352352H,"1,341.88",KELLY PARK CARING AGENCY LTD.
Adults Wellbeing and Health,Head of Adults,Third Party Payments,472101,Purchase of Care,15-Aug-2013,2632802-1352392H,510.16,KELLY PARK CARING AGENCY LTD.
Adults Wellbeing and Health,Head of Adults,Third Party Payments,472101,Purchase of Care,15-Aug-2013,2632802-1352470H,"1,020.28",KELLY PARK CARING AGENCY LTD.
Adults Wellbeing and Health,Head of Adults,Third Party Payments,472101,Purchase of Care,15-Aug-2013,2632802-1352505H,698.68,KELLY PARK CARING AGENCY LTD.
Adults Wellbeing and Health,Head of Adults,Third Party Payments,472101,Purchase of Care,15-Aug-2013,2632802-1352559H,754.12,KELLY PARK CARING AGENCY LTD.
Adults Wellbeing and Health,Head of Adults,Third Party Payments,472101,Purchase of Care,15-Aug-2013,2632802-1352646H,"1,330.80",KELLY PARK CARING AGENCY LTD.
Adults Wellbeing and Health,Head of Adults,Third Party Payments,472101,Purchase of Care,15-Aug-2013,2632802-1352654H,521.23,KELLY PARK CARING AGENCY LTD.
Adults Wellbeing and Health,Head of Adults,Third Party Payments,472101,Purchase of Care,15-Aug-2013,2632802-1352660H,842.84,KELLY PARK CARING AGENCY LTD.
Adults Wellbeing and Health,Head of Adults,Third Party Payments,472101,Purchase of Care,15-Aug-2013,2632802-1352698H,"1,497.16",KELLY PARK CARING AGENCY LTD.
Adults Wellbeing and Health,Head of Adults,Third Party Payments,472101,Purchase of Care,15-Aug-2013,2632802-1352703H,"1,042.48",KELLY PARK CARING AGENCY LTD.
Adults Wellbeing and Health,Head of Adults,Third Party Payments,472101,Purchase of Care,15-Aug-2013,2632802-1353259H,582.23,KELLY PARK CARING AGENCY LTD.
Adults Wellbeing and Health,Head of Adults,Third Party Payments,472101,Purchase of Care,15-Aug-2013,2632802-1353607H,621.04,KELLY PARK CARING AGENCY LTD.
Adults Wellbeing and Health,Head of Adults,Third Party Payments,472101,Purchase of Care,15-Aug-2013,2632802-1353626H,687.60,KELLY PARK CARING AGENCY LTD.
Adults Wellbeing and Health,Head of Adults,Third Party Payments,472101,Purchase of Care,15-Aug-2013,2632802-1353941H,731.96,KELLY PARK CARING AGENCY LTD.
Adults Wellbeing and Health,Head of Adults,Third Party Payments,472101,Purchase of Care,15-Aug-2013,2632802-1354487H,"1,449.08",KELLY PARK CARING AGENCY LTD.
Adults Wellbeing and Health,Head of Adults,Third Party Payments,472101,Purchase of Care,15-Aug-2013,2632802-1354636H,842.84,KELLY PARK CARING AGENCY LTD.
Adults Wellbeing and Health,Head of Adults,Third Party Payments,472101,Purchase of Care,15-Aug-2013,2632802-1354754H,702.36,KELLY PARK CARING AGENCY LTD.
Adults Wellbeing and Health,Head of Adults,Third Party Payments,472101,Purchase of Care,15-Aug-2013,2632802-1354760H,609.96,KELLY PARK CARING AGENCY LTD.
Adults Wellbeing and Health,Head of Adults,Third Party Payments,472101,Purchase of Care,15-Aug-2013,2632802-1355100H,687.60,KELLY PARK CARING AGENCY LTD.
Adults Wellbeing and Health,Head of Adults,Third Party Payments,472101,Purchase of Care,15-Aug-2013,2632802-1355125H,665.40,KELLY PARK CARING AGENCY LTD.
Adults Wellbeing and Health,Head of Adults,Third Party Payments,472101,Purchase of Care,15-Aug-2013,2632802-1355279H,561.88,KELLY PARK CARING AGENCY LTD.
Adults Wellbeing and Health,Head of Adults,Third Party Payments,472101,Purchase of Care,15-Aug-2013,2632802-1355288H,502.76,KELLY PARK CARING AGENCY LTD.
Adults Wellbeing and Health,Head of Adults,Third Party Payments,472101,Purchase of Care,15-Aug-2013,2632802-1355459H,643.24,KELLY PARK CARING AGENCY LTD.
Adults Wellbeing and Health,Head of Adults,Third Party Payments,472101,Purchase of Care,15-Aug-2013,2632802-1355569H,543.41,KELLY PARK CARING AGENCY LTD.
Adults Wellbeing and Health,Head of Adults,Third Party Payments,472101,Purchase of Care,15-Aug-2013,2632802-1355683H,975.92,KELLY PARK CARING AGENCY LTD.
Adults Wellbeing and Health,Head of Adults,Third Party Payments,472101,Purchase of Care,15-Aug-2013,2632802-1355714H,539.72,KELLY PARK CARING AGENCY LTD.
Adults Wellbeing and Health,Head of Adults,Third Party Payments,472101,Purchase of Care,15-Aug-2013,2632802-1355937H,639.52,KELLY PARK CARING AGENCY LTD.
Adults Wellbeing and Health,Head of Adults,Third Party Payments,472101,Purchase of Care,15-Aug-2013,2632802-1355974H,521.24,KELLY PARK CARING AGENCY LTD.
Adults Wellbeing and Health,Head of Adults,Third Party Payments,472101,Purchase of Care,15-Aug-2013,2632802-1356353H,675.57,KELLY PARK CARING AGENCY LTD.
Adults Wellbeing and Health,Head of Adults,Third Party Payments,472101,Purchase of Care,15-Aug-2013,2632802-1356550H,931.56,KELLY PARK CARING AGENCY LTD.
Adults Wellbeing and Health,Head of Adults,Third Party Payments,472101,Purchase of Care,15-Aug-2013,2632802-1356672H,543.40,KELLY PARK CARING AGENCY LTD.
Adults Wellbeing and Health,Head of Adults,Third Party Payments,472101,Purchase of Care,15-Aug-2013,2632802-1356960H,"1,242.08",KELLY PARK CARING AGENCY LTD.
Adults Wellbeing and Health,Head of Adults,Third Party Payments,472101,Purchase of Care,15-Aug-2013,2632802-1356997H,698.68,KELLY PARK CARING AGENCY LTD.
Adults Wellbeing and Health,Head of Adults,Third Party Payments,472101,Purchase of Care,15-Aug-2013,2632802-1357119H,872.40,KELLY PARK CARING AGENCY LTD.
Adults Wellbeing and Health,Head of Adults,Third Party Payments,472101,Purchase of Care,15-Aug-2013,2632802-1357267H,931.56,KELLY PARK CARING AGENCY LTD.
Adults Wellbeing and Health,Head of Adults,Third Party Payments,472101,Purchase of Care,15-Aug-2013,2632803-1351145H,754.12,KELLY PARK OHC.
Adults Wellbeing and Health,Head of Adults,Third Party Payments,472101,Purchase of Care,15-Aug-2013,2632803-1351559H,510.16,KELLY PARK OHC.
Adults Wellbeing and Health,Head of Adults,Third Party Payments,472101,Purchase of Care,15-Aug-2013,2632803-1351627H,"4,436.00",KELLY PARK OHC.
Adults Wellbeing and Health,Head of Adults,Third Party Payments,472101,Purchase of Care,15-Aug-2013,2632803-1351745H,587.76,KELLY PARK OHC.
Adults Wellbeing and Health,Head of Adults,Third Party Payments,472101,Purchase of Care,15-Aug-2013,2632803-1351966H,"1,707.88",KELLY PARK OHC.
Adults Wellbeing and Health,Head of Adults,Third Party Payments,472101,Purchase of Care,15-Aug-2013,2632803-1352001H,613.64,KELLY PARK OHC.
Adults Wellbeing and Health,Head of Adults,Third Party Payments,472101,Purchase of Care,15-Aug-2013,2632803-1352014H,"1,652.40",KELLY PARK OHC.
Adults Wellbeing and Health,Head of Adults,Third Party Payments,472101,Purchase of Care,15-Aug-2013,2632803-1352051H,621.04,KELLY PARK OHC.
Adults Wellbeing and Health,Head of Adults,Third Party Payments,472101,Purchase of Care,15-Aug-2013,2632803-1352071H,"1,353.00",KELLY PARK OHC.
Adults Wellbeing and Health,Head of Adults,Third Party Payments,472101,Purchase of Care,15-Aug-2013,2632803-1352364H,643.24,KELLY PARK OHC.
Adults Wellbeing and Health,Head of Adults,Third Party Payments,472101,Purchase of Care,15-Aug-2013,2632803-1352391H,565.60,KELLY PARK OHC.
Adults Wellbeing and Health,Head of Adults,Third Party Payments,472101,Purchase of Care,15-Aug-2013,2632803-1352419H,"1,164.44",KELLY PARK OHC.
Adults Wellbeing and Health,Head of Adults,Third Party Payments,472101,Purchase of Care,15-Aug-2013,2632803-1352459H,931.56,KELLY PARK OHC.
Adults Wellbeing and Health,Head of Adults,Third Party Payments,472101,Purchase of Care,15-Aug-2013,2632803-1352636H,536.00,KELLY PARK OHC.
Adults Wellbeing and Health,Head of Adults,Third Party Payments,472101,Purchase of Care,15-Aug-2013,2632803-1352655H,505.51,KELLY PARK OHC.
Adults Wellbeing and Health,Head of Adults,Third Party Payments,472101,Purchase of Care,15-Aug-2013,2632803-1352679H,"1,341.88",KELLY PARK OHC.
Adults Wellbeing and Health,Head of Adults,Third Party Payments,472101,Purchase of Care,15-Aug-2013,2632803-1352704H,539.72,KELLY PARK OHC.
Adults Wellbeing and Health,Head of Adults,Third Party Payments,472101,Purchase of Care,15-Aug-2013,2632803-1352739H,598.88,KELLY PARK OHC.
Adults Wellbeing and Health,Head of Adults,Third Party Payments,472101,Purchase of Care,15-Aug-2013,2632803-1352758H,831.76,KELLY PARK OHC.
Adults Wellbeing and Health,Head of Adults,Third Party Payments,472101,Purchase of Care,15-Aug-2013,2632803-1353323H,665.40,KELLY PARK OHC.
Adults Wellbeing and Health,Head of Adults,Third Party Payments,472101,Purchase of Care,15-Aug-2013,2632803-1353326H,754.12,KELLY PARK OHC.
Adults Wellbeing and Health,Head of Adults,Third Party Payments,472101,Purchase of Care,15-Aug-2013,2632803-1353382H,579.45,KELLY PARK OHC.
Adults Wellbeing and Health,Head of Adults,Third Party Payments,472101,Purchase of Care,15-Aug-2013,2632803-1353425H,"1,996.20",KELLY PARK OHC.
Adults Wellbeing and Health,Head of Adults,Third Party Payments,472101,Purchase of Care,15-Aug-2013,2632803-1353671H,754.12,KELLY PARK OHC.
Adults Wellbeing and Health,Head of Adults,Third Party Payments,472101,Purchase of Care,15-Aug-2013,2632803-1353680H,"1,397.36",KELLY PARK OHC.
Adults Wellbeing and Health,Head of Adults,Third Party Payments,472101,Purchase of Care,15-Aug-2013,2632803-1353749H,502.76,KELLY PARK OHC.
Adults Wellbeing and Health,Head of Adults,Third Party Payments,472101,Purchase of Care,15-Aug-2013,2632803-1353798H,643.24,KELLY PARK OHC.
Adults Wellbeing and Health,Head of Adults,Third Party Payments,472101,Purchase of Care,15-Aug-2013,2632803-1353806H,709.76,KELLY PARK OHC.
Adults Wellbeing and Health,Head of Adults,Third Party Payments,472101,Purchase of Care,15-Aug-2013,2632803-1354062H,554.52,KELLY PARK OHC.
Adults Wellbeing and Health,Head of Adults,Third Party Payments,472101,Purchase of Care,15-Aug-2013,2632803-1354255H,521.24,KELLY PARK OHC.
Adults Wellbeing and Health,Head of Adults,Third Party Payments,472101,Purchase of Care,15-Aug-2013,2632803-1354361H,539.72,KELLY PARK OHC.
Adults Wellbeing and Health,Head of Adults,Third Party Payments,472101,Purchase of Care,15-Aug-2013,2632803-1354385H,"1,138.56",KELLY PARK OHC.
Adults Wellbeing and Health,Head of Adults,Third Party Payments,472101,Purchase of Care,15-Aug-2013,2632803-1354646H,521.24,KELLY PARK OHC.
Adults Wellbeing and Health,Head of Adults,Third Party Payments,472101,Purchase of Care,15-Aug-2013,2632803-1354950H,643.24,KELLY PARK OHC.
Adults Wellbeing and Health,Head of Adults,Third Party Payments,472101,Purchase of Care,15-Aug-2013,2632803-1354951H,607.19,KELLY PARK OHC.
Adults Wellbeing and Health,Head of Adults,Third Party Payments,472101,Purchase of Care,15-Aug-2013,2632803-1354985H,"1,472.20",KELLY PARK OHC.
Adults Wellbeing and Health,Head of Adults,Third Party Payments,472101,Purchase of Care,15-Aug-2013,2632803-1355132H,809.56,KELLY PARK OHC.
Adults Wellbeing and Health,Head of Adults,Third Party Payments,472101,Purchase of Care,15-Aug-2013,2632803-1355317H,613.64,KELLY PARK OHC.
Adults Wellbeing and Health,Head of Adults,Third Party Payments,472101,Purchase of Care,15-Aug-2013,2632803-1355554H,517.52,KELLY PARK OHC.
Adults Wellbeing and Health,Head of Adults,Third Party Payments,472101,Purchase of Care,15-Aug-2013,2632803-1356268H,539.72,KELLY PARK OHC.
Adults Wellbeing and Health,Head of Adults,Third Party Payments,472101,Purchase of Care,15-Aug-2013,2632803-1356327H,"1,242.08",KELLY PARK OHC.
Adults Wellbeing and Health,Head of Adults,Third Party Payments,472101,Purchase of Care,15-Aug-2013,2632803-1356826H,548.03,KELLY PARK OHC.
Adults Wellbeing and Health,Head of Adults,Third Party Payments,472101,Purchase of Care,15-Aug-2013,2632803-1356934H,693.13,KELLY PARK OHC.
Adults Wellbeing and Health,Head of Adults,Third Party Payments,472101,Purchase of Care,15-Aug-2013,2632803-1357079H,731.94,KELLY PARK OHC.
Adults Wellbeing and Health,Head of Adults,Third Party Payments,472101,Purchase of Care,15-Aug-2013,2632803-1357201H,676.48,KELLY PARK OHC.
Adults Wellbeing and Health,Head of Adults,Third Party Payments,472101,Purchase of Care,15-Aug-2013,2632803-1357204H,521.24,KELLY PARK OHC.
Adults Wellbeing and Health,Head of Adults,Third Party Payments,472101,Purchase of Care,15-Aug-2013,2632803-1357298H,510.16,KELLY PARK OHC.
Adults Wellbeing and Health,Head of Adults,Third Party Payments,472101,Purchase of Care,15-Aug-2013,2632803-1357368H,560.05,KELLY PARK OHC.
Adults Wellbeing and Health,Head of Adults,Third Party Payments,472101,Purchase of Care,15-Aug-2013,2632803-1357414H,621.04,KELLY PARK OHC.
Adults Wellbeing and Health,Head of Adults,Third Party Payments,472101,Purchase of Care,15-Aug-2013,2632803-1357442H,517.52,KELLY PARK OHC.
Adults Wellbeing and Health,Head of Adults,Third Party Payments,472101,Purchase of Care,15-Aug-2013,2632803-1357455H,913.08,KELLY PARK OHC.
Adults Wellbeing and Health,Head of Adults,Third Party Payments,472101,Purchase of Care,15-Aug-2013,2632803-1357528H,865.02,KELLY PARK OHC.
Adults Wellbeing and Health,Head of Adults,Third Party Payments,472101,Purchase of Care,15-Aug-2013,2632820-1355118H,"1,620.00",KINDSTREAM CARE LTD.
Adults Wellbeing and Health,Head of Adults,Third Party Payments,472101,Purchase of Care,15-Aug-2013,2633027-1351019H,934.56,MENCAP.
Adults Wellbeing and Health,Head of Adults,Third Party Payments,472101,Purchase of Care,15-Aug-2013,2633027-1351524H,"1,509.64",MENCAP.
Adults Wellbeing and Health,Head of Adults,Third Party Payments,472101,Purchase of Care,15-Aug-2013,2633027-1351791H,"2,281.40",MENCAP.
Adults Wellbeing and Health,Head of Adults,Third Party Payments,472101,Purchase of Care,15-Aug-2013,2633027-1351831H,830.72,MENCAP.
Adults Wellbeing and Health,Head of Adults,Third Party Payments,472101,Purchase of Care,15-Aug-2013,2633027-1351847H,726.88,MENCAP.
Adults Wellbeing and Health,Head of Adults,Third Party Payments,472101,Purchase of Care,15-Aug-2013,2633027-1351864H,778.80,MENCAP.
Adults Wellbeing and Health,Head of Adults,Third Party Payments,472101,Purchase of Care,15-Aug-2013,2633042-1352796H,"1,934.24",MIDDLETON CARE LTD.
Adults Wellbeing and Health,Head of Adults,Third Party Payments,472101,Purchase of Care,15-Aug-2013,2633042-1352814H,"1,723.16",MIDDLETON CARE LTD.
Adults Wellbeing and Health,Head of Adults,Third Party Payments,472101,Purchase of Care,15-Aug-2013,2633235-1352087H,977.20,NORTH FARM COTTAGES SUPPORTED LIVING.
Adults Wellbeing and Health,Head of Adults,Third Party Payments,472101,Purchase of Care,15-Aug-2013,2633265-1351143H,"2,206.92",ORCHARD HOME CARE SERVICES LTD.
Adults Wellbeing and Health,Head of Adults,Third Party Payments,472101,Purchase of Care,15-Aug-2013,2633265-1351460H,"1,109.00",ORCHARD HOME CARE SERVICES LTD.
Adults Wellbeing and Health,Head of Adults,Third Party Payments,472101,Purchase of Care,15-Aug-2013,2633265-1351466H,"1,075.73",ORCHARD HOME CARE SERVICES LTD.
Adults Wellbeing and Health,Head of Adults,Third Party Payments,472101,Purchase of Care,15-Aug-2013,2633265-1351468H,967.60,ORCHARD HOME CARE SERVICES LTD.
Adults Wellbeing and Health,Head of Adults,Third Party Payments,472101,Purchase of Care,15-Aug-2013,2633265-1351475H,598.88,ORCHARD HOME CARE SERVICES LTD.
Adults Wellbeing and Health,Head of Adults,Third Party Payments,472101,Purchase of Care,15-Aug-2013,2633265-1351482H,"1,397.36",ORCHARD HOME CARE SERVICES LTD.
Adults Wellbeing and Health,Head of Adults,Third Party Payments,472101,Purchase of Care,15-Aug-2013,2633265-1351488H,787.40,ORCHARD HOME CARE SERVICES LTD.
Adults Wellbeing and Health,Head of Adults,Third Party Payments,472101,Purchase of Care,15-Aug-2013,2633265-1351515H,776.32,ORCHARD HOME CARE SERVICES LTD.
Adults Wellbeing and Health,Head of Adults,Third Party Payments,472101,Purchase of Care,15-Aug-2013,2633265-1352011H,576.68,ORCHARD HOME CARE SERVICES LTD.
Adults Wellbeing and Health,Head of Adults,Third Party Payments,472101,Purchase of Care,15-Aug-2013,2633265-1352146H,"1,951.84",ORCHARD HOME CARE SERVICES LTD.
Adults Wellbeing and Health,Head of Adults,Third Party Payments,472101,Purchase of Care,15-Aug-2013,2633265-1352278H,671.88,ORCHARD HOME CARE SERVICES LTD.
Adults Wellbeing and Health,Head of Adults,Third Party Payments,472101,Purchase of Care,15-Aug-2013,2633265-1352287H,609.96,ORCHARD HOME CARE SERVICES LTD.
Adults Wellbeing and Health,Head of Adults,Third Party Payments,472101,Purchase of Care,15-Aug-2013,2633265-1352431H,623.20,ORCHARD HOME CARE SERVICES LTD.
Adults Wellbeing and Health,Head of Adults,Third Party Payments,472101,Purchase of Care,15-Aug-2013,2633265-1352447H,720.84,ORCHARD HOME CARE SERVICES LTD.
Adults Wellbeing and Health,Head of Adults,Third Party Payments,472101,Purchase of Care,15-Aug-2013,2633265-1352601H,621.04,ORCHARD HOME CARE SERVICES LTD.
Adults Wellbeing and Health,Head of Adults,Third Party Payments,472101,Purchase of Care,15-Aug-2013,2633265-1352716H,"1,619.16",ORCHARD HOME CARE SERVICES LTD.
Adults Wellbeing and Health,Head of Adults,Third Party Payments,472101,Purchase of Care,15-Aug-2013,2633265-1353184H,"1,463.84",ORCHARD HOME CARE SERVICES LTD.
Adults Wellbeing and Health,Head of Adults,Third Party Payments,472101,Purchase of Care,15-Aug-2013,2633265-1353216H,698.68,ORCHARD HOME CARE SERVICES LTD.
Adults Wellbeing and Health,Head of Adults,Third Party Payments,472101,Purchase of Care,15-Aug-2013,2633265-1353336H,695.68,ORCHARD HOME CARE SERVICES LTD.
Adults Wellbeing and Health,Head of Adults,Third Party Payments,472101,Purchase of Care,15-Aug-2013,2633265-1353517H,948.20,ORCHARD HOME CARE SERVICES LTD.
Adults Wellbeing and Health,Head of Adults,Third Party Payments,472101,Purchase of Care,15-Aug-2013,2633265-1353676H,"1,863.12",ORCHARD HOME CARE SERVICES LTD.
Adults Wellbeing and Health,Head of Adults,Third Party Payments,472101,Purchase of Care,15-Aug-2013,2633265-1353690H,"1,086.84",ORCHARD HOME CARE SERVICES LTD.
Adults Wellbeing and Health,Head of Adults,Third Party Payments,472101,Purchase of Care,15-Aug-2013,2633265-1353708H,510.14,ORCHARD HOME CARE SERVICES LTD.
Adults Wellbeing and Health,Head of Adults,Third Party Payments,472101,Purchase of Care,15-Aug-2013,2633265-1353949H,"1,380.48",ORCHARD HOME CARE SERVICES LTD.
Adults Wellbeing and Health,Head of Adults,Third Party Payments,472101,Purchase of Care,15-Aug-2013,2633265-1354025H,"2,554.32",ORCHARD HOME CARE SERVICES LTD.
Adults Wellbeing and Health,Head of Adults,Third Party Payments,472101,Purchase of Care,15-Aug-2013,2633265-1354030H,"1,458.34",ORCHARD HOME CARE SERVICES LTD.
Adults Wellbeing and Health,Head of Adults,Third Party Payments,472101,Purchase of Care,15-Aug-2013,2633265-1354042H,"1,585.88",ORCHARD HOME CARE SERVICES LTD.
Adults Wellbeing and Health,Head of Adults,Third Party Payments,472101,Purchase of Care,15-Aug-2013,2633265-1354154H,"1,242.08",ORCHARD HOME CARE SERVICES LTD.
Adults Wellbeing and Health,Head of Adults,Third Party Payments,472101,Purchase of Care,15-Aug-2013,2633265-1354327H,862.25,ORCHARD HOME CARE SERVICES LTD.
Adults Wellbeing and Health,Head of Adults,Third Party Payments,472101,Purchase of Care,15-Aug-2013,2633265-1354376H,510.16,ORCHARD HOME CARE SERVICES LTD.
Adults Wellbeing and Health,Head of Adults,Third Party Payments,472101,Purchase of Care,15-Aug-2013,2633265-1354412H,"1,239.31",ORCHARD HOME CARE SERVICES LTD.
Adults Wellbeing and Health,Head of Adults,Third Party Payments,472101,Purchase of Care,15-Aug-2013,2633265-1354530H,809.56,ORCHARD HOME CARE SERVICES LTD.
Adults Wellbeing and Health,Head of Adults,Third Party Payments,472101,Purchase of Care,15-Aug-2013,2633265-1354711H,913.09,ORCHARD HOME CARE SERVICES LTD.
Adults Wellbeing and Health,Head of Adults,Third Party Payments,472101,Purchase of Care,15-Aug-2013,2633265-1354732H,717.16,ORCHARD HOME CARE SERVICES LTD.
Adults Wellbeing and Health,Head of Adults,Third Party Payments,472101,Purchase of Care,15-Aug-2013,2633265-1354786H,608.72,ORCHARD HOME CARE SERVICES LTD.
Adults Wellbeing and Health,Head of Adults,Third Party Payments,472101,Purchase of Care,15-Aug-2013,2633265-1354935H,532.64,ORCHARD HOME CARE SERVICES LTD.
Adults Wellbeing and Health,Head of Adults,Third Party Payments,472101,Purchase of Care,15-Aug-2013,2633265-1355000H,584.28,ORCHARD HOME CARE SERVICES LTD.
Adults Wellbeing and Health,Head of Adults,Third Party Payments,472101,Purchase of Care,15-Aug-2013,2633265-1355189H,"1,397.36",ORCHARD HOME CARE SERVICES LTD.
Adults Wellbeing and Health,Head of Adults,Third Party Payments,472101,Purchase of Care,15-Aug-2013,2633265-1355298H,743.04,ORCHARD HOME CARE SERVICES LTD.
Adults Wellbeing and Health,Head of Adults,Third Party Payments,472101,Purchase of Care,15-Aug-2013,2633265-1355344H,502.76,ORCHARD HOME CARE SERVICES LTD.
Adults Wellbeing and Health,Head of Adults,Third Party Payments,472101,Purchase of Care,15-Aug-2013,2633265-1355370H,"1,375.18",ORCHARD HOME CARE SERVICES LTD.
Adults Wellbeing and Health,Head of Adults,Third Party Payments,472101,Purchase of Care,15-Aug-2013,2633265-1355414H,"1,242.08",ORCHARD HOME CARE SERVICES LTD.
Adults Wellbeing and Health,Head of Adults,Third Party Payments,472101,Purchase of Care,15-Aug-2013,2633265-1355439H,572.48,ORCHARD HOME CARE SERVICES LTD.
Adults Wellbeing and Health,Head of Adults,Third Party Payments,472101,Purchase of Care,15-Aug-2013,2633265-1355448H,"1,081.29",ORCHARD HOME CARE SERVICES LTD.
Adults Wellbeing and Health,Head of Adults,Third Party Payments,472101,Purchase of Care,15-Aug-2013,2633265-1355498H,743.04,ORCHARD HOME CARE SERVICES LTD.
Adults Wellbeing and Health,Head of Adults,Third Party Payments,472101,Purchase of Care,15-Aug-2013,2633265-1355551H,613.64,ORCHARD HOME CARE SERVICES LTD.
Adults Wellbeing and Health,Head of Adults,Third Party Payments,472101,Purchase of Care,15-Aug-2013,2633265-1355791H,712.54,ORCHARD HOME CARE SERVICES LTD.
Adults Wellbeing and Health,Head of Adults,Third Party Payments,472101,Purchase of Care,15-Aug-2013,2633265-1355861H,554.52,ORCHARD HOME CARE SERVICES LTD.
Adults Wellbeing and Health,Head of Adults,Third Party Payments,472101,Purchase of Care,15-Aug-2013,2633265-1355893H,"1,190.27",ORCHARD HOME CARE SERVICES LTD.
Adults Wellbeing and Health,Head of Adults,Third Party Payments,472101,Purchase of Care,15-Aug-2013,2633265-1355957H,879.80,ORCHARD HOME CARE SERVICES LTD.
Adults Wellbeing and Health,Head of Adults,Third Party Payments,472101,Purchase of Care,15-Aug-2013,2633265-1356061H,"1,242.08",ORCHARD HOME CARE SERVICES LTD.
Adults Wellbeing and Health,Head of Adults,Third Party Payments,472101,Purchase of Care,15-Aug-2013,2633265-1356223H,581.54,ORCHARD HOME CARE SERVICES LTD.
Adults Wellbeing and Health,Head of Adults,Third Party Payments,472101,Purchase of Care,15-Aug-2013,2633265-1356259H,513.84,ORCHARD HOME CARE SERVICES LTD.
Adults Wellbeing and Health,Head of Adults,Third Party Payments,472101,Purchase of Care,15-Aug-2013,2633265-1356269H,634.08,ORCHARD HOME CARE SERVICES LTD.
Adults Wellbeing and Health,Head of Adults,Third Party Payments,472101,Purchase of Care,15-Aug-2013,2633265-1356304H,826.22,ORCHARD HOME CARE SERVICES LTD.
Adults Wellbeing and Health,Head of Adults,Third Party Payments,472101,Purchase of Care,15-Aug-2013,2633265-1357086H,619.60,ORCHARD HOME CARE SERVICES LTD.
Adults Wellbeing and Health,Head of Adults,Third Party Payments,472101,Purchase of Care,15-Aug-2013,2633265-1357153H,816.96,ORCHARD HOME CARE SERVICES LTD.
Adults Wellbeing and Health,Head of Adults,Third Party Payments,472101,Purchase of Care,15-Aug-2013,2633265-1357207H,"1,242.08",ORCHARD HOME CARE SERVICES LTD.
Adults Wellbeing and Health,Head of Adults,Third Party Payments,472101,Purchase of Care,15-Aug-2013,2633265-1357243H,609.95,ORCHARD HOME CARE SERVICES LTD.
Adults Wellbeing and Health,Head of Adults,Third Party Payments,472101,Purchase of Care,15-Aug-2013,2633265-1357252H,975.94,ORCHARD HOME CARE SERVICES LTD.
Adults Wellbeing and Health,Head of Adults,Third Party Payments,472101,Purchase of Care,15-Aug-2013,2633265-1357287H,510.14,ORCHARD HOME CARE SERVICES LTD.
Adults Wellbeing and Health,Head of Adults,Third Party Payments,472101,Purchase of Care,15-Aug-2013,2633265-1357309H,558.20,ORCHARD HOME CARE SERVICES LTD.
Adults Wellbeing and Health,Head of Adults,Third Party Payments,472101,Purchase of Care,15-Aug-2013,2633265-1357316H,608.72,ORCHARD HOME CARE SERVICES LTD.
Adults Wellbeing and Health,Head of Adults,Third Party Payments,472101,Purchase of Care,15-Aug-2013,2633265-1357335H,"1,136.73",ORCHARD HOME CARE SERVICES LTD.
Adults Wellbeing and Health,Head of Adults,Third Party Payments,472101,Purchase of Care,15-Aug-2013,2633265-1357389H,608.72,ORCHARD HOME CARE SERVICES LTD.
Adults Wellbeing and Health,Head of Adults,Third Party Payments,472101,Purchase of Care,15-Aug-2013,2633265-1357461H,643.24,ORCHARD HOME CARE SERVICES LTD.
Adults Wellbeing and Health,Head of Adults,Third Party Payments,472101,Purchase of Care,15-Aug-2013,2633315-1356204H,"2,340.00",PERFECT CARE LTD.
Adults Wellbeing and Health,Head of Adults,Third Party Payments,472101,Purchase of Care,15-Aug-2013,2633350-1350748H,746.73,PREMIER COMMUNITY CARE LTD.
Adults Wellbeing and Health,Head of Adults,Third Party Payments,472101,Purchase of Care,15-Aug-2013,2633350-1350772H,964.84,PREMIER COMMUNITY CARE LTD.
Adults Wellbeing and Health,Head of Adults,Third Party Payments,472101,Purchase of Care,15-Aug-2013,2633350-1350776H,"1,596.96",PREMIER COMMUNITY CARE LTD.
Adults Wellbeing and Health,Head of Adults,Third Party Payments,472101,Purchase of Care,15-Aug-2013,2633350-1350799H,665.40,PREMIER COMMUNITY CARE LTD.
Adults Wellbeing and Health,Head of Adults,Third Party Payments,472101,Purchase of Care,15-Aug-2013,2633350-1350822H,757.80,PREMIER COMMUNITY CARE LTD.
Adults Wellbeing and Health,Head of Adults,Third Party Payments,472101,Purchase of Care,15-Aug-2013,2633350-1350880H,582.22,PREMIER COMMUNITY CARE LTD.
Adults Wellbeing and Health,Head of Adults,Third Party Payments,472101,Purchase of Care,15-Aug-2013,2633350-1350889H,519.38,PREMIER COMMUNITY CARE LTD.
Adults Wellbeing and Health,Head of Adults,Third Party Payments,472101,Purchase of Care,15-Aug-2013,2633350-1350915H,500.91,PREMIER COMMUNITY CARE LTD.
Adults Wellbeing and Health,Head of Adults,Third Party Payments,472101,Purchase of Care,15-Aug-2013,2633350-1350923H,743.04,PREMIER COMMUNITY CARE LTD.
Adults Wellbeing and Health,Head of Adults,Third Party Payments,472101,Purchase of Care,15-Aug-2013,2633350-1350926H,687.58,PREMIER COMMUNITY CARE LTD.
Adults Wellbeing and Health,Head of Adults,Third Party Payments,472101,Purchase of Care,15-Aug-2013,2633350-1350928H,804.04,PREMIER COMMUNITY CARE LTD.
Adults Wellbeing and Health,Head of Adults,Third Party Payments,472101,Purchase of Care,15-Aug-2013,2633350-1350931H,903.85,PREMIER COMMUNITY CARE LTD.
Adults Wellbeing and Health,Head of Adults,Third Party Payments,472101,Purchase of Care,15-Aug-2013,2633350-1350937H,669.08,PREMIER COMMUNITY CARE LTD.
Adults Wellbeing and Health,Head of Adults,Third Party Payments,472101,Purchase of Care,15-Aug-2013,2633350-1350944H,"1,474.96",PREMIER COMMUNITY CARE LTD.
Adults Wellbeing and Health,Head of Adults,Third Party Payments,472101,Purchase of Care,15-Aug-2013,2633350-1350971H,550.81,PREMIER COMMUNITY CARE LTD.
Adults Wellbeing and Health,Head of Adults,Third Party Payments,472101,Purchase of Care,15-Aug-2013,2633350-1350995H,"1,552.60",PREMIER COMMUNITY CARE LTD.
Adults Wellbeing and Health,Head of Adults,Third Party Payments,472101,Purchase of Care,15-Aug-2013,2633350-1350998H,532.32,PREMIER COMMUNITY CARE LTD.
Adults Wellbeing and Health,Head of Adults,Third Party Payments,472101,Purchase of Care,15-Aug-2013,2633350-1351011H,562.83,PREMIER COMMUNITY CARE LTD.
Adults Wellbeing and Health,Head of Adults,Third Party Payments,472101,Purchase of Care,15-Aug-2013,2633350-1351012H,687.60,PREMIER COMMUNITY CARE LTD.
Adults Wellbeing and Health,Head of Adults,Third Party Payments,472101,Purchase of Care,15-Aug-2013,2633350-1351074H,"1,036.92",PREMIER COMMUNITY CARE LTD.
Adults Wellbeing and Health,Head of Adults,Third Party Payments,472101,Purchase of Care,15-Aug-2013,2633350-1351092H,765.21,PREMIER COMMUNITY CARE LTD.
Adults Wellbeing and Health,Head of Adults,Third Party Payments,472101,Purchase of Care,15-Aug-2013,2633350-1351097H,776.32,PREMIER COMMUNITY CARE LTD.
Adults Wellbeing and Health,Head of Adults,Third Party Payments,472101,Purchase of Care,15-Aug-2013,2633350-1351111H,609.96,PREMIER COMMUNITY CARE LTD.
Adults Wellbeing and Health,Head of Adults,Third Party Payments,472101,Purchase of Care,15-Aug-2013,2633350-1351135H,521.24,PREMIER COMMUNITY CARE LTD.
Adults Wellbeing and Health,Head of Adults,Third Party Payments,472101,Purchase of Care,15-Aug-2013,2633350-1351146H,632.12,PREMIER COMMUNITY CARE LTD.
Adults Wellbeing and Health,Head of Adults,Third Party Payments,472101,Purchase of Care,15-Aug-2013,2633350-1351230H,"1,364.08",PREMIER COMMUNITY CARE LTD.
Adults Wellbeing and Health,Head of Adults,Third Party Payments,472101,Purchase of Care,15-Aug-2013,2633350-1351262H,517.54,PREMIER COMMUNITY CARE LTD.
Adults Wellbeing and Health,Head of Adults,Third Party Payments,472101,Purchase of Care,15-Aug-2013,2633350-1351304H,787.40,PREMIER COMMUNITY CARE LTD.
Adults Wellbeing and Health,Head of Adults,Third Party Payments,472101,Purchase of Care,15-Aug-2013,2633350-1351331H,532.32,PREMIER COMMUNITY CARE LTD.
Adults Wellbeing and Health,Head of Adults,Third Party Payments,472101,Purchase of Care,15-Aug-2013,2633350-1351552H,554.52,PREMIER COMMUNITY CARE LTD.
Adults Wellbeing and Health,Head of Adults,Third Party Payments,472101,Purchase of Care,15-Aug-2013,2633350-1351659H,632.12,PREMIER COMMUNITY CARE LTD.
Adults Wellbeing and Health,Head of Adults,Third Party Payments,472101,Purchase of Care,15-Aug-2013,2633350-1351687H,569.28,PREMIER COMMUNITY CARE LTD.
Adults Wellbeing and Health,Head of Adults,Third Party Payments,472101,Purchase of Care,15-Aug-2013,2633350-1351755H,524.93,PREMIER COMMUNITY CARE LTD.
Adults Wellbeing and Health,Head of Adults,Third Party Payments,472101,Purchase of Care,15-Aug-2013,2633350-1351974H,"1,574.80",PREMIER COMMUNITY CARE LTD.
Adults Wellbeing and Health,Head of Adults,Third Party Payments,472101,Purchase of Care,15-Aug-2013,2633350-1352048H,587.76,PREMIER COMMUNITY CARE LTD.
Adults Wellbeing and Health,Head of Adults,Third Party Payments,472101,Purchase of Care,15-Aug-2013,2633350-1352116H,521.24,PREMIER COMMUNITY CARE LTD.
Adults Wellbeing and Health,Head of Adults,Third Party Payments,472101,Purchase of Care,15-Aug-2013,2633350-1352126H,"1,691.23",PREMIER COMMUNITY CARE LTD.
Adults Wellbeing and Health,Head of Adults,Third Party Payments,472101,Purchase of Care,15-Aug-2013,2633350-1352142H,953.76,PREMIER COMMUNITY CARE LTD.
Adults Wellbeing and Health,Head of Adults,Third Party Payments,472101,Purchase of Care,15-Aug-2013,2633350-1352241H,586.84,PREMIER COMMUNITY CARE LTD.
Adults Wellbeing and Health,Head of Adults,Third Party Payments,472101,Purchase of Care,15-Aug-2013,2633350-1352320H,743.04,PREMIER COMMUNITY CARE LTD.
Adults Wellbeing and Health,Head of Adults,Third Party Payments,472101,Purchase of Care,15-Aug-2013,2633350-1352844H,593.31,PREMIER COMMUNITY CARE LTD.
Adults Wellbeing and Health,Head of Adults,Third Party Payments,472101,Purchase of Care,15-Aug-2013,2633350-1353072H,621.04,PREMIER COMMUNITY CARE LTD.
Adults Wellbeing and Health,Head of Adults,Third Party Payments,472101,Purchase of Care,15-Aug-2013,2633350-1353095H,621.04,PREMIER COMMUNITY CARE LTD.
Adults Wellbeing and Health,Head of Adults,Third Party Payments,472101,Purchase of Care,15-Aug-2013,2633350-1353193H,743.05,PREMIER COMMUNITY CARE LTD.
Adults Wellbeing and Health,Head of Adults,Third Party Payments,472101,Purchase of Care,15-Aug-2013,2633350-1353236H,755.96,PREMIER COMMUNITY CARE LTD.
Adults Wellbeing and Health,Head of Adults,Third Party Payments,472101,Purchase of Care,15-Aug-2013,2633350-1353242H,776.32,PREMIER COMMUNITY CARE LTD.
Adults Wellbeing and Health,Head of Adults,Third Party Payments,472101,Purchase of Care,15-Aug-2013,2633350-1353306H,525.86,PREMIER COMMUNITY CARE LTD.
Adults Wellbeing and Health,Head of Adults,Third Party Payments,472101,Purchase of Care,15-Aug-2013,2633350-1353309H,621.04,PREMIER COMMUNITY CARE LTD.
Adults Wellbeing and Health,Head of Adults,Third Party Payments,472101,Purchase of Care,15-Aug-2013,2633350-1353402H,"1,230.99",PREMIER COMMUNITY CARE LTD.
Adults Wellbeing and Health,Head of Adults,Third Party Payments,472101,Purchase of Care,15-Aug-2013,2633350-1353545H,"1,630.24",PREMIER COMMUNITY CARE LTD.
Adults Wellbeing and Health,Head of Adults,Third Party Payments,472101,Purchase of Care,15-Aug-2013,2633350-1353581H,521.24,PREMIER COMMUNITY CARE LTD.
Adults Wellbeing and Health,Head of Adults,Third Party Payments,472101,Purchase of Care,15-Aug-2013,2633350-1353649H,931.56,PREMIER COMMUNITY CARE LTD.
Adults Wellbeing and Health,Head of Adults,Third Party Payments,472101,Purchase of Care,15-Aug-2013,2633350-1353657H,701.45,PREMIER COMMUNITY CARE LTD.
Adults Wellbeing and Health,Head of Adults,Third Party Payments,472101,Purchase of Care,15-Aug-2013,2633350-1353792H,751.35,PREMIER COMMUNITY CARE LTD.
Adults Wellbeing and Health,Head of Adults,Third Party Payments,472101,Purchase of Care,15-Aug-2013,2633350-1353832H,796.62,PREMIER COMMUNITY CARE LTD.
Adults Wellbeing and Health,Head of Adults,Third Party Payments,472101,Purchase of Care,15-Aug-2013,2633350-1353985H,532.32,PREMIER COMMUNITY CARE LTD.
Adults Wellbeing and Health,Head of Adults,Third Party Payments,472101,Purchase of Care,15-Aug-2013,2633350-1354019H,598.86,PREMIER COMMUNITY CARE LTD.
Adults Wellbeing and Health,Head of Adults,Third Party Payments,472101,Purchase of Care,15-Aug-2013,2633350-1354067H,536.00,PREMIER COMMUNITY CARE LTD.
Adults Wellbeing and Health,Head of Adults,Third Party Payments,472101,Purchase of Care,15-Aug-2013,2633350-1354076H,621.06,PREMIER COMMUNITY CARE LTD.
Adults Wellbeing and Health,Head of Adults,Third Party Payments,472101,Purchase of Care,15-Aug-2013,2633350-1354256H,761.52,PREMIER COMMUNITY CARE LTD.
Adults Wellbeing and Health,Head of Adults,Third Party Payments,472101,Purchase of Care,15-Aug-2013,2633350-1354278H,621.04,PREMIER COMMUNITY CARE LTD.
Adults Wellbeing and Health,Head of Adults,Third Party Payments,472101,Purchase of Care,15-Aug-2013,2633350-1354351H,621.04,PREMIER COMMUNITY CARE LTD.
Adults Wellbeing and Health,Head of Adults,Third Party Payments,472101,Purchase of Care,15-Aug-2013,2633350-1354362H,528.64,PREMIER COMMUNITY CARE LTD.
Adults Wellbeing and Health,Head of Adults,Third Party Payments,472101,Purchase of Care,15-Aug-2013,2633350-1354415H,616.43,PREMIER COMMUNITY CARE LTD.
Adults Wellbeing and Health,Head of Adults,Third Party Payments,472101,Purchase of Care,15-Aug-2013,2633350-1354446H,650.60,PREMIER COMMUNITY CARE LTD.
Adults Wellbeing and Health,Head of Adults,Third Party Payments,472101,Purchase of Care,15-Aug-2013,2633350-1354464H,515.69,PREMIER COMMUNITY CARE LTD.
Adults Wellbeing and Health,Head of Adults,Third Party Payments,472101,Purchase of Care,15-Aug-2013,2633350-1354544H,568.37,PREMIER COMMUNITY CARE LTD.
Adults Wellbeing and Health,Head of Adults,Third Party Payments,472101,Purchase of Care,15-Aug-2013,2633350-1354555H,"1,358.52",PREMIER COMMUNITY CARE LTD.
Adults Wellbeing and Health,Head of Adults,Third Party Payments,472101,Purchase of Care,15-Aug-2013,2633350-1354624H,621.04,PREMIER COMMUNITY CARE LTD.
Adults Wellbeing and Health,Head of Adults,Third Party Payments,472101,Purchase of Care,15-Aug-2013,2633350-1354639H,543.40,PREMIER COMMUNITY CARE LTD.
Adults Wellbeing and Health,Head of Adults,Third Party Payments,472101,Purchase of Care,15-Aug-2013,2633350-1354645H,810.49,PREMIER COMMUNITY CARE LTD.
Adults Wellbeing and Health,Head of Adults,Third Party Payments,472101,Purchase of Care,15-Aug-2013,2633350-1354655H,870.57,PREMIER COMMUNITY CARE LTD.
Adults Wellbeing and Health,Head of Adults,Third Party Payments,472101,Purchase of Care,15-Aug-2013,2633350-1354698H,672.80,PREMIER COMMUNITY CARE LTD.
Adults Wellbeing and Health,Head of Adults,Third Party Payments,472101,Purchase of Care,15-Aug-2013,2633350-1354857H,626.59,PREMIER COMMUNITY CARE LTD.
Adults Wellbeing and Health,Head of Adults,Third Party Payments,472101,Purchase of Care,15-Aug-2013,2633350-1354866H,"1,253.19",PREMIER COMMUNITY CARE LTD.
Adults Wellbeing and Health,Head of Adults,Third Party Payments,472101,Purchase of Care,15-Aug-2013,2633350-1354882H,842.84,PREMIER COMMUNITY CARE LTD.
Adults Wellbeing and Health,Head of Adults,Third Party Payments,472101,Purchase of Care,15-Aug-2013,2633350-1354912H,513.84,PREMIER COMMUNITY CARE LTD.
Adults Wellbeing and Health,Head of Adults,Third Party Payments,472101,Purchase of Care,15-Aug-2013,2633350-1354933H,"1,386.24",PREMIER COMMUNITY CARE LTD.
Adults Wellbeing and Health,Head of Adults,Third Party Payments,472101,Purchase of Care,15-Aug-2013,2633350-1355004H,809.56,PREMIER COMMUNITY CARE LTD.
Adults Wellbeing and Health,Head of Adults,Third Party Payments,472101,Purchase of Care,15-Aug-2013,2633350-1355081H,901.06,PREMIER COMMUNITY CARE LTD.
Adults Wellbeing and Health,Head of Adults,Third Party Payments,472101,Purchase of Care,15-Aug-2013,2633350-1355158H,712.53,PREMIER COMMUNITY CARE LTD.
Adults Wellbeing and Health,Head of Adults,Third Party Payments,472101,Purchase of Care,15-Aug-2013,2633350-1355213H,"1,463.88",PREMIER COMMUNITY CARE LTD.
Adults Wellbeing and Health,Head of Adults,Third Party Payments,472101,Purchase of Care,15-Aug-2013,2633350-1355219H,621.04,PREMIER COMMUNITY CARE LTD.
Adults Wellbeing and Health,Head of Adults,Third Party Payments,472101,Purchase of Care,15-Aug-2013,2633350-1355221H,565.60,PREMIER COMMUNITY CARE LTD.
Adults Wellbeing and Health,Head of Adults,Third Party Payments,472101,Purchase of Care,15-Aug-2013,2633350-1355233H,587.77,PREMIER COMMUNITY CARE LTD.
Adults Wellbeing and Health,Head of Adults,Third Party Payments,472101,Purchase of Care,15-Aug-2013,2633350-1355328H,"1,552.60",PREMIER COMMUNITY CARE LTD.
Adults Wellbeing and Health,Head of Adults,Third Party Payments,472101,Purchase of Care,15-Aug-2013,2633350-1355381H,547.12,PREMIER COMMUNITY CARE LTD.
Adults Wellbeing and Health,Head of Adults,Third Party Payments,472101,Purchase of Care,15-Aug-2013,2633350-1355458H,621.04,PREMIER COMMUNITY CARE LTD.
Adults Wellbeing and Health,Head of Adults,Third Party Payments,472101,Purchase of Care,15-Aug-2013,2633350-1355499H,"1,009.20",PREMIER COMMUNITY CARE LTD.
Adults Wellbeing and Health,Head of Adults,Third Party Payments,472101,Purchase of Care,15-Aug-2013,2633350-1355546H,502.76,PREMIER COMMUNITY CARE LTD.
Adults Wellbeing and Health,Head of Adults,Third Party Payments,472101,Purchase of Care,15-Aug-2013,2633350-1355605H,931.56,PREMIER COMMUNITY CARE LTD.
Adults Wellbeing and Health,Head of Adults,Third Party Payments,472101,Purchase of Care,15-Aug-2013,2633350-1355715H,561.90,PREMIER COMMUNITY CARE LTD.
Adults Wellbeing and Health,Head of Adults,Third Party Payments,472101,Purchase of Care,15-Aug-2013,2633350-1355746H,931.56,PREMIER COMMUNITY CARE LTD.
Adults Wellbeing and Health,Head of Adults,Third Party Payments,472101,Purchase of Care,15-Aug-2013,2633350-1355764H,665.40,PREMIER COMMUNITY CARE LTD.
Adults Wellbeing and Health,Head of Adults,Third Party Payments,472101,Purchase of Care,15-Aug-2013,2633350-1355859H,731.94,PREMIER COMMUNITY CARE LTD.
Adults Wellbeing and Health,Head of Adults,Third Party Payments,472101,Purchase of Care,15-Aug-2013,2633350-1355954H,665.40,PREMIER COMMUNITY CARE LTD.
Adults Wellbeing and Health,Head of Adults,Third Party Payments,472101,Purchase of Care,15-Aug-2013,2633350-1356044H,643.24,PREMIER COMMUNITY CARE LTD.
Adults Wellbeing and Health,Head of Adults,Third Party Payments,472101,Purchase of Care,15-Aug-2013,2633350-1356078H,"1,131.20",PREMIER COMMUNITY CARE LTD.
Adults Wellbeing and Health,Head of Adults,Third Party Payments,472101,Purchase of Care,15-Aug-2013,2633350-1356110H,572.99,PREMIER COMMUNITY CARE LTD.
Adults Wellbeing and Health,Head of Adults,Third Party Payments,472101,Purchase of Care,15-Aug-2013,2633350-1356172H,"1,269.82",PREMIER COMMUNITY CARE LTD.
Adults Wellbeing and Health,Head of Adults,Third Party Payments,472101,Purchase of Care,15-Aug-2013,2633350-1356184H,516.61,PREMIER COMMUNITY CARE LTD.
Adults Wellbeing and Health,Head of Adults,Third Party Payments,472101,Purchase of Care,15-Aug-2013,2633350-1356187H,"1,035.08",PREMIER COMMUNITY CARE LTD.
Adults Wellbeing and Health,Head of Adults,Third Party Payments,472101,Purchase of Care,15-Aug-2013,2633350-1356232H,544.34,PREMIER COMMUNITY CARE LTD.
Adults Wellbeing and Health,Head of Adults,Third Party Payments,472101,Purchase of Care,15-Aug-2013,2633350-1356296H,554.52,PREMIER COMMUNITY CARE LTD.
Adults Wellbeing and Health,Head of Adults,Third Party Payments,472101,Purchase of Care,15-Aug-2013,2633350-1356338H,539.72,PREMIER COMMUNITY CARE LTD.
Adults Wellbeing and Health,Head of Adults,Third Party Payments,472101,Purchase of Care,15-Aug-2013,2633350-1356643H,"1,434.32",PREMIER COMMUNITY CARE LTD.
Adults Wellbeing and Health,Head of Adults,Third Party Payments,472101,Purchase of Care,15-Aug-2013,2633350-1356772H,746.72,PREMIER COMMUNITY CARE LTD.
Adults Wellbeing and Health,Head of Adults,Third Party Payments,472101,Purchase of Care,15-Aug-2013,2633350-1356783H,598.88,PREMIER COMMUNITY CARE LTD.
Adults Wellbeing and Health,Head of Adults,Third Party Payments,472101,Purchase of Care,15-Aug-2013,2633350-1356784H,646.01,PREMIER COMMUNITY CARE LTD.
Adults Wellbeing and Health,Head of Adults,Third Party Payments,472101,Purchase of Care,15-Aug-2013,2633350-1356903H,621.04,PREMIER COMMUNITY CARE LTD.
Adults Wellbeing and Health,Head of Adults,Third Party Payments,472101,Purchase of Care,15-Aug-2013,2633350-1356952H,709.76,PREMIER COMMUNITY CARE LTD.
Adults Wellbeing and Health,Head of Adults,Third Party Payments,472101,Purchase of Care,15-Aug-2013,2633350-1357008H,"1,474.06",PREMIER COMMUNITY CARE LTD.
Adults Wellbeing and Health,Head of Adults,Third Party Payments,472101,Purchase of Care,15-Aug-2013,2633350-1357076H,543.40,PREMIER COMMUNITY CARE LTD.
Adults Wellbeing and Health,Head of Adults,Third Party Payments,472101,Purchase of Care,15-Aug-2013,2633350-1357160H,672.79,PREMIER COMMUNITY CARE LTD.
Adults Wellbeing and Health,Head of Adults,Third Party Payments,472101,Purchase of Care,15-Aug-2013,2633350-1357194H,565.59,PREMIER COMMUNITY CARE LTD.
Adults Wellbeing and Health,Head of Adults,Third Party Payments,472101,Purchase of Care,15-Aug-2013,2633350-1357708H,532.32,PREMIER COMMUNITY CARE LTD.
Adults Wellbeing and Health,Head of Adults,Third Party Payments,472101,Purchase of Care,15-Aug-2013,2633353-1350807H,"1,391.52",PRESTIGE CARE TEAM.
Adults Wellbeing and Health,Head of Adults,Third Party Payments,472101,Purchase of Care,15-Aug-2013,2633353-1350847H,"1,004.84",PRESTIGE CARE TEAM.
Adults Wellbeing and Health,Head of Adults,Third Party Payments,472101,Purchase of Care,15-Aug-2013,2633399-2115379,"1,954.08",RICHMOND COURT.
Adults Wellbeing and Health,Head of Adults,Third Party Payments,472101,Purchase of Care,15-Aug-2013,2633399-2115380,"1,954.08",RICHMOND COURT.
Adults Wellbeing and Health,Head of Adults,Third Party Payments,472101,Purchase of Care,15-Aug-2013,2633525-1350765H,"1,275.36",SOCIAL RESOURCE CENTRE LTD.
Adults Wellbeing and Health,Head of Adults,Third Party Payments,472101,Purchase of Care,15-Aug-2013,2633525-1350800H,586.98,SOCIAL RESOURCE CENTRE LTD.
Adults Wellbeing and Health,Head of Adults,Third Party Payments,472101,Purchase of Care,15-Aug-2013,2633525-1350815H,621.04,SOCIAL RESOURCE CENTRE LTD.
Adults Wellbeing and Health,Head of Adults,Third Party Payments,472101,Purchase of Care,15-Aug-2013,2633525-1350852H,615.97,SOCIAL RESOURCE CENTRE LTD.
Adults Wellbeing and Health,Head of Adults,Third Party Payments,472101,Purchase of Care,15-Aug-2013,2633525-1350870H,"1,330.80",SOCIAL RESOURCE CENTRE LTD.
Adults Wellbeing and Health,Head of Adults,Third Party Payments,472101,Purchase of Care,15-Aug-2013,2633525-1350878H,634.08,SOCIAL RESOURCE CENTRE LTD.
Adults Wellbeing and Health,Head of Adults,Third Party Payments,472101,Purchase of Care,15-Aug-2013,2633525-1350980H,652.20,SOCIAL RESOURCE CENTRE LTD.
Adults Wellbeing and Health,Head of Adults,Third Party Payments,472101,Purchase of Care,15-Aug-2013,2633525-1350986H,783.68,SOCIAL RESOURCE CENTRE LTD.
Adults Wellbeing and Health,Head of Adults,Third Party Payments,472101,Purchase of Care,15-Aug-2013,2633525-1350994H,887.20,SOCIAL RESOURCE CENTRE LTD.
Adults Wellbeing and Health,Head of Adults,Third Party Payments,472101,Purchase of Care,15-Aug-2013,2633525-1351034H,"1,573.43",SOCIAL RESOURCE CENTRE LTD.
Adults Wellbeing and Health,Head of Adults,Third Party Payments,472101,Purchase of Care,15-Aug-2013,2633525-1351045H,"1,521.80",SOCIAL RESOURCE CENTRE LTD.
Adults Wellbeing and Health,Head of Adults,Third Party Payments,472101,Purchase of Care,15-Aug-2013,2633525-1351451H,621.04,SOCIAL RESOURCE CENTRE LTD.
Adults Wellbeing and Health,Head of Adults,Third Party Payments,472101,Purchase of Care,15-Aug-2013,2633525-1351799H,691.28,SOCIAL RESOURCE CENTRE LTD.
Adults Wellbeing and Health,Head of Adults,Third Party Payments,472101,Purchase of Care,15-Aug-2013,2633525-1351821H,887.20,SOCIAL RESOURCE CENTRE LTD.
Adults Wellbeing and Health,Head of Adults,Third Party Payments,472101,Purchase of Care,15-Aug-2013,2633525-1352349H,561.88,SOCIAL RESOURCE CENTRE LTD.
Adults Wellbeing and Health,Head of Adults,Third Party Payments,472101,Purchase of Care,15-Aug-2013,2633525-1352883H,643.22,SOCIAL RESOURCE CENTRE LTD.
Adults Wellbeing and Health,Head of Adults,Third Party Payments,472101,Purchase of Care,15-Aug-2013,2633525-1352931H,837.00,SOCIAL RESOURCE CENTRE LTD.
Adults Wellbeing and Health,Head of Adults,Third Party Payments,472101,Purchase of Care,15-Aug-2013,2633525-1352951H,"1,210.65",SOCIAL RESOURCE CENTRE LTD.
Adults Wellbeing and Health,Head of Adults,Third Party Payments,472101,Purchase of Care,15-Aug-2013,2633525-1352965H,621.04,SOCIAL RESOURCE CENTRE LTD.
Adults Wellbeing and Health,Head of Adults,Third Party Payments,472101,Purchase of Care,15-Aug-2013,2633525-1352977H,565.60,SOCIAL RESOURCE CENTRE LTD.
Adults Wellbeing and Health,Head of Adults,Third Party Payments,472101,Purchase of Care,15-Aug-2013,2633525-1353009H,505.53,SOCIAL RESOURCE CENTRE LTD.
Adults Wellbeing and Health,Head of Adults,Third Party Payments,472101,Purchase of Care,15-Aug-2013,2633525-1353013H,569.28,SOCIAL RESOURCE CENTRE LTD.
Adults Wellbeing and Health,Head of Adults,Third Party Payments,472101,Purchase of Care,15-Aug-2013,2633525-1353045H,809.58,SOCIAL RESOURCE CENTRE LTD.
Adults Wellbeing and Health,Head of Adults,Third Party Payments,472101,Purchase of Care,15-Aug-2013,2633525-1353070H,587.00,SOCIAL RESOURCE CENTRE LTD.
Adults Wellbeing and Health,Head of Adults,Third Party Payments,472101,Purchase of Care,15-Aug-2013,2633525-1353098H,"1,009.20",SOCIAL RESOURCE CENTRE LTD.
Adults Wellbeing and Health,Head of Adults,Third Party Payments,472101,Purchase of Care,15-Aug-2013,2633525-1353140H,706.07,SOCIAL RESOURCE CENTRE LTD.
Adults Wellbeing and Health,Head of Adults,Third Party Payments,472101,Purchase of Care,15-Aug-2013,2633525-1353264H,511.07,SOCIAL RESOURCE CENTRE LTD.
Adults Wellbeing and Health,Head of Adults,Third Party Payments,472101,Purchase of Care,15-Aug-2013,2633525-1353282H,876.12,SOCIAL RESOURCE CENTRE LTD.
Adults Wellbeing and Health,Head of Adults,Third Party Payments,472101,Purchase of Care,15-Aug-2013,2633525-1353327H,521.24,SOCIAL RESOURCE CENTRE LTD.
Adults Wellbeing and Health,Head of Adults,Third Party Payments,472101,Purchase of Care,15-Aug-2013,2633525-1353368H,561.88,SOCIAL RESOURCE CENTRE LTD.
Adults Wellbeing and Health,Head of Adults,Third Party Payments,472101,Purchase of Care,15-Aug-2013,2633525-1353404H,898.28,SOCIAL RESOURCE CENTRE LTD.
Adults Wellbeing and Health,Head of Adults,Third Party Payments,472101,Purchase of Care,15-Aug-2013,2633525-1353556H,693.14,SOCIAL RESOURCE CENTRE LTD.
Adults Wellbeing and Health,Head of Adults,Third Party Payments,472101,Purchase of Care,15-Aug-2013,2633525-1353724H,521.24,SOCIAL RESOURCE CENTRE LTD.
Adults Wellbeing and Health,Head of Adults,Third Party Payments,472101,Purchase of Care,15-Aug-2013,2633525-1353753H,547.12,SOCIAL RESOURCE CENTRE LTD.
Adults Wellbeing and Health,Head of Adults,Third Party Payments,472101,Purchase of Care,15-Aug-2013,2633525-1353782H,815.24,SOCIAL RESOURCE CENTRE LTD.
Adults Wellbeing and Health,Head of Adults,Third Party Payments,472101,Purchase of Care,15-Aug-2013,2633525-1353797H,587.00,SOCIAL RESOURCE CENTRE LTD.
Adults Wellbeing and Health,Head of Adults,Third Party Payments,472101,Purchase of Care,15-Aug-2013,2633525-1354036H,513.84,SOCIAL RESOURCE CENTRE LTD.
Adults Wellbeing and Health,Head of Adults,Third Party Payments,472101,Purchase of Care,15-Aug-2013,2633525-1354045H,621.04,SOCIAL RESOURCE CENTRE LTD.
Adults Wellbeing and Health,Head of Adults,Third Party Payments,472101,Purchase of Care,15-Aug-2013,2633525-1354153H,"1,996.20",SOCIAL RESOURCE CENTRE LTD.
Adults Wellbeing and Health,Head of Adults,Third Party Payments,472101,Purchase of Care,15-Aug-2013,2633525-1354238H,764.52,SOCIAL RESOURCE CENTRE LTD.
Adults Wellbeing and Health,Head of Adults,Third Party Payments,472101,Purchase of Care,15-Aug-2013,2633525-1354444H,"2,040.56",SOCIAL RESOURCE CENTRE LTD.
Adults Wellbeing and Health,Head of Adults,Third Party Payments,472101,Purchase of Care,15-Aug-2013,2633525-1354501H,698.68,SOCIAL RESOURCE CENTRE LTD.
Adults Wellbeing and Health,Head of Adults,Third Party Payments,472101,Purchase of Care,15-Aug-2013,2633525-1354502H,565.60,SOCIAL RESOURCE CENTRE LTD.
Adults Wellbeing and Health,Head of Adults,Third Party Payments,472101,Purchase of Care,15-Aug-2013,2633525-1354647H,609.96,SOCIAL RESOURCE CENTRE LTD.
Adults Wellbeing and Health,Head of Adults,Third Party Payments,472101,Purchase of Care,15-Aug-2013,2633525-1354690H,668.51,SOCIAL RESOURCE CENTRE LTD.
Adults Wellbeing and Health,Head of Adults,Third Party Payments,472101,Purchase of Care,15-Aug-2013,2633525-1354696H,524.48,SOCIAL RESOURCE CENTRE LTD.
Adults Wellbeing and Health,Head of Adults,Third Party Payments,472101,Purchase of Care,15-Aug-2013,2633525-1354752H,698.68,SOCIAL RESOURCE CENTRE LTD.
Adults Wellbeing and Health,Head of Adults,Third Party Payments,472101,Purchase of Care,15-Aug-2013,2633525-1354826H,903.84,SOCIAL RESOURCE CENTRE LTD.
Adults Wellbeing and Health,Head of Adults,Third Party Payments,472101,Purchase of Care,15-Aug-2013,2633525-1354891H,611.44,SOCIAL RESOURCE CENTRE LTD.
Adults Wellbeing and Health,Head of Adults,Third Party Payments,472101,Purchase of Care,15-Aug-2013,2633525-1354902H,621.04,SOCIAL RESOURCE CENTRE LTD.
Adults Wellbeing and Health,Head of Adults,Third Party Payments,472101,Purchase of Care,15-Aug-2013,2633525-1354977H,"1,231.00",SOCIAL RESOURCE CENTRE LTD.
Adults Wellbeing and Health,Head of Adults,Third Party Payments,472101,Purchase of Care,15-Aug-2013,2633525-1355043H,600.58,SOCIAL RESOURCE CENTRE LTD.
Adults Wellbeing and Health,Head of Adults,Third Party Payments,472101,Purchase of Care,15-Aug-2013,2633525-1355182H,521.24,SOCIAL RESOURCE CENTRE LTD.
Adults Wellbeing and Health,Head of Adults,Third Party Payments,472101,Purchase of Care,15-Aug-2013,2633525-1355234H,525.40,SOCIAL RESOURCE CENTRE LTD.
Adults Wellbeing and Health,Head of Adults,Third Party Payments,472101,Purchase of Care,15-Aug-2013,2633525-1355259H,576.68,SOCIAL RESOURCE CENTRE LTD.
Adults Wellbeing and Health,Head of Adults,Third Party Payments,472101,Purchase of Care,15-Aug-2013,2633525-1355303H,687.60,SOCIAL RESOURCE CENTRE LTD.
Adults Wellbeing and Health,Head of Adults,Third Party Payments,472101,Purchase of Care,15-Aug-2013,2633525-1355306H,"1,242.08",SOCIAL RESOURCE CENTRE LTD.
Adults Wellbeing and Health,Head of Adults,Third Party Payments,472101,Purchase of Care,15-Aug-2013,2633525-1355465H,615.49,SOCIAL RESOURCE CENTRE LTD.
Adults Wellbeing and Health,Head of Adults,Third Party Payments,472101,Purchase of Care,15-Aug-2013,2633525-1355528H,684.80,SOCIAL RESOURCE CENTRE LTD.
Adults Wellbeing and Health,Head of Adults,Third Party Payments,472101,Purchase of Care,15-Aug-2013,2633525-1355709H,661.72,SOCIAL RESOURCE CENTRE LTD.
Adults Wellbeing and Health,Head of Adults,Third Party Payments,472101,Purchase of Care,15-Aug-2013,2633525-1355809H,510.14,SOCIAL RESOURCE CENTRE LTD.
Adults Wellbeing and Health,Head of Adults,Third Party Payments,472101,Purchase of Care,15-Aug-2013,2633525-1355825H,602.56,SOCIAL RESOURCE CENTRE LTD.
Adults Wellbeing and Health,Head of Adults,Third Party Payments,472101,Purchase of Care,15-Aug-2013,2633525-1355856H,"1,336.36",SOCIAL RESOURCE CENTRE LTD.
Adults Wellbeing and Health,Head of Adults,Third Party Payments,472101,Purchase of Care,15-Aug-2013,2633525-1355905H,521.24,SOCIAL RESOURCE CENTRE LTD.
Adults Wellbeing and Health,Head of Adults,Third Party Payments,472101,Purchase of Care,15-Aug-2013,2633525-1355923H,571.14,SOCIAL RESOURCE CENTRE LTD.
Adults Wellbeing and Health,Head of Adults,Third Party Payments,472101,Purchase of Care,15-Aug-2013,2633525-1355940H,545.26,SOCIAL RESOURCE CENTRE LTD.
Adults Wellbeing and Health,Head of Adults,Third Party Payments,472101,Purchase of Care,15-Aug-2013,2633525-1355969H,539.72,SOCIAL RESOURCE CENTRE LTD.
Adults Wellbeing and Health,Head of Adults,Third Party Payments,472101,Purchase of Care,15-Aug-2013,2633525-1355999H,568.86,SOCIAL RESOURCE CENTRE LTD.
Adults Wellbeing and Health,Head of Adults,Third Party Payments,472101,Purchase of Care,15-Aug-2013,2633525-1356008H,"1,289.92",SOCIAL RESOURCE CENTRE LTD.
Adults Wellbeing and Health,Head of Adults,Third Party Payments,472101,Purchase of Care,15-Aug-2013,2633525-1356012H,876.12,SOCIAL RESOURCE CENTRE LTD.
Adults Wellbeing and Health,Head of Adults,Third Party Payments,472101,Purchase of Care,15-Aug-2013,2633525-1356097H,507.28,SOCIAL RESOURCE CENTRE LTD.
Adults Wellbeing and Health,Head of Adults,Third Party Payments,472101,Purchase of Care,15-Aug-2013,2633525-1356160H,837.00,SOCIAL RESOURCE CENTRE LTD.
Adults Wellbeing and Health,Head of Adults,Third Party Payments,472101,Purchase of Care,15-Aug-2013,2633525-1356167H,676.48,SOCIAL RESOURCE CENTRE LTD.
Adults Wellbeing and Health,Head of Adults,Third Party Payments,472101,Purchase of Care,15-Aug-2013,2633525-1356212H,671.87,SOCIAL RESOURCE CENTRE LTD.
Adults Wellbeing and Health,Head of Adults,Third Party Payments,472101,Purchase of Care,15-Aug-2013,2633525-1356273H,"1,035.08",SOCIAL RESOURCE CENTRE LTD.
Adults Wellbeing and Health,Head of Adults,Third Party Payments,472101,Purchase of Care,15-Aug-2013,2633525-1356416H,528.64,SOCIAL RESOURCE CENTRE LTD.
Adults Wellbeing and Health,Head of Adults,Third Party Payments,472101,Purchase of Care,15-Aug-2013,2633525-1356464H,513.84,SOCIAL RESOURCE CENTRE LTD.
Adults Wellbeing and Health,Head of Adults,Third Party Payments,472101,Purchase of Care,15-Aug-2013,2633525-1356594H,706.56,SOCIAL RESOURCE CENTRE LTD.
Adults Wellbeing and Health,Head of Adults,Third Party Payments,472101,Purchase of Care,15-Aug-2013,2633525-1356635H,521.24,SOCIAL RESOURCE CENTRE LTD.
Adults Wellbeing and Health,Head of Adults,Third Party Payments,472101,Purchase of Care,15-Aug-2013,2633525-1356651H,644.95,SOCIAL RESOURCE CENTRE LTD.
Adults Wellbeing and Health,Head of Adults,Third Party Payments,472101,Purchase of Care,15-Aug-2013,2633525-1356738H,576.68,SOCIAL RESOURCE CENTRE LTD.
Adults Wellbeing and Health,Head of Adults,Third Party Payments,472101,Purchase of Care,15-Aug-2013,2633525-1356834H,"1,471.08",SOCIAL RESOURCE CENTRE LTD.
Adults Wellbeing and Health,Head of Adults,Third Party Payments,472101,Purchase of Care,15-Aug-2013,2633525-1357188H,862.26,SOCIAL RESOURCE CENTRE LTD.
Adults Wellbeing and Health,Head of Adults,Third Party Payments,472101,Purchase of Care,15-Aug-2013,2633525-1357306H,913.08,SOCIAL RESOURCE CENTRE LTD.
Adults Wellbeing and Health,Head of Adults,Third Party Payments,472101,Purchase of Care,15-Aug-2013,2633587-1355021H,"1,165.50",STONHAM HOUSING ASSOCIATION LTD.
Adults Wellbeing and Health,Head of Adults,Third Party Payments,472101,Purchase of Care,15-Aug-2013,2633700-1351052H,"1,181.60",UNIQUE HOME CARE.
Adults Wellbeing and Health,Head of Adults,Third Party Payments,472101,Purchase of Care,15-Aug-2013,2633700-1351200H,633.00,UNIQUE HOME CARE.
Adults Wellbeing and Health,Head of Adults,Third Party Payments,472101,Purchase of Care,15-Aug-2013,2633700-1357021H,"1,247.53",UNIQUE HOME CARE.
Adults Wellbeing and Health,Head of Adults,Third Party Payments,472101,Purchase of Care,15-Aug-2013,2633702-1351359H,"2,379.41",UNITED RESPONSE.
Adults Wellbeing and Health,Head of Adults,Third Party Payments,472101,Purchase of Care,15-Aug-2013,2633702-1353152H,"1,915.20",UNITED RESPONSE.
Adults Wellbeing and Health,Head of Adults,Third Party Payments,472101,Purchase of Care,15-Aug-2013,2633725-1350943H,"1,870.88",VILLAGE CARE LTD.
Adults Wellbeing and Health,Head of Adults,Third Party Payments,472101,Purchase of Care,15-Aug-2013,2633725-1353824H,844.00,VILLAGE CARE LTD.
Adults Wellbeing and Health,Head of Adults,Third Party Payments,472101,Purchase of Care,15-Aug-2013,2633725-1353903H,"1,181.60",VILLAGE CARE LTD.
Adults Wellbeing and Health,Head of Adults,Third Party Payments,472101,Purchase of Care,15-Aug-2013,2633725-1354468H,531.00,VILLAGE CARE LTD.
Adults Wellbeing and Health,Head of Adults,Third Party Payments,472101,Purchase of Care,15-Aug-2013,2633725-1354701H,"1,677.44",VILLAGE CARE LTD.
Adults Wellbeing and Health,Head of Adults,Third Party Payments,472101,Purchase of Care,15-Aug-2013,2633725-1356036H,"1,181.60",VILLAGE CARE LTD.
Adults Wellbeing and Health,Head of Adults,Third Party Payments,472101,Purchase of Care,15-Aug-2013,2633758-1356510H,"2,195.83",WESTHOME CARE SERVICES LTD.
Adults Wellbeing and Health,Head of Adults,Third Party Payments,472101,Purchase of Care,15-Aug-2013,2633771-1353972H,726.19,WILLOW COMMUNITY CARE LTD.
Adults Wellbeing and Health,Head of Adults,Third Party Payments,472101,Purchase of Care,15-Aug-2013,2633789-1351886H,681.00,YOUR LIFE CARE & SUPPORT.
Adults Wellbeing and Health,Head of Adults,Third Party Payments,472101,Purchase of Care,15-Aug-2013,2633789-1352904H,"1,886.36",YOUR LIFE CARE & SUPPORT.
Adults Wellbeing and Health,Head of Adults,Third Party Payments,472101,Purchase of Care,15-Aug-2013,2633789-1355576H,998.80,YOUR LIFE CARE & SUPPORT.
Adults Wellbeing and Health,Head of Adults,Third Party Payments,472101,Purchase of Care,15-Aug-2013,2633789-1356785H,510.76,YOUR LIFE CARE & SUPPORT.
Adults Wellbeing and Health,Head of Adults,Third Party Payments,474101,Purchase of Care,21-Aug-2013,223345-2112576,690.04,RICHMOND FELLOWSHIP.
Adults Wellbeing and Health,Head of Adults,Third Party Payments,474101,Purchase of Care,15-Aug-2013,2631574-2114480,"1,882.44",A CHARLES THOMAS (CARE) LTD.
Adults Wellbeing and Health,Head of Adults,Third Party Payments,474101,Purchase of Care,15-Aug-2013,2631574-2114591,"1,882.44",A CHARLES THOMAS (CARE) LTD.
Adults Wellbeing and Health,Head of Adults,Third Party Payments,474101,Purchase of Care,15-Aug-2013,2631574-2114597,"1,882.44",A CHARLES THOMAS (CARE) LTD.
Adults Wellbeing and Health,Head of Adults,Third Party Payments,474101,Purchase of Care,15-Aug-2013,2631574-2114612,"1,882.44",A CHARLES THOMAS (CARE) LTD.
Adults Wellbeing and Health,Head of Adults,Third Party Payments,474101,Purchase of Care,15-Aug-2013,2631574-2114617,"1,378.36",A CHARLES THOMAS (CARE) LTD.
Adults Wellbeing and Health,Head of Adults,Third Party Payments,474101,Purchase of Care,15-Aug-2013,2631574-2114676,"1,882.44",A CHARLES THOMAS (CARE) LTD.
